Workbook

Sheet Бланк Замовлення
A2: Замовлення №
A3: Замовник | M3: матеріал | N3: товщина | O3: покриття | P3: Фрезеровка
A4: Адреса | M4: МДФ 18мм | N4: 18мм | O4: Глянець | P4: Т0
A5: Телефон | M5: МДФ 16мм | N5: 16мм | O5: Напівмат | P5: Т1
A6: Дата замовлення | M6: МДФ 19мм | N6: 19мм | O6: Перламутр | P6: Т2
A7: Матеріал | O7: Софт-тач light | P7: Т3
A8: Тип покриття | F8: м.Калуш Івано-Франківська обл. вул. Пилипа Орлика 2а | I8: моб. +38 050 506-70-60 (8) | O8: Софт-тач deep | P8: Т4
A9: Колір | I9: моб. +38 096 506-70-60 (8) | P9: Т5
A10: Вид корпусу (за потреби) | I10: моб. +38 093 506-70-60 (8)
F11: facades@miromark.com.ua | L11: видифасадів | M11: Standart NEW
A12: № | B12: Номенклатура | D12: Фрезерування | E12: Розмір,мм | G12: К-сть,шт | H12: Площа деталей,м2 | I12: Ціна за м2 | J12: Сума,грн | K12: Свердління | L12: Софія + (Прямий фасад) | M12: Pro NEW | N12: Так
E13: Довжина | F13: Ширина | L13: Міленіум + | M13: Standart OLD | N13: Ні
A14: 1 | H14: =((E14*F14)/1000000)*G14 -> 0 | I14: =IF(B14="Міленіум +",IF($C$8="Напівмат",3009.6))+IF(B14="Міленіум +",IF($C$8="Софт-тач light",3317.6))+IF(B14="Міленіум +",IF($C$8="Софт-тач deep",3410.6))+IF(B14="Міленіум +",IF($C$8="Глянець",3291.6))+IF(B14="Міленіум +",IF($C$8="Перламутр",3763.2))+IF(B14="Софія + (Прямий фасад)",IF($C$8="Напівмат",2508))+IF(B14="Софія + (Прямий фасад)",IF($C$8="Софт-тач light",2816))+IF(B14="Софія + (Прямий фасад)",IF($C$8="Софт-тач deep",2909))+IF(B14="Софія + (Прямий фасад)",IF($C$8="Глянець",2743))+IF(B14="Софія + (Прямий фасад)",IF($C$8="Перламутр",3136))+IF(B14="Вінтаж +",IF($C$8="Напівмат",3260.4))+IF(B14="Вінтаж +",IF($C$8="Софт-тач light",3568.4))+IF(B14="Вінтаж +",IF($C$8="Софт-тач deep",3689.4))+IF(B14="Вінтаж +",IF($C$8="Глянець",0))+IF(B14="Вінтаж +",IF($C$8="Перламутр",0))+IF(B14="Мелвін",IF($C$8="Напівмат",3009.6))+IF(B14="Мелвін",IF($C$8="Софт-тач light",3317.6))+IF(B14="Мелвін",IF($C$8="Софт-тач deep",3438.6))+IF(B14="Мелвін",IF($C$8="Глянець",3291.6))+IF(B14="Мелвін",IF($C$8="Перламутр",3763.2))+IF(B14="Мілена",IF($C$8="Напівмат",3009.6))+IF(B14="Мілена",IF($C$8="Софт-тач light",3317.6))+IF(B14="Мілена",IF($C$8="Софт-тач deep",3438.56))+IF(B14="Мілена",IF($C$8="Глянець",3291.6))+IF(B14="Мілена",IF($C$8="Перламутр",3763.2))+IF(B14="Адель",IF($C$8="Напівмат",3009.6))+IF(B14="Адель",IF($C$8="Софт-тач light",3317.6))+IF(B14="Адель",IF($C$8="Софт-тач deep",3438.56))+IF(B14="Адель",IF($C$8="Глянець",3291.6))+IF(B14="Адель",IF($C$8="Перламутр",3763.2))+IF(B14="Емілія",IF($C$8="Напівмат",3009.6))+IF(B14="Емілія",IF($C$8="Софт-тач light",3317.6))+IF(B14="Емілія",IF($C$8="Софт-тач deep",3438.56))+IF(B14="Емілія",IF($C$8="Глянець",3291.6))+IF(B14="Емілія",IF($C$8="Перламутр",3763.2))+IF(B14="Візель",IF($C$8="Напівмат",3260.4))+IF(B14="Візель",IF($C$8="Софт-тач light",3568.4))+IF(B14="Візель",IF($C$8="Софт-тач deep",3689.4))+IF(B14="Візель",IF($C$8="Глянець",0))+IF(B14="Візель",IF($C$8="Перламутр",0))+IF(B14="Мішель",IF($C$8="Напівмат",3511.2))+IF(B14="Мішель",IF($C$8="Софт-тач light",3819.2))+IF(B14="Мішель",IF($C$8="Софт-тач deep",3940.2))+IF(B14="Мішель",IF($C$8="Глянець",0))+IF(B14="Мішель",IF($C$8="Перламутр",0))+IF(B14="Доміні",IF($C$8="Напівмат",3260.4))+IF(B14="Доміні",IF($C$8="Софт-тач light",3568.4))+IF(B14="Доміні",IF($C$8="Софт-тач deep",3689.4))+IF(B14="Доміні",IF($C$8="Глянець",0))+IF(B14="Доміні",IF($C$8="Перламутр",0))+IF(B14="Матільда",IF($C$8="Напівмат",3511.2))+IF(B14="Матільда",IF($C$8="Софт-тач light",3819.2))+IF(B14="Матільда",IF($C$8="Софт-тач deep",3940.2))+IF(B14="Матільда",IF($C$8="Глянець",3840.2))+IF(B14="Матільда",IF($C$8="Перламутр",4390.4))+IF(B14="Аманда",IF($C$8="Напівмат",2758.8))+IF(B14="Аманда",IF($C$8="Софт-тач light",3066.8))+IF(B14="Аманда",IF($C$8="Софт-тач deep",3187.8))+IF(B14="Аманда",IF($C$8="Глянець",3017.3))+IF(B14="Аманда",IF($C$8="Перламутр",3449.6))+IF(B14="Прованс",IF($C$8="Напівмат",3511.2))+IF(B14="Прованс",IF($C$8="Софт-тач light",3819.2))+IF(B14="Прованс",IF($C$8="Софт-тач deep",3940.2))+IF(B14="Прованс",IF($C$8="Глянець",3840.2))+IF(B14="Прованс",IF($C$8="Перламутр",4390.4))+IF(B14="Вілсон",IF($C$8="Напівмат",3511.2))+IF(B14="Вілсон",IF($C$8="Софт-тач light",3819.2))+IF(B14="Вілсон",IF($C$8="Софт-тач deep",3940.2))+IF(B14="Вілсон",IF($C$8="Глянець",0))+IF(B14="Вілсон",IF($C$8="Перламутр",0))+IF(B14="Вітрина Софія+ (без скла)",IF($C$8="Напівмат",2884))+IF(B14="Вітрина Софія+ (без скла)",IF($C$8="Софт-тач light",3192))+IF(B14="Вітрина Софія+ (без скла)",IF($C$8="Софт-тач deep",3313))+IF(B14="Вітрина Софія+ (без скла)",IF($C$8="Глянець",3154))+IF(B14="Вітрина Софія+ (без скла)",IF($C$8="Перламутр",3606.4))+IF(B14="Вітрина в зборі Софія+ (Дек. Решітка)",IF($C$8="Напівмат",5016))+IF(B14="Вітрина в зборі Софія+ (Дек. Решітка)",IF($C$8="Софт-тач light",5324))+IF(B14="Вітрина в зборі Софія+ (Дек. Решітка)",IF($C$8="Софт-тач deep",5445))+IF(B14="Вітрина в зборі Софія+ (Дек. Решітка)",IF($C$8="Глянець",5486))+IF(B14="Вітрина в зборі Софія+ (Дек. Решітка)",IF($C$8="Перламутр",6272))+IF(B14="Пілястра 1",IF($C$8="Напівмат",7110))+IF(B14="Пілястра 1",IF($C$8="Софт-тач light",7418))+IF(B14="Пілястра 1",IF($C$8="Софт-тач deep",7539))+IF(B14="Пілястра 1",IF($C$8="Глянець",7110))+IF(B14="Пілястра 1",IF($C$8="Перламутр",7110))+IF(B14="Пілястра 2",IF($C$8="Напівмат",7110))+IF(B14="Пілястра 2",IF($C$8="Софт-тач light",7418.2))+IF(B14="Пілястра 2",IF($C$8="Софт-тач deep",7539))+IF(B14="Пілястра 2",IF($C$8="Глянець",7110))+IF(B14="Пілястра 2",IF($C$8="Перламутр",7110))+IF(B14="Пілястра 3",IF($C$8="Напівмат",7110))+IF(B14="Пілястра 3",IF($C$8="Софт-тач light",7418.2))+IF(B14="Пілястра 3",IF($C$8="Софт-тач deep",7539.16))+IF(B14="Пілястра 3",IF($C$8="Глянець",7110))+IF(B14="Пілястра 3",IF($C$8="Перламутр",7110))+IF(B14="Пілястра 4",IF($C$8="Напівмат",7110))+IF(B14="Пілястра 4",IF($C$8="Софт-тач light",7418.2))+IF(B14="Пілястра 4",IF($C$8="Софт-тач deep",7539.16))+IF(B14="Пілястра 4",IF($C$8="Глянець",7110))+IF(B14="Пілястра 4",IF($C$8="Перламутр",7110))+IF(B14="Вітрина в зборі Софія+ (Скло Прозоре)",IF($C$8="Напівмат",3762))+IF(B14="Вітрина в зборі Софія+ (Скло Прозоре)",IF($C$8="Софт-тач light",4070))+IF(B14="Вітрина в зборі Софія+ (Скло Прозоре)",IF($C$8="Софт-тач deep",4191))+IF(B14="Вітрина в зборі Софія+ (Скло Прозоре)",IF($C$8="Глянець",4114))+IF(B14="Вітрина в зборі Софія+ (Скло Прозоре)",IF($C$8="Перламутр",4704))+IF(B14="Вітрина в зборі Софія+ (Скло Сатин)",IF($C$8="Напівмат",3762))+IF(B14="Вітрина в зборі Софія+ (Скло Сатин)",IF($C$8="Софт-тач light",4070))+IF(B14="Вітрина в зборі Софія+ (Скло Сатин)",IF($C$8="Софт-тач deep",4191))+IF(B14="Вітрина в зборі Софія+ (Скло Сатин)",IF($C$8="Глянець",4114))+IF(B14="Вітрина в зборі Софія+ (Скло Сатин)",IF($C$8="Перламутр",4704))+IF(B14="Вітрина з вибіркою Софія+ (без скла)",IF($C$8="Напівмат",3135))+IF(B14="Вітрина з вибіркою Софія+ (без скла)",IF($C$8="Софт-тач light",3443))+IF(B14="Вітрина з вибіркою Софія+ (без скла)",IF($C$8="Софт-тач deep",3564))+IF(B14="Вітрина з вибіркою Софія+ (без скла)",IF($C$8="Глянець",3428))+IF(B14="Вітрина з вибіркою Софія+ (без скла)",IF($C$8="Перламутр",3920))+IF(B14="Фарбування на замовлення",IF($C$8="Напівмат",1457))+IF(B14="Фарбування на замовлення",IF($C$8="Софт-тач light",1810))+IF(B14="Фарбування на замовлення",IF($C$8="Софт-тач deep",1931))+IF(B14="Фарбування на замовлення",IF($C$8="Глянець",1648))+IF(B14="Фарбування на замовлення",IF($C$8="Перламутр",1886))+IF(B14="Декоративна Решітка",IF($C$8="Напівмат",2372))+IF(B14="Декоративна Решітка",IF($C$8="Софт-тач light",2680))+IF(B14="Декоративна Решітка",IF($C$8="Софт-тач deep",2801))+IF(B14="Декоративна Решітка",IF($C$8="Глянець",2372))+IF(B14="Декоративна Решітка",IF($C$8="Перламутр",2372))+IF(B14="Послуга за виконання нестандартних фрезирувань",IF($C$8="Напівмат",450))+IF(B14="Послуга за виконання нестандартних фрезирувань",IF($C$8="Глянець",450))+IF(B14="Послуга за виконання нестандартних фрезирувань",IF($C$8="Перламутр",450))+IF(B14="Послуга за виконання нестандартних фрезирувань",IF($C$8="Софт-тач light",450))+IF(B14="Послуга за виконання нестандартних фрезирувань",IF($C$8="Софт-тач deep",450)) -> 0 | J14: =H14*I14 -> 0 | L14: Адель | M14: Luxe OLD
A15: 2 | H15: 0 | I15: =IF(B15="Міленіум +",IF($C$8="Напівмат",3009.6))+IF(B15="Міленіум +",IF($C$8="Софт-тач light",3317.6))+IF(B15="Міленіум +",IF($C$8="Софт-тач deep",3410.6))+IF(B15="Міленіум +",IF($C$8="Глянець",3291.6))+IF(B15="Міленіум +",IF($C$8="Перламутр",3763.2))+IF(B15="Софія + (Прямий фасад)",IF($C$8="Напівмат",2508))+IF(B15="Софія + (Прямий фасад)",IF($C$8="Софт-тач light",2816))+IF(B15="Софія + (Прямий фасад)",IF($C$8="Софт-тач deep",2909))+IF(B15="Софія + (Прямий фасад)",IF($C$8="Глянець",2743))+IF(B15="Софія + (Прямий фасад)",IF($C$8="Перламутр",3136))+IF(B15="Вінтаж +",IF($C$8="Напівмат",3260.4))+IF(B15="Вінтаж +",IF($C$8="Софт-тач light",3568.4))+IF(B15="Вінтаж +",IF($C$8="Софт-тач deep",3689.4))+IF(B15="Вінтаж +",IF($C$8="Глянець",0))+IF(B15="Вінтаж +",IF($C$8="Перламутр",0))+IF(B15="Мелвін",IF($C$8="Напівмат",3009.6))+IF(B15="Мелвін",IF($C$8="Софт-тач light",3317.6))+IF(B15="Мелвін",IF($C$8="Софт-тач deep",3438.6))+IF(B15="Мелвін",IF($C$8="Глянець",3291.6))+IF(B15="Мелвін",IF($C$8="Перламутр",3763.2))+IF(B15="Мілена",IF($C$8="Напівмат",3009.6))+IF(B15="Мілена",IF($C$8="Софт-тач light",3317.6))+IF(B15="Мілена",IF($C$8="Софт-тач deep",3438.56))+IF(B15="Мілена",IF($C$8="Глянець",3291.6))+IF(B15="Мілена",IF($C$8="Перламутр",3763.2))+IF(B15="Адель",IF($C$8="Напівмат",3009.6))+IF(B15="Адель",IF($C$8="Софт-тач light",3317.6))+IF(B15="Адель",IF($C$8="Софт-тач deep",3438.56))+IF(B15="Адель",IF($C$8="Глянець",3291.6))+IF(B15="Адель",IF($C$8="Перламутр",3763.2))+IF(B15="Емілія",IF($C$8="Напівмат",3009.6))+IF(B15="Емілія",IF($C$8="Софт-тач light",3317.6))+IF(B15="Емілія",IF($C$8="Софт-тач deep",3438.56))+IF(B15="Емілія",IF($C$8="Глянець",3291.6))+IF(B15="Емілія",IF($C$8="Перламутр",3763.2))+IF(B15="Візель",IF($C$8="Напівмат",3260.4))+IF(B15="Візель",IF($C$8="Софт-тач light",3568.4))+IF(B15="Візель",IF($C$8="Софт-тач deep",3689.4))+IF(B15="Візель",IF($C$8="Глянець",0))+IF(B15="Візель",IF($C$8="Перламутр",0))+IF(B15="Мішель",IF($C$8="Напівмат",3511.2))+IF(B15="Мішель",IF($C$8="Софт-тач light",3819.2))+IF(B15="Мішель",IF($C$8="Софт-тач deep",3940.2))+IF(B15="Мішель",IF($C$8="Глянець",0))+IF(B15="Мішель",IF($C$8="Перламутр",0))+IF(B15="Доміні",IF($C$8="Напівмат",3260.4))+IF(B15="Доміні",IF($C$8="Софт-тач light",3568.4))+IF(B15="Доміні",IF($C$8="Софт-тач deep",3689.4))+IF(B15="Доміні",IF($C$8="Глянець",0))+IF(B15="Доміні",IF($C$8="Перламутр",0))+IF(B15="Матільда",IF($C$8="Напівмат",3511.2))+IF(B15="Матільда",IF($C$8="Софт-тач light",3819.2))+IF(B15="Матільда",IF($C$8="Софт-тач deep",3940.2))+IF(B15="Матільда",IF($C$8="Глянець",3840.2))+IF(B15="Матільда",IF($C$8="Перламутр",4390.4))+IF(B15="Аманда",IF($C$8="Напівмат",2758.8))+IF(B15="Аманда",IF($C$8="Софт-тач light",3066.8))+IF(B15="Аманда",IF($C$8="Софт-тач deep",3187.8))+IF(B15="Аманда",IF($C$8="Глянець",3017.3))+IF(B15="Аманда",IF($C$8="Перламутр",3449.6))+IF(B15="Прованс",IF($C$8="Напівмат",3511.2))+IF(B15="Прованс",IF($C$8="Софт-тач light",3819.2))+IF(B15="Прованс",IF($C$8="Софт-тач deep",3940.2))+IF(B15="Прованс",IF($C$8="Глянець",3840.2))+IF(B15="Прованс",IF($C$8="Перламутр",4390.4))+IF(B15="Вілсон",IF($C$8="Напівмат",3511.2))+IF(B15="Вілсон",IF($C$8="Софт-тач light",3819.2))+IF(B15="Вілсон",IF($C$8="Софт-тач deep",3940.2))+IF(B15="Вілсон",IF($C$8="Глянець",0))+IF(B15="Вілсон",IF($C$8="Перламутр",0))+IF(B15="Вітрина Софія+ (без скла)",IF($C$8="Напівмат",2884))+IF(B15="Вітрина Софія+ (без скла)",IF($C$8="Софт-тач light",3192))+IF(B15="Вітрина Софія+ (без скла)",IF($C$8="Софт-тач deep",3313))+IF(B15="Вітрина Софія+ (без скла)",IF($C$8="Глянець",3154))+IF(B15="Вітрина Софія+ (без скла)",IF($C$8="Перламутр",3606.4))+IF(B15="Вітрина в зборі Софія+ (Дек. Решітка)",IF($C$8="Напівмат",5016))+IF(B15="Вітрина в зборі Софія+ (Дек. Решітка)",IF($C$8="Софт-тач light",5324))+IF(B15="Вітрина в зборі Софія+ (Дек. Решітка)",IF($C$8="Софт-тач deep",5445))+IF(B15="Вітрина в зборі Софія+ (Дек. Решітка)",IF($C$8="Глянець",5486))+IF(B15="Вітрина в зборі Софія+ (Дек. Решітка)",IF($C$8="Перламутр",6272))+IF(B15="Пілястра 1",IF($C$8="Напівмат",7110))+IF(B15="Пілястра 1",IF($C$8="Софт-тач light",7418))+IF(B15="Пілястра 1",IF($C$8="Софт-тач deep",7539))+IF(B15="Пілястра 1",IF($C$8="Глянець",7110))+IF(B15="Пілястра 1",IF($C$8="Перламутр",7110))+IF(B15="Пілястра 2",IF($C$8="Напівмат",7110))+IF(B15="Пілястра 2",IF($C$8="Софт-тач light",7418.2))+IF(B15="Пілястра 2",IF($C$8="Софт-тач deep",7539))+IF(B15="Пілястра 2",IF($C$8="Глянець",7110))+IF(B15="Пілястра 2",IF($C$8="Перламутр",7110))+IF(B15="Пілястра 3",IF($C$8="Напівмат",7110))+IF(B15="Пілястра 3",IF($C$8="Софт-тач light",7418.2))+IF(B15="Пілястра 3",IF($C$8="Софт-тач deep",7539.16))+IF(B15="Пілястра 3",IF($C$8="Глянець",7110))+IF(B15="Пілястра 3",IF($C$8="Перламутр",7110))+IF(B15="Пілястра 4",IF($C$8="Напівмат",7110))+IF(B15="Пілястра 4",IF($C$8="Софт-тач light",7418.2))+IF(B15="Пілястра 4",IF($C$8="Софт-тач deep",7539.16))+IF(B15="Пілястра 4",IF($C$8="Глянець",7110))+IF(B15="Пілястра 4",IF($C$8="Перламутр",7110))+IF(B15="Вітрина в зборі Софія+ (Скло Прозоре)",IF($C$8="Напівмат",3762))+IF(B15="Вітрина в зборі Софія+ (Скло Прозоре)",IF($C$8="Софт-тач light",4070))+IF(B15="Вітрина в зборі Софія+ (Скло Прозоре)",IF($C$8="Софт-тач deep",4191))+IF(B15="Вітрина в зборі Софія+ (Скло Прозоре)",IF($C$8="Глянець",4114))+IF(B15="Вітрина в зборі Софія+ (Скло Прозоре)",IF($C$8="Перламутр",4704))+IF(B15="Вітрина в зборі Софія+ (Скло Сатин)",IF($C$8="Напівмат",3762))+IF(B15="Вітрина в зборі Софія+ (Скло Сатин)",IF($C$8="Софт-тач light",4070))+IF(B15="Вітрина в зборі Софія+ (Скло Сатин)",IF($C$8="Софт-тач deep",4191))+IF(B15="Вітрина в зборі Софія+ (Скло Сатин)",IF($C$8="Глянець",4114))+IF(B15="Вітрина в зборі Софія+ (Скло Сатин)",IF($C$8="Перламутр",4704))+IF(B15="Вітрина з вибіркою Софія+ (без скла)",IF($C$8="Напівмат",3135))+IF(B15="Вітрина з вибіркою Софія+ (без скла)",IF($C$8="Софт-тач light",3443))+IF(B15="Вітрина з вибіркою Софія+ (без скла)",IF($C$8="Софт-тач deep",3564))+IF(B15="Вітрина з вибіркою Софія+ (без скла)",IF($C$8="Глянець",3428))+IF(B15="Вітрина з вибіркою Софія+ (без скла)",IF($C$8="Перламутр",3920))+IF(B15="Фарбування на замовлення",IF($C$8="Напівмат",1457))+IF(B15="Фарбування на замовлення",IF($C$8="Софт-тач light",1810))+IF(B15="Фарбування на замовлення",IF($C$8="Софт-тач deep",1931))+IF(B15="Фарбування на замовлення",IF($C$8="Глянець",1648))+IF(B15="Фарбування на замовлення",IF($C$8="Перламутр",1886))+IF(B15="Декоративна Решітка",IF($C$8="Напівмат",2372))+IF(B15="Декоративна Решітка",IF($C$8="Софт-тач light",2680))+IF(B15="Декоративна Решітка",IF($C$8="Софт-тач deep",2801))+IF(B15="Декоративна Решітка",IF($C$8="Глянець",2372))+IF(B15="Декоративна Решітка",IF($C$8="Перламутр",2372))+IF(B15="Послуга за виконання нестандартних фрезирувань",IF($C$8="Напівмат",450))+IF(B15="Послуга за виконання нестандартних фрезирувань",IF($C$8="Глянець",450))+IF(B15="Послуга за виконання нестандартних фрезирувань",IF($C$8="Перламутр",450))+IF(B15="Послуга за виконання нестандартних фрезирувань",IF($C$8="Софт-тач light",450))+IF(B15="Послуга за виконання нестандартних фрезирувань",IF($C$8="Софт-тач deep",450)) -> 0 | J15: 0 | L15: Аманда
A16: 3 | H16: 0 | I16: 0 | J16: 0 | L16: Візель
A17: 4 | H17: 0 | I17: 0 | J17: 0 | L17: Вілсон
A18: 5 | H18: 0 | I18: 0 | J18: 0 | L18: Вінтаж +
A19: 6 | H19: 0 | I19: 0 | J19: 0 | L19: Вікі
A20: 7 | H20: 0 | I20: 0 | J20: 0 | L20: Доміні
A21: 8 | H21: =((E21*F21)/1000000)*G21 -> 0 | I21: 0 | J21: 0 | L21: Емілія
A22: 9 | H22: 0 | I22: 0 | J22: 0 | L22: Максі
A23: 10 | H23: 0 | I23: 0 | J23: 0 | L23: Матільда
A24: 11 | H24: 0 | I24: 0 | J24: 0 | L24: Мелвін
A25: 12 | H25: 0 | I25: 0 | J25: 0 | L25: Мілена
A26: 13 | H26: 0 | I26: 0 | J26: 0 | L26: Мішель
A27: 14 | H27: 0 | I27: 0 | J27: 0 | L27: Прованс
A28: 15 | H28: 0 | I28: 0 | J28: 0 | L28: Прованс з патиною
A29: 16 | H29: 0 | I29: 0 | J29: 0 | L29: Валенсія +
A30: 17 | H30: 0 | I30: 0 | J30: 0 | L30: Радіусне Закінчення Софія+ (Зовнішнє)
A31: 18 | H31: 0 | I31: 0 | J31: 0 | L31: Радіусне Закінчення Софія+ (Внутрішнє Верх)
A32: 19 | H32: 0 | I32: 0 | J32: 0 | L32: Радіусне Закінчення Софія+(Внутрішнє Низ)
A33: 20 | H33: 0 | I33: 0 | J33: 0 | L33: Радіусне Закінчення Міленіум+ (Зовнішнє)
A34: 21 | H34: 0 | I34: 0 | J34: 0 | L34: Радіусне Закінчення Візель (Зовнішнє)
A35: 22 | H35: 0 | I35: 0 | J35: 0 | L35: Радіусне Закінчення Вінтаж+ (Зовнішнє)
A36: 23 | H36: 0 | I36: 0 | J36: 0 | L36: Радіусний Цоколь
A37: 24 | H37: 0 | I37: 0 | J37: 0 | L37: Вітрина Софія+ (без скла)
A38: 25 | H38: 0 | I38: 0 | J38: 0 | L38: Вітрина з вибіркою Софія+ (без скла)
A39: 26 | H39: 0 | I39: 0 | J39: 0 | L39: Вітрина в зборі Софія+ (Скло Прозоре)
A40: 27 | H40: 0 | I40: 0 | J40: 0 | L40: Вітрина в зборі Софія+ (Скло Сатин)
A41: 28 | H41: 0 | I41: 0 | J41: 0 | L41: Вітрина в зборі Софія+ (Дек. Решітка)
A42: 29 | H42: 0 | I42: 0 | J42: 0 | L42: Пілястра 1
A43: 30 | H43: 0 | I43: 0 | J43: 0 | L43: Пілястра 2
A44: Увага!!!Замовлення дається в роботу тільки після повної оплати. | L44: Пілястра 3
A45: Примітки: | L45: Пілястра 4
L46: Декоративна Решітка
A47: Загальна площа деталей: | E47: =SUM(H14:H43) -> 0 | L47: Послуга за виконання нестандартних фрезирувань
A48: Сума замовлення без знижки: | E48: =SUM(J14:J43) -> 0 | L48: Карниз 2,8м
A49: Сума замовлення зі знижкою: % | L49: Карниз 1,4м
L50: Карниз Люкс 2,8м
A51: Термін виконання замовлення: | D51: 15 робочих днів | G51: Підпис (замовника): | L51: Карниз Люкс 1,4м
L52: Фарбування на замовлення
A53: Орієнтовна дата доставки: | G53: Підпис (менеджера): | I53: Ковальчук Г. | L53: Радіусний Горизонтальний Фасад
L54: S-подібний Фасад
A55: Інформація для споживачів | L55: Кріплення до цокольної планки 2,0м(4шт)
L56: Кріплення до цокольної планки 2,6м(5шт)
A57: Загальні критерії оцінювання якості продукції
A58: Допустимі норми якості лицевої сторони деталей, які не вважаються браком:
A59: 1) На всіх видах фрезерованих фасадів, всередині фрезерування і на торцях допускаються нерівності у вигляді шагрені, зумовлені внутрішньою структурою МДФ і неможливістю шліфування (вирівнювання) даної поверхні.
A62: 2) На лицевій стороні голограми (кругові подряпини) з глянцевим покриттям – допускаються, але тільки невидимі при денному світлі, при фронтальному огляді з відстані 0,5м протягом 10 секунд.
A63: 3) При повторному замовленні одного й того самого кольору існує можливість неспівпадіння відтінків!
A64: 4) На радіусних виробах допуск на хорду + / - 3мм. Площинність + / - 3мм. Висоту, яка перпендикулярна площині +/- 3мм. Звертаємо Вашу увагу, що радіусні вироби можуть мати відхилення від розмірів, зазначених у прайсі. Тому рекомендуємо виготовляти сполучені з ними деталі тільки при отриманні Вами даного виробу. 5). На радіусних фасадах профіль фрезерування може незначно відрізнятися від профілю на прямому фасаді.
A71: Допуски по викривленню (відхиленню по площинності): 1). Довжиною та шириною більше 300мм і менше 600мм — 0,4мм. 2). Довжиною більше 600мм і шириною менше 600мм — 2,0мм. 3). Довжиною та шириною більше 600м — 3,5мм.
A72: Недопустимо:
A73: 1) Невідповідність кольору деталі каталогу RAL K7.
A74: 2) Нерівномірність розподілу фарби на деталі.
A75: 3) Малі подряпини загальною довжиною більше 5мм, які видимі при фронтальному перегляді з відстані 1м.
A77: 4) Точкові включення (вкраплення), точкові здуття з радіусом більше 3 мм, видимі при фронтальному огляді з відстані 0,5 м протягом 10 секунд.
A79: 5) На лицевій стороні голограми (кругові подряпини) з матовим покриттям.
A80: 6) Потьоки фарби та лаку товщиною більше 0,5мм.
A81: 7) Кратери, сколи, вм`ятини та проколи глибиною більше 2мм і довжиною більше 2мм (допускається не більше 2-ох на 0,3м2)
A83: Внутрішня сторона:
A84: 1) Відколи ламінату більше 1,5мм (не більше 2-ох сколів на виробі площею 0,3 м2); дрібні подряпини, видимі з відстані 0,5м при фронтальному огляді. 2) Допускаються сліди реставрації сколів ламінату, не 2-ох на 0,3м2. 3) При двосторонньому фарбуванні на тильній стороні виробу допускаються дрібні подряпини (до 2см), що не порушують цілісного сприйняття покриття.
A88: Гарантійні обов'язки та рекламації
A89: 1) Виробник меблевих деталей приймає на себе гарантійні зобов'язання протягом 24 місяців з моменту виготовлення виробів, при дотриманні умов транспортування, зберігання, збирання і правил експлуатації виробів.
A92: 2) Претензії за якістю приймаються в межах дії гарантійного терміну за місцем покупки виробів з пред'явленням бланка замовлення на вироби.
A94: 3) У гарантійні зобов'язання входить усунення на виробах недоліків, які виникли з вини виробника, або заміна виробів з виявленим виробничим браком.
A96: Гарантія не поширюється на дефекти, спричинені у наступний спосіб: • При наявності механічних пошкоджень, що виникли під час вантажно-розвантажувальних робіт, транспортуванні, зберіганні, монтажі. • При наявності на деталях слідів дії підвищених температур, агресивних рідин або абразивних матеріалів. • При наявності пошкоджень, викликаних природним зносом виробу. • При пошкодженнях, що виникли внаслідок порушення правил експлуатації або використання виробів не за призначенням. • У разі навмисного псування виробу.
A104: Правила експлуатації виробів МДФ
A105: Вироби МДФ зберігають свої експлуатаційні характеристики, при дотриманні наступних умов: - Температура експлуатації від +10 до +40 ° С. - Уникати потрапляння прямих сонячних променів. - Відносна вологість повітря 40-80%. - Перед початком роботи з готовими фасадами в холодний період часу (при низьких температурах) необхідно дати можливість продукції досягти температури (+18 º С) і перебувати в таких умовах як мінімум протягом однієї доби. Зберігати готову продукцію рекомендується в горизонтальному положенні. - Щоб уникнути пошкодження виробів в результаті впливу високих температур,необхідно залишати відстань між електричною або газовою плитою та меблями не менше 60 мм. - Знімати захисну плівку (при наявності такої), тільки після остаточної установки меблів. - Не використовувати в дизайні меблів освітлювальні прилади, розташовані від поверхні виробів на відстані менше 300 мм. - Можлива деформація і зміна кольору.
A117: Фасади на замовлення Маршрутний лист для виробництва | N117: Матеріали | O117: Характиристики
N118: Білий/Білий
A119: 1.Форматно-розкрійний центр | N119: Білий/Шліфований | Q119: 4. Зборочний цех
A120: № | B120: Номенклатура | D120: Матеріал | F120: Характеристика | H120: Розмір деталі в різку,мм | J120: К-сть,шт | Q120: № | R120: Номенклатура | T120: Розмір після фрезеровки,мм | X120: К-сть,шт | Y120: Тип наповнення фасаду
H121: Довжина | I121: Ширина | T121: Довжина | V121: Ширина
A122: 1 | B122: =B14 -> 0 | D122: =IF(H122>0,$C$7,0) -> 0 | F122: =IF(H122>0,$N$118,0) -> 0 | H122: =IF(AND(E14>=$M$125,F14>=$M$125),E14+2,E14) -> 0 | I122: =IF(AND(F14>=$M$125,E14>=$M$125),F14+2,F14) -> 0 | J122: =G14 -> 0 | Q122: 1 | R122: =B14 -> 0 | T122: =E14-117 -> -117 | V122: =F14-117 -> -117 | X122: =G14 -> 0 | Y122: =IF(T122>0,$C$10,0) -> 0
A123: 2 | B123: 0 | D123: =IF(H123>0,$C$7,0) -> 0 | F123: 0 | H123: 0 | I123: 0 | J123: 0 | Q123: 2 | R123: 0 | T123: =E15-117 -> -117 | V123: =F15-117 -> -117 | X123: 0 | Y123: =IF(T123>0,$C$10,0) -> 0
A124: 3 | B124: 0 | D124: 0 | F124: 0 | H124: 0 | I124: 0 | J124: 0 | Q124: 3 | R124: 0 | T124: -117 | V124: -117 | X124: 0 | Y124: 0
A125: 4 | B125: 0 | D125: 0 | F125: 0 | H125: 0 | I125: 0 | J125: 0 | M125: 101 | Q125: 4 | R125: 0 | T125: -117 | V125: -117 | X125: 0 | Y125: 0
A126: 5 | B126: 0 | D126: 0 | F126: 0 | H126: 0 | I126: 0 | J126: 0 | Q126: 5 | R126: 0 | T126: -117 | V126: -117 | X126: 0 | Y126: 0
A127: 6 | B127: 0 | D127: 0 | F127: 0 | H127: 0 | I127: 0 | J127: 0 | Q127: 6 | R127: 0 | T127: -117 | V127: -117 | X127: 0 | Y127: 0
A128: 7 | B128: 0 | D128: 0 | F128: 0 | H128: 0 | I128: 0 | J128: 0 | Q128: 7 | R128: 0 | T128: -117 | V128: -117 | X128: 0 | Y128: 0
A129: 8 | B129: 0 | D129: 0 | F129: 0 | H129: 0 | I129: 0 | J129: 0 | Q129: 8 | R129: 0 | T129: -117 | V129: -117 | X129: 0 | Y129: 0
A130: 9 | B130: 0 | D130: 0 | F130: 0 | H130: 0 | I130: 0 | J130: 0 | Q130: 9 | R130: 0 | T130: -117 | V130: -117 | X130: 0 | Y130: 0
A131: 10 | B131: 0 | D131: 0 | F131: 0 | H131: 0 | I131: 0 | J131: 0 | Q131: 10 | R131: 0 | T131: -117 | V131: -117 | X131: 0 | Y131: 0
A132: 11 | B132: 0 | D132: 0 | F132: 0 | H132: 0 | I132: 0 | J132: 0 | Q132: 11 | R132: 0 | T132: -117 | V132: -117 | X132: 0 | Y132: 0
A133: 12 | B133: 0 | D133: 0 | F133: 0 | H133: 0 | I133: 0 | J133: 0 | Q133: 12 | R133: 0 | T133: -117 | V133: -117 | X133: 0 | Y133: 0
A134: 13 | B134: 0 | D134: 0 | F134: 0 | H134: 0 | I134: 0 | J134: 0 | Q134: 13 | R134: 0 | T134: -117 | V134: -117 | X134: 0 | Y134: 0
A135: 14 | B135: 0 | D135: 0 | F135: =IF(H135>0,$N$118,0) -> 0 | H135: 0 | I135: 0 | J135: 0 | Q135: 14 | R135: 0 | T135: -117 | V135: -117 | X135: 0 | Y135: 0
A136: 15 | B136: 0 | D136: 0 | F136: 0 | H136: 0 | I136: 0 | J136: 0 | Q136: 15 | R136: 0 | T136: -117 | V136: -117 | X136: 0 | Y136: 0
A137: 16 | B137: 0 | D137: 0 | F137: 0 | H137: 0 | I137: 0 | J137: 0 | Q137: 16 | R137: 0 | T137: -117 | V137: -117 | X137: 0 | Y137: 0
A138: 17 | B138: 0 | D138: 0 | F138: 0 | H138: 0 | I138: 0 | J138: 0 | Q138: 17 | R138: 0 | T138: -117 | V138: -117 | X138: 0 | Y138: 0
A139: 18 | B139: 0 | D139: 0 | F139: 0 | H139: 0 | I139: 0 | J139: 0 | Q139: 18 | R139: 0 | T139: -117 | V139: -117 | X139: 0 | Y139: 0
A140: 19 | B140: 0 | D140: 0 | F140: 0 | H140: 0 | I140: 0 | J140: 0 | Q140: 19 | R140: 0 | T140: -117 | V140: -117 | X140: 0 | Y140: 0
A141: 20 | B141: 0 | D141: 0 | F141: 0 | H141: 0 | I141: 0 | J141: 0 | Q141: 20 | R141: 0 | T141: -117 | V141: -117 | X141: 0 | Y141: 0
A142: 21 | B142: 0 | D142: 0 | F142: 0 | H142: 0 | I142: 0 | J142: 0 | Q142: 21 | R142: 0 | T142: -117 | V142: -117 | X142: 0 | Y142: 0
A143: 22 | B143: 0 | D143: 0 | F143: 0 | H143: 0 | I143: 0 | J143: 0 | Q143: 22 | R143: 0 | T143: -117 | V143: -117 | X143: 0 | Y143: 0
A144: 23 | B144: 0 | D144: 0 | F144: 0 | H144: 0 | I144: 0 | J144: 0 | Q144: 23 | R144: 0 | T144: -117 | V144: -117 | X144: 0 | Y144: 0
A145: 24 | B145: 0 | D145: 0 | F145: 0 | H145: 0 | I145: 0 | J145: 0 | Q145: 24 | R145: 0 | T145: -117 | V145: -117 | X145: 0 | Y145: 0
A146: 25 | B146: 0 | D146: 0 | F146: 0 | H146: 0 | I146: 0 | J146: 0 | Q146: 25 | R146: 0 | T146: -117 | V146: -117 | X146: 0 | Y146: 0
A147: 26 | B147: 0 | D147: 0 | F147: 0 | H147: 0 | I147: 0 | J147: 0 | Q147: 26 | R147: 0 | T147: -117 | V147: -117 | X147: 0 | Y147: 0
A148: 27 | B148: 0 | D148: 0 | F148: 0 | H148: 0 | I148: 0 | J148: 0 | Q148: 27 | R148: 0 | T148: -117 | V148: -117 | X148: 0 | Y148: 0
A149: 28 | B149: 0 | D149: 0 | F149: 0 | H149: 0 | I149: 0 | J149: 0 | Q149: 28 | R149: 0 | T149: -117 | V149: -117
A150: 29 | B150: 0 | D150: 0 | F150: 0 | H150: 0 | I150: 0 | J150: 0 | Q150: 29 | R150: 0 | T150: -117 | V150: -117
A151: 30 | B151: 0 | D151: 0 | F151: 0 | H151: 0 | I151: 0 | J151: 0 | Q151: 30 | R151: =B41 -> 0 | T151: -117 | V151: -117 | X151: =G41 -> 0 | Y151: 0
F152: Перевірив:___________________ | J152: =SUM(J122:J151) -> 0 | Q152: Виконав:______________________________ | X152: =SUM(X122:X151) -> 0 | Y152: Перевірив: Струтинський Ігор
A153: 2.Фрезерувальний центр
A154: № | B154: Номенклатура | D154: Розмір після фрезеровки,мм | H154: К-сть,шт | I154: Тип Фрези | J154: T
D155: Довжина | F155: Ширина
A156: 1 | B156: =B14 -> 0 | D156: =E14 -> 0 | F156: =F14 -> 0 | H156: =G14 -> 0 | I156: =D14 -> 0 | J156: =K14 -> 0
A157: 2 | B157: 0 | D157: 0 | F157: 0 | H157: 0 | I157: =D15 -> 0 | J157: 0
A158: 3 | B158: 0 | D158: 0 | F158: 0 | H158: 0 | I158: =D16 -> 0 | J158: 0
A159: 4 | B159: 0 | D159: 0 | F159: 0 | H159: 0 | I159: 0 | J159: 0
A160: 5 | B160: 0 | D160: 0 | F160: 0 | H160: 0 | I160: 0 | J160: 0
A161: 6 | B161: 0 | D161: 0 | F161: 0 | H161: 0 | I161: 0 | J161: 0
A162: 7 | B162: 0 | D162: 0 | F162: 0 | H162: 0 | I162: 0 | J162: 0
A163: 8 | B163: 0 | D163: =E21 -> 0 | F163: 0 | H163: 0 | I163: 0 | J163: 0
A164: 9 | B164: 0 | D164: 0 | F164: 0 | H164: 0 | I164: 0 | J164: 0
A165: 10 | B165: 0 | D165: 0 | F165: 0 | H165: 0 | I165: 0 | J165: 0
A166: 11 | B166: 0 | D166: 0 | F166: 0 | H166: 0 | I166: 0 | J166: 0
A167: 12 | B167: 0 | D167: 0 | F167: 0 | H167: 0 | I167: 0 | J167: 0
A168: 13 | B168: 0 | D168: 0 | F168: 0 | H168: 0 | I168: 0 | J168: 0
A169: 14 | B169: 0 | D169: 0 | F169: 0 | H169: 0 | I169: 0 | J169: 0
A170: 15 | B170: 0 | D170: =E28 -> 0 | F170: 0 | H170: 0 | I170: 0 | J170: 0
A171: 16 | B171: 0 | D171: 0 | F171: 0 | H171: 0 | I171: 0 | J171: 0
A172: 17 | B172: 0 | D172: 0 | F172: 0 | H172: 0 | I172: 0 | J172: 0
A173: 18 | B173: 0 | D173: 0 | F173: 0 | H173: 0 | I173: 0 | J173: 0
A174: 19 | B174: 0 | D174: 0 | F174: 0 | H174: 0 | I174: 0 | J174: 0
A175: 20 | B175: 0 | D175: 0 | F175: 0 | H175: 0 | I175: 0 | J175: 0
A176: 21 | B176: 0 | D176: 0 | F176: 0 | H176: 0 | I176: 0 | J176: 0
A177: 22 | B177: 0 | D177: 0 | F177: 0 | H177: 0 | I177: 0 | J177: 0
A178: 23 | B178: 0 | D178: 0 | F178: 0 | H178: 0 | I178: 0 | J178: 0
A179: 24 | B179: 0 | D179: =E37 -> 0 | F179: 0 | H179: 0 | I179: 0 | J179: =K37 -> 0
A180: 25 | B180: 0 | D180: =E38 -> 0 | F180: 0 | H180: 0 | I180: 0 | J180: 0
A181: 26 | B181: 0 | D181: 0 | F181: 0 | H181: 0 | I181: 0 | J181: 0
A182: 27 | B182: 0 | D182: 0 | F182: 0 | H182: 0 | I182: 0 | J182: 0
A183: 28 | B183: 0 | D183: 0 | F183: 0 | H183: 0 | I183: 0 | J183: 0
A184: 29 | B184: 0 | D184: 0 | F184: 0 | H184: 0 | I184: 0 | J184: 0
A185: 30 | B185: 0 | D185: 0 | F185: 0 | H185: 0 | I185: 0 | J185: 0
A186: Перевірив:______________________________ | H186: =SUM(H156:H185) -> 0
A188: Фасади на замовлення Маршрутний лист для виробництва | I188: =C8&C9 -> 
A190: 3.Карусельний цех
A191: № | B191: Номенклатура | D191: Розмір деталі,мм | H191: К-сть шт | I191: Двостороннє фарбування
D192: Довжина | F192: Ширина
A193: 1 | B193: =B14 -> 0 | D193: =E14 -> 0 | F193: =F14 -> 0 | H193: =G14 -> 0
A194: 2 | B194: 0 | D194: =E15 -> 0 | F194: 0 | H194: 0
A195: 3 | B195: 0 | D195: 0 | F195: 0 | H195: 0
A196: 4 | B196: 0 | D196: 0 | F196: 0 | H196: 0
A197: 5 | B197: 0 | D197: 0 | F197: 0 | H197: 0
A198: 6 | B198: 0 | D198: 0 | F198: 0 | H198: 0
A199: 7 | B199: 0 | D199: 0 | F199: 0 | H199: 0
A200: 8 | B200: 0 | D200: 0 | F200: 0 | H200: 0
A201: 9 | B201: 0 | D201: 0 | F201: 0 | H201: 0
A202: 10 | B202: 0 | D202: 0 | F202: 0 | H202: 0
A203: 11 | B203: 0 | D203: 0 | F203: 0 | H203: 0
A204: 12 | B204: 0 | D204: 0 | F204: 0 | H204: 0
A205: 13 | B205: 0 | D205: 0 | F205: 0 | H205: 0
A206: 14 | B206: 0 | D206: 0 | F206: 0 | H206: 0
A207: 15 | B207: 0 | D207: 0 | F207: 0 | H207: 0
A208: 16 | B208: 0 | D208: 0 | F208: 0 | H208: 0
A209: 17 | B209: 0 | D209: 0 | F209: 0 | H209: 0
A210: 18 | B210: 0 | D210: 0 | F210: 0 | H210: 0
A211: 19 | B211: 0 | D211: 0 | F211: 0 | H211: 0
A212: 20 | B212: 0 | D212: 0 | F212: 0 | H212: 0
A213: 21 | B213: 0 | D213: 0 | F213: 0 | H213: 0
A214: 22 | B214: 0 | D214: 0 | F214: 0 | H214: 0
A215: 23 | B215: 0 | D215: 0 | F215: 0 | H215: 0
A216: 24 | B216: 0 | D216: 0 | F216: 0 | H216: 0
A217: 25 | B217: 0 | D217: 0 | F217: 0 | H217: 0
A218: 26 | B218: 0 | D218: 0 | F218: 0 | H218: 0
A219: 27 | B219: 0 | D219: 0 | F219: 0 | H219: 0
A220: 28 | B220: 0 | D220: 0 | F220: 0 | H220: 0
A221: 29 | B221: 0 | D221: 0 | F221: 0 | H221: 0
A222: 30 | B222: 0 | D222: 0 | F222: 0 | H222: 0
A223: Перевірив:______________________________ | H223: =SUM(H193:H222) -> 0
A224: 4.Упаковочний цех
A225: № пачки | B225: Порядкові № деталей | E225: К-сть деталей в пачці | G225: Загальна площа деталей: | J225: =E47 -> 0
A226: 1
A228: 2
A230: 3
A232: 4 | E232: 0
A234: 5
A236: 6
A238: 7
A240: 8
A242: 9
A244: 10
A247: Виконав:______________________________ | G247: Перевірив:_______________________
A252: Відправлення:_________________ | H252: Підпис:__________________
A259: Колір
A260: RAL 1000
... 217 more rows

Sheet Вінтаж+ (hidden)
C1: Вінтаж + (тільки напівмат)
C2: Номенклатура | D2: Довжина, мм | E2: Ширина, мм | F2: К-сть на 1 комплект | G2: Площа,м2 | H2: Ціна | I2: Сума | J2: Площа замовлення | K2: К-сть, шт
B3: Верхні секції | C3: Кухонна секція Вінтаж верхня 20В 720мм (20В/720) | D3: 715 | E3: 196 | F3: 1 | G3: =(D3*E3)/1000000*F3 -> 0.14014 | H3: 42.55 | I3: =H3*J3 -> 0 | J3: =G3*K3 -> 0 | K3: 0
C4: Кухонна секція Вінтаж верхня 30В 720мм (30В/720) | D4: 715 | E4: 296 | F4: 1 | G4: =(D4*E4)/1000000*F4 -> 0.21164 | H4: 42.55 | I4: =H4*J4 -> 0 | J4: =G4*K4 -> 0 | K4: 0
C5: Кухонна секція Вінтаж верхня 30В 900мм (30В/900) | D5: 895 | E5: 296 | F5: 1 | K5: 0
C6: Кухонна секція Вінтаж верхня 30В Закінчення Радіусне 720мм (30ВЗР/720) | D6: 715 | E6: 448 | F6: 1 | G6: 0.32032 | H6: 42.55 | I6: 0 | J6: 0 | K6: 0
C7: Кухонна секція Вінтаж верхня 40В 720мм (40В/720) | D7: 715 | E7: 396 | F7: 1 | G7: 0.28314 | H7: 42.55 | I7: 0 | J7: 0 | K7: 0
C8: Кухонна секція Вінтаж верхня 40В 900мм (40В/900) | D8: 895 | E8: 396 | F8: 1 | G8: 0.35442 | K8: 0
C9: Кухонна секція Вінтаж верхня 45В 720мм (45В/720) | D9: 715 | E9: 446 | F9: 1 | G9: 0.31889 | H9: 42.55 | I9: 0 | J9: 0 | K9: 0
C10: Кухонна секція Вінтаж верхня 50В 360мм (50В/360) | D10: 356 | E10: 496 | F10: 1 | G10: 0.176576 | H10: 42.55 | I10: 0 | J10: 0 | K10: 0
C11: Кухонна секція Вінтаж верхня 50В 720мм (50В/720) | D11: 715 | E11: 496 | F11: 1 | G11: 0.35464 | H11: 42.55 | I11: 0 | J11: 0 | K11: 0
C12: Кухонна секція Вінтаж верхня 50В 900мм (50В/900 | D12: 895 | E12: 496 | F12: 1 | G12: 0.44392 | K12: 0
C13: Кухонна секція Вінтаж верхня 60В 360мм (60В/360) | D13: 356 | E13: 596 | F13: 1 | G13: 0.212176 | H13: 42.55 | I13: 0 | J13: 0 | K13: 0
C14: Кухонна секція Вінтаж верхня 60В 720мм (60В/720) | D14: 715 | E14: 296 | F14: 2 | G14: 0.42328 | H14: 42.55 | I14: 0 | J14: 0 | K14: 0
C15: Кухонна секція Вінтаж верхня 60В 900мм (60В/900) | D15: 895 | E15: 296 | F15: 2 | G15: 0.52984 | K15: 0
C16: Кухонна секція Вінтаж верхня 60В Горизонтальна 720мм (60ВГ/720) | D16: 356 | E16: 596 | F16: 2 | G16: 0.424352 | H16: 42.55 | I16: 0 | J16: =G16*K16 -> 0 | K16: 0
C17: Кухонна секція Вінтаж верхня 60В Під витяжку телескоп 510мм (60ВВТ/510) | D17: 505 | E17: 596 | F17: 1 | G17: 0.30098 | H17: 42.55 | I17: 0 | J17: 0 | K17: 0
C18: Кухонна секція Вінтаж верхня 80В 360мм (80В/360) | D18: 356 | E18: 796 | F18: 1 | G18: 0.283376 | H18: 42.55 | I18: 0 | J18: 0 | K18: 0
C19: Кухонна секція Вінтаж верхня 80В 720мм (80В/720) | D19: 715 | E19: 396 | F19: 2 | G19: 0.56628 | H19: 42.55 | I19: 0 | J19: 0 | K19: 0
C20: Кухонна секція Вінтаж верхня 80В 900мм (80В/900) | D20: 895 | E20: 396 | F20: 2 | G20: 0.70884 | K20: 0
C21: Кухонна секція Вінтаж верхня 80В Горизонтальна 720мм (80ВГ/720) | D21: 356 | E21: 796 | F21: 2 | G21: 0.566752 | H21: 42.55 | I21: 0 | J21: 0 | K21: 0
C22: Кухонна секція Вінтаж верхня 90В Кут 900мм (90ВК/900) | D22: 895 | E22: 396 | F22: 1 | G22: 0.35442 | K22: 0
C23: Кухонна секція Вінтаж верхня 90В Кут 600х600 720мм (90ВК/720) | D23: 715 | E23: 396 | F23: 1 | G23: 0.28314 | H23: 42.55 | I23: 0 | J23: 0 | K23: 0
B24: Нижні секції | C24: Кухонна секція Вінтаж нижня 20Н Карго 820мм (20НК/820) | D24: 715 | E24: 196 | F24: 1 | G24: 0.14014 | H24: 42.55 | I24: 0 | J24: 0 | K24: 0
C25: Кухонна секція Вінтаж нижня 30Н 820мм (30Н/820) | D25: 715 | E25: 296 | F25: 1 | G25: 0.21164 | H25: 42.55 | I25: 0 | J25: 0 | K25: 0
C26: Кухонна секція Вінтаж нижня 30Н Закінчення Радіусне 820мм (30НЗР/820) | D26: 715 | E26: 448 | F26: 1 | G26: 0.32032 | H26: 42.55 | I26: 0 | J26: 0 | K26: 0
D27: 720 | E27: 250 | F27: 1 | G27: 0.18 | H27: 42.55 | I27: 0 | J27: 0 | K27: 0
C28: Кухонна секція Вінтаж нижня 40Н 3шх 820мм (40Н3ШХ/820) | D28: 356 | E28: 396 | F28: 1 | G28: 0.140976 | H28: 42.55 | I28: 0 | J28: 0 | K28: 0
D29: 176 | E29: 396 | F29: 2 | G29: 0.139392 | H29: 42.55 | I29: 0 | J29: 0 | K29: 0
C30: Кухонна секція Вінтаж нижня 40Н 820мм (40Н/820) | D30: 715 | E30: 396 | F30: 1 | G30: 0.28314 | H30: 42.55 | I30: 0 | J30: 0 | K30: 0
C31: Кухонна секція Вінтаж нижня 45Н 820мм (45Н/820) | D31: 715 | E31: 446 | F31: 1 | G31: 0.31889 | H31: 42.55 | I31: 0 | J31: 0 | K31: 0
C32: Кухонна секція Вінтаж нижня 50Н 820мм (50Н/820) | D32: 715 | E32: 496 | F32: 1 | G32: 0.35464 | H32: 42.55 | I32: 0 | J32: 0 | K32: 0
C33: Кухонна секція Вінтаж нижня 60Н 2шх 820мм (60Н2ШХ/820) | D33: 356 | E33: 596 | F33: 2 | G33: 0.424352 | H33: 42.55 | I33: 0 | J33: 0 | K33: 0
C34: Кухонна секція Вінтаж нижня 60Н 3шх 820мм (60Н3ШХ/820) | D34: 356 | E34: 596 | F34: 1 | G34: 0.212176 | H34: 42.55 | I34: 0 | J34: 0 | K34: 0
D35: 176 | E35: 596 | F35: 2 | G35: 0.209792 | H35: 42.55 | I35: 0 | J35: 0 | K35: 0
C36: Кухонна секція Вінтаж нижня 60Н 820мм (60Н/820) | D36: 715 | E36: 296 | F36: 2 | G36: 0.42328 | H36: 42.55 | I36: 0 | J36: 0 | K36: 0
C37: Кухонна секція Вінтаж нижня 60Н Духовка 820мм (60НД/820) | D37: 110 | E37: 596 | F37: 1 | G37: 0.06556 | H37: 42.55 | I37: 0 | J37: 0 | K37: 0
C38: Кухонна секція Вінтаж нижня 60Н Мийка 820мм (60НМ/820) | D38: 715 | E38: 296 | F38: 2 | G38: 0.42328 | H38: 42.55 | I38: 0 | J38: 0 | K38: 0
C39: Кухонна секція Вінтаж нижня 80Н 2шх 820мм (80Н2ШХ/820) | D39: 356 | E39: 796 | F39: 2 | G39: 0.566752 | H39: 42.55 | I39: 0 | J39: 0 | K39: 0
C40: Кухонна секція Вінтаж нижня 80Н 820мм (80Н/820) | D40: 715 | E40: 396 | F40: 2 | G40: 0.56628 | H40: 42.55 | I40: 0 | J40: 0 | K40: 0
C41: Кухонна секція Вінтаж нижня 80Н Мийка 820мм (80НМ/820) | D41: 715 | E41: 396 | F41: 2 | G41: 0.56628 | H41: 42.55 | I41: 0 | J41: 0 | K41: 0
C42: Кухонна секція Вінтаж нижня 90Н Кут Прямий 820мм (90НКП/820) | D42: 715 | E42: 396 | F42: 1 | G42: 0.28314 | H42: 42.55 | I42: 0 | J42: 0 | K42: 0
D43: 720 | E43: 34 | F43: 1 | G43: 0.02448 | H43: 42.55 | I43: 0 | J43: 0 | K43: 0
D44: 720 | E44: 550 | F44: 1 | G44: 0.396 | H44: 42.55 | I44: 0 | J44: 0 | K44: 0
C45: Кухонна секція Вінтаж нижня 90Н Кут Трапеція 45° 850х850 820мм (90НКТ/820) | D45: 715 | E45: 466 | F45: 1 | G45: 0.33319 | H45: 42.55 | I45: 0 | J45: 0 | K45: 0
B46: Пенали | C46: Кухонна секція Вінтаж пенал 60P 2156мм (60P/2156) | D46: 1332 | E46: 596 | F46: 1 | G46: 0.793872 | H46: 42.55 | I46: 0 | J46: 0 | K46: 0
D47: 715 | E47: 596 | F47: 1 | G47: 0.42614 | H47: 42.55 | I47: 0 | J47: 0 | K47: 0
C48: Кухонна секція Вінтаж пенал 60P Духовка 2156мм (60РД/2156) | D48: 356 | E48: 596 | F48: 1 | G48: 0.212176 | H48: 42.55 | I48: 0 | J48: 0 | K48: 0
D49: 715 | E49: 596 | F49: 1 | G49: 0.42614 | H49: 42.55 | I49: 0 | J49: 0 | K49: 0
B50: Інше | C50: Кухонна секція Вінтаж Пілястра 5ВНП 720мм (5ВНП/720) | D50: 720 | E50: 50 | F50: 1 | G50: 0.036 | H50: 42.55 | I50: 0 | J50: 0 | K50: 0
C51: Фасад посудомийки Вiнтаж 450х715мм (45ФП/720) | D51: 715 | E51: 446 | F51: 1 | G51: 0.31889 | H51: 42.55 | I51: 0 | J51: 0 | K51: 0
C52: Фасад посудомийки Вiнтаж 600х715мм (60ФП/720) | D52: 715 | E52: 596 | F52: 1 | G52: 0.42614 | H52: 42.55 | I52: 0 | J52: 0 | K52: 0
C54: Загальна площа замовлення в м2 (min 1m2)
C56: =SUM(J3:J52) -> 0
C57: Ціна за м2
C60: Загальна сума, Євро
C62: =C59*C56 -> 0
C63: *Сума без врахування індивідуальних знижок

Sheet Міленіум+ (hidden)
C1: Міленіум +
C2: Номенклатура | D2: Довжина/мм | E2: Ширина/мм | F2: К-сть на 1 комплект | G2: Площа,м2 | H2: Площа замовлення | I2: К-сть
B3: Верхні секції | C3: Кухонна секція Міленіум верхня 20В 720мм (20В/720) ЛІВА | D3: 715 | E3: 196 | F3: 1 | G3: =(D3*E3)/1000000*F3 -> 0.14014 | H3: =G3*I3 -> 0
C4: Кухонна секція Міленіум верхня 20В 720мм (20В/720) ПРАВА | D4: 715 | E4: 196 | F4: 1 | G4: =(D4*E4)/1000000*F4 -> 0.14014 | H4: 0
C5: Кухонна секція Міленіум верхня 30В 720мм (30В/720) ЛІВА | D5: 715 | E5: 296 | F5: 1 | G5: 0.21164 | H5: 0
C6: Кухонна секція Міленіум верхня 30В 720мм (30В/720) ПРАВА | D6: 715 | E6: 296 | F6: 1 | G6: 0.21164 | H6: 0
C7: Кухонна секція Міленіум верхня 30В 900мм (30В/900) ЛІВА | D7: 895 | E7: 296 | F7: 1 | G7: 0.26492 | H7: 0
C8: Кухонна секція Міленіум верхня 30В 900мм (30В/900) ПРАВА | D8: 895 | E8: 296 | F8: 1 | G8: 0.26492 | H8: 0
C9: Кухонна секція Міленіум верхня 40В 720мм (40В/720) ЛІВА | D9: 715 | E9: 396 | F9: 1 | G9: 0.28314 | H9: 0
C10: Кухонна секція Міленіум верхня 40В 720мм (40В/720) ПРАВА | D10: 715 | E10: 396 | F10: 1 | G10: 0.28314 | H10: 0
C11: Кухонна секція Міленіум верхня 40В 900мм (40В/900) ЛІВА | D11: 895 | E11: 396 | F11: 1 | G11: 0.35442 | H11: 0
C12: Кухонна секція Міленіум верхня 40В 900мм (40В/900) ПРАВА | D12: 895 | E12: 396 | F12: 1 | G12: =(D12*E12)/1000000*F12 -> 0.35442 | H12: =G12*I12 -> 0
C13: Кухонна секція Міленіум верхня 45В 720мм (45В/720) ЛІВА | D13: 715 | E13: 446 | F13: 1 | G13: 0.31889 | H13: 0
C14: Кухонна секція Міленіум верхня 45В 720мм (45В/720) ПРАВА | D14: 715 | E14: 446 | F14: 1 | G14: 0.31889 | H14: 0
C15: Кухонна секція Міленіум верхня 50В 360мм (50В/360) | D15: 356 | E15: 496 | F15: 1 | G15: 0.176576 | H15: 0
C16: Кухонна секція Міленіум верхня 50В 720мм (50В/720) ЛІВА | D16: 715 | E16: 496 | F16: 1 | G16: 0.35464 | H16: 0
C17: Кухонна секція Міленіум верхня 50В 720мм (50В/720) ПРАВА | D17: 715 | E17: 496 | F17: 1 | G17: 0.35464 | H17: 0
C18: Кухонна секція Міленіум верхня 50В 900мм (50В/900) ЛІВА | D18: 895 | E18: 496 | F18: 1 | G18: 0.44392 | H18: 0
C19: Кухонна секція Міленіум верхня 50В 900мм (50В/900) ПРАВА | D19: 895 | E19: 496 | F19: 1 | G19: 0.44392 | H19: 0
C20: Кухонна секція Міленіум верхня 60В 360мм (60В/360) | D20: 356 | E20: 596 | F20: 1 | G20: 0.212176 | H20: 0
C21: Кухонна секція Міленіум верхня 60В 720мм (60В/720) | D21: 715 | E21: 296 | F21: 2 | G21: 0.42328 | H21: 0
C22: Кухонна секція Міленіум верхня 60В 900мм (60В/900) | D22: 895 | E22: 296 | F22: 2 | G22: 0.52984 | H22: 0
C23: Кухонна секція Міленіум верхня 60В Горизонтальна 720мм (60ВГ/720) | D23: 356 | E23: 596 | F23: 2 | G23: 0.424352 | H23: 0
C24: Кухонна секція Міленіум верхня 60В Під витяжку Телескоп 510мм (60ВВТ/510) | D24: 506 | E24: 596 | F24: 1 | G24: 0.301576 | H24: 0
C25: Кухонна секція Міленіум верхня 80В 360мм (80В/360) | D25: 356 | E25: 796 | F25: 1 | G25: 0.283376 | H25: 0
C26: Кухонна секція Міленіум верхня 80В 720мм (80В/720) | D26: 715 | E26: 396 | F26: 2 | G26: 0.56628 | H26: 0
C27: Кухонна секція Міленіум верхня 80В 900мм (80В/900) | D27: 895 | E27: 396 | F27: 2 | G27: 0.70884 | H27: 0
C28: Кухонна секція Міленіум верхня 80В Горизонтальна 720мм (80ВГ/720) | D28: 356 | E28: 796 | F28: 2 | G28: 0.566752 | H28: 0
C29: Кухонна секція Міленіум верхня 90В Кут 600х600 720мм (90ВК/720) ЛІВИЙ | D29: 715 | E29: 396 | F29: 1 | G29: 0.28314 | H29: 0
C30: Кухонна секція Міленіум верхня 90В Кут 600х600 720мм (90ВК/720) ПРАВИЙ | D30: 715 | E30: 396 | F30: 1 | G30: 0.28314 | H30: 0
C31: Кухонна секція Міленіум верхня 90В Кут 600х600 900мм (90ВК/900) ЛІВА | D31: 895 | E31: 396 | F31: 1 | G31: 0.35442 | H31: 0
C32: Кухонна секція Міленіум верхня 90В Кут 600х600 900мм (90ВК/900) ПРАВА | D32: 895 | E32: 396 | F32: 1 | G32: 0.35442 | H32: 0
B33: Нижні секції | C33: Кухонна секція Міленіум нижня 20Н Карго 820мм (20НК/820) | D33: 715 | E33: 196 | F33: 1 | G33: 0.14014 | H33: 0
C34: Кухонна секція Міленіум нижня 30Н 820мм (30Н/820) ЛІВА | D34: 715 | E34: 296 | F34: 1 | G34: 0.21164 | H34: 0
C35: Кухонна секція Міленіум нижня 30Н 820мм (30Н/820) ПРАВА | D35: 715 | E35: 296 | F35: 1 | G35: 0.21164 | H35: 0
C36: Кухонна секція Міленіум нижня 40Н 3шх 820мм (40Н3ШХ/820) | D36: 356 | E36: 396 | F36: 1 | G36: 0.140976 | H36: 0
D37: 176 | E37: 396 | F37: 2 | G37: 0.139392 | H37: 0
C38: Кухонна секція Міленіум нижня 40Н 820мм (40Н/820) ЛІВА | D38: 715 | E38: 396 | F38: 1 | G38: 0.28314 | H38: 0
C39: Кухонна секція Міленіум нижня 40Н 820мм (40Н/820) ПРАВА | D39: 715 | E39: 396 | F39: 1 | G39: 0.28314 | H39: 0
C40: Кухонна секція Міленіум нижня 45Н 820мм (45Н/820) ЛІВА | D40: 715 | E40: 446 | F40: 1 | G40: 0.31889 | H40: 0
C41: Кухонна секція Міленіум нижня 45Н 820мм (45Н/820) ПРАВА | D41: 715 | E41: 446 | F41: 1 | G41: 0.31889 | H41: 0
C42: Кухонна секція Міленіум нижня 50Н 820мм (50Н/820) ЛІВА | D42: 715 | E42: 496 | F42: 1 | G42: 0.35464 | H42: 0
C43: Кухонна секція Міленіум нижня 50Н 820мм (50Н/820) ПРАВА | D43: 715 | E43: 496 | F43: 1 | G43: 0.35464 | H43: =G43*I43 -> 0
C44: Кухонна секція Міленіум нижня 60Н 2шх 820мм (60Н2ШХ/820) | D44: 356 | E44: 596 | F44: 2 | G44: 0.424352 | H44: 0
C45: Кухонна секція Міленіум нижня 60Н 3шх 820мм (60Н3ШХ/820) | D45: 356 | E45: 596 | F45: 1 | G45: 0.212176 | H45: 0
D46: 176 | E46: 596 | F46: 2 | G46: 0.209792 | H46: 0
C47: Кухонна секція Міленіум нижня 60Н 820мм (60Н/820) | D47: 715 | E47: 296 | F47: 2 | G47: 0.42328 | H47: 0
C48: Кухонна секція Міленіум нижня 60Н Духовка 820мм (60НД/820) | D48: 110 | E48: 596 | F48: 1 | G48: 0.06556 | H48: 0
C49: Кухонна секція Міленіум нижня 60Н Мийка 820мм (60НМ/820) | D49: 715 | E49: 296 | F49: 2 | G49: 0.42328 | H49: 0
C50: Кухонна секція Міленіум нижня 80Н 2шх 820мм (80Н2ШХ/820) | D50: 356 | E50: 796 | F50: 2 | G50: 0.566752 | H50: 0
C51: Кухонна секція Міленіум нижня 80Н 820мм (80Н/820) | D51: 715 | E51: 396 | F51: 2 | G51: 0.56628 | H51: 0
C52: Кухонна секція Міленіум нижня 80Н Мийка 820мм (80НМ/820) | D52: 715 | E52: 396 | F52: 2 | G52: 0.56628 | H52: 0
C53: Кухонна секція Міленіум нижня 90Н Кут Прямий 550х950 820мм (90НКП/820) ЛІВИЙ | D53: 715 | E53: 396 | F53: 1 | G53: 0.28314 | H53: 0
D54: 720 | E54: 34 | F54: 1 | G54: 0.02448 | H54: 0
D55: 720 | E55: 550 | F55: 1 | G55: 0.396 | H55: 0
C56: Кухонна секція Міленіум нижня 90Н Кут Прямий 550х950 820мм (90НКП/820) ПРАВИЙ | D56: 715 | E56: 396 | F56: 1 | G56: 0.28314 | H56: 0
D57: 720 | E57: 34 | F57: 1 | G57: 0.02448 | H57: 0
D58: 720 | E58: 550 | F58: 1 | G58: 0.396 | H58: 0
C59: Кухонна секція Міленіум нижня 90Н Кут Трапецiя 45° 850х850 820мм (90НКТ/820) ЛІВИЙ | D59: 715 | E59: 466 | F59: 1 | G59: 0.33319 | H59: 0
C60: Кухонна секція Міленіум нижня 90Н Кут Трапецiя 45° 850х850 820мм (90НКТ/820) ПРАВИЙ | D60: 715 | E60: 466 | F60: 1 | G60: 0.33319 | H60: 0
B61: Пенали | C61: Кухонна секція Міленіум пенал 60P 2156мм (60Р/2156) ЛІВИЙ | D61: 1332 | E61: 596 | F61: 1 | G61: 0.793872 | H61: 0
D62: 715 | E62: 596 | F62: 1 | G62: 0.42614 | H62: 0
C63: Кухонна секція Міленіум пенал 60P 2156мм (60Р/2156) ПРАВИЙ | D63: 1332 | E63: 596 | F63: 1 | G63: 0.793872 | H63: 0
D64: 715 | E64: 596 | F64: 1 | G64: 0.42614 | H64: 0
C65: Кухонна секція Міленіум пенал 60P Духовка 2156мм (60РД/2156) ЛІВИЙ | D65: 356 | E65: 596 | F65: 1 | G65: 0.212176 | H65: 0
D66: 715 | E66: 596 | F66: 1 | G66: 0.42614 | H66: 0
C67: Кухонна секція Міленіум пенал 60P Духовка 2156мм (60РД/2156) ПРАВИЙ | D67: 356 | E67: 596 | F67: 1 | G67: 0.212176 | H67: 0
D68: 715 | E68: 596 | F68: 1 | G68: 0.42614 | H68: 0
B69: Інше | C69: Фасад посудомийки Мiленіум 450х720мм (45ФП/720) | D69: 715 | E69: 446 | F69: 1 | G69: 0.31889 | H69: 0
C70: Фасад посудомийки Міленіум 600х720мм (60ФП/720) | D70: 715 | E70: 596 | F70: 1 | G70: 0.42614 | H70: 0
C72: Загальна площа замовлення в м2 (min 1m2)
C74: =SUM(H3:H70) -> 0
C75: Ціна за м2
C78: Загальна сума, Євро
C80: =C74*C77 -> 0
C81: *Сума без врахування індивідуальних знижок

Sheet Розрахунок Вінтаж (hidden)
B1: ХДФ для радіусного фасаду
B2: № | C2: Матеріал | D2: Розмір ХДФ | G2: К-сть.шт | I2: Розмір ХДФ | L2: К-сть.шт
D3: Довжина | F3: Ширина | I3: Довжина | K3: Ширина
B4: 1 | C4: ХДФ 3мм Біла/Шліфована | D4: ='Бланк Замовлення'!E14+2 -> 2 | E4: х | F4: 65 | G4: ='Бланк Замовлення'!G14*2 -> 0 | I4: ='Бланк Замовлення'!F14-128 -> -128 | J4: х | K4: 65 | L4: ='Бланк Замовлення'!G14*2 -> 0
B5: 2 | C5: ХДФ 3мм Біла/Шліфована | D5: ='Бланк Замовлення'!E15+2 -> 2 | E5: х | F5: 65 | G5: ='Бланк Замовлення'!G15*2 -> 0 | I5: ='Бланк Замовлення'!F15-128 -> -128 | J5: х | K5: 65 | L5: ='Бланк Замовлення'!G15*2 -> 0
B6: 3 | C6: ХДФ 3мм Біла/Шліфована | D6: ='Бланк Замовлення'!E16+2 -> 2 | E6: х | F6: 65 | G6: ='Бланк Замовлення'!G16*2 -> 0 | I6: ='Бланк Замовлення'!F16-128 -> -128 | J6: х | K6: 65 | L6: ='Бланк Замовлення'!G16*2 -> 0
B7: 4 | C7: ХДФ 3мм Біла/Шліфована | D7: ='Бланк Замовлення'!E17+2 -> 2 | E7: х | F7: 65 | G7: ='Бланк Замовлення'!G17*2 -> 0 | I7: ='Бланк Замовлення'!F17-128 -> -128 | J7: х | K7: 65 | L7: ='Бланк Замовлення'!G17*2 -> 0
B8: 5 | C8: ХДФ 3мм Біла/Шліфована | D8: ='Бланк Замовлення'!E18+2 -> 2 | E8: х | F8: 65 | G8: ='Бланк Замовлення'!G18*2 -> 0 | I8: ='Бланк Замовлення'!F18-128 -> -128 | J8: х | K8: 65 | L8: ='Бланк Замовлення'!G18*2 -> 0
B9: 6 | C9: ХДФ 3мм Біла/Шліфована | D9: ='Бланк Замовлення'!E19+2 -> 2 | E9: х | F9: 65 | G9: ='Бланк Замовлення'!G19*2 -> 0 | I9: ='Бланк Замовлення'!F19-128 -> -128 | J9: х | K9: 65 | L9: ='Бланк Замовлення'!G19*2 -> 0
B10: 7 | C10: ХДФ 3мм Біла/Шліфована | D10: ='Бланк Замовлення'!E20+2 -> 2 | E10: х | F10: 65 | G10: ='Бланк Замовлення'!G20*2 -> 0 | I10: ='Бланк Замовлення'!F20-128 -> -128 | J10: х | K10: 65 | L10: ='Бланк Замовлення'!G20*2 -> 0
B11: 8 | C11: ХДФ 3мм Біла/Шліфована | D11: ='Бланк Замовлення'!E21+2 -> 2 | E11: х | F11: 65 | G11: ='Бланк Замовлення'!G21*2 -> 0 | I11: ='Бланк Замовлення'!F21-128 -> -128 | J11: х | K11: 65 | L11: ='Бланк Замовлення'!G21*2 -> 0
B12: 9 | C12: ХДФ 3мм Біла/Шліфована | D12: ='Бланк Замовлення'!E22+2 -> 2 | E12: х | F12: 65 | G12: ='Бланк Замовлення'!G22*2 -> 0 | I12: ='Бланк Замовлення'!F22-128 -> -128 | J12: х | K12: 65 | L12: ='Бланк Замовлення'!G22*2 -> 0
B13: 10 | C13: ХДФ 3мм Біла/Шліфована | D13: ='Бланк Замовлення'!E23+2 -> 2 | E13: х | F13: 65 | G13: ='Бланк Замовлення'!G23*2 -> 0 | I13: ='Бланк Замовлення'!F23-128 -> -128 | J13: х | K13: 65 | L13: ='Бланк Замовлення'!G23*2 -> 0
B14: 11 | C14: ХДФ 3мм Біла/Шліфована | D14: ='Бланк Замовлення'!E24+2 -> 2 | E14: х | F14: 65 | G14: ='Бланк Замовлення'!G24*2 -> 0 | I14: ='Бланк Замовлення'!F24-128 -> -128 | J14: х | K14: 65 | L14: ='Бланк Замовлення'!G24*2 -> 0
B15: 12 | C15: ХДФ 3мм Біла/Шліфована | D15: ='Бланк Замовлення'!E25+2 -> 2 | E15: х | F15: 65 | G15: ='Бланк Замовлення'!G25*2 -> 0 | I15: ='Бланк Замовлення'!F25-128 -> -128 | J15: х | K15: 65 | L15: ='Бланк Замовлення'!G25*2 -> 0
B16: 13 | C16: ХДФ 3мм Біла/Шліфована | D16: ='Бланк Замовлення'!E26+2 -> 2 | E16: х | F16: 65 | G16: ='Бланк Замовлення'!G26*2 -> 0 | I16: ='Бланк Замовлення'!F26-128 -> -128 | J16: х | K16: 65 | L16: ='Бланк Замовлення'!G26*2 -> 0
B17: 14 | C17: ХДФ 3мм Біла/Шліфована | D17: ='Бланк Замовлення'!E27+2 -> 2 | E17: х | F17: 65 | G17: ='Бланк Замовлення'!G27*2 -> 0 | I17: ='Бланк Замовлення'!F27-128 -> -128 | J17: х | K17: 65 | L17: ='Бланк Замовлення'!G27*2 -> 0
B18: 15 | C18: ХДФ 3мм Біла/Шліфована | D18: ='Бланк Замовлення'!E28+2 -> 2 | E18: х | F18: 65 | G18: ='Бланк Замовлення'!G28*2 -> 0 | I18: ='Бланк Замовлення'!F28-128 -> -128 | J18: х | K18: 65 | L18: ='Бланк Замовлення'!G28*2 -> 0
B19: 16 | C19: ХДФ 3мм Біла/Шліфована | D19: ='Бланк Замовлення'!E29+2 -> 2 | E19: х | F19: 65 | G19: ='Бланк Замовлення'!G29*2 -> 0 | I19: ='Бланк Замовлення'!F29-128 -> -128 | J19: х | K19: 65 | L19: ='Бланк Замовлення'!G29*2 -> 0
B20: 17 | C20: ХДФ 3мм Біла/Шліфована | D20: ='Бланк Замовлення'!E30+2 -> 2 | E20: х | F20: 65 | G20: ='Бланк Замовлення'!G30*2 -> 0 | I20: ='Бланк Замовлення'!F30-128 -> -128 | J20: х | K20: 65 | L20: ='Бланк Замовлення'!G30*2 -> 0
B21: 18 | C21: ХДФ 3мм Біла/Шліфована | D21: ='Бланк Замовлення'!E31+2 -> 2 | E21: х | F21: 65 | G21: ='Бланк Замовлення'!G31*2 -> 0 | I21: ='Бланк Замовлення'!F31-128 -> -128 | J21: х | K21: 65 | L21: ='Бланк Замовлення'!G31*2 -> 0
B22: 19 | C22: ХДФ 3мм Біла/Шліфована | D22: ='Бланк Замовлення'!E32+2 -> 2 | E22: х | F22: 65 | G22: ='Бланк Замовлення'!G32*2 -> 0 | I22: ='Бланк Замовлення'!F32-128 -> -128 | J22: х | K22: 65 | L22: ='Бланк Замовлення'!G32*2 -> 0
B23: 20 | C23: ХДФ 3мм Біла/Шліфована | D23: ='Бланк Замовлення'!E33+2 -> 2 | E23: х | F23: 65 | G23: ='Бланк Замовлення'!G33*2 -> 0 | I23: ='Бланк Замовлення'!F33-128 -> -128 | J23: х | K23: 65 | L23: ='Бланк Замовлення'!G33*2 -> 0
B24: 21 | C24: ХДФ 3мм Біла/Шліфована | D24: ='Бланк Замовлення'!E34+2 -> 2 | E24: х | F24: 65 | G24: ='Бланк Замовлення'!G34*2 -> 0 | I24: ='Бланк Замовлення'!F34-128 -> -128 | J24: х | K24: 65 | L24: ='Бланк Замовлення'!G34*2 -> 0
B25: 22 | C25: ХДФ 3мм Біла/Шліфована | D25: ='Бланк Замовлення'!E35+2 -> 2 | E25: х | F25: 65 | G25: ='Бланк Замовлення'!G35*2 -> 0 | I25: ='Бланк Замовлення'!F35-128 -> -128 | J25: х | K25: 65 | L25: ='Бланк Замовлення'!G35*2 -> 0
B26: 23 | C26: ХДФ 3мм Біла/Шліфована | D26: ='Бланк Замовлення'!E36+2 -> 2 | E26: х | F26: 65 | G26: ='Бланк Замовлення'!G36*2 -> 0 | I26: ='Бланк Замовлення'!F36-128 -> -128 | J26: х | K26: 65 | L26: ='Бланк Замовлення'!G36*2 -> 0
B27: 24 | C27: ХДФ 3мм Біла/Шліфована | D27: ='Бланк Замовлення'!E37+2 -> 2 | E27: х | F27: 65 | G27: ='Бланк Замовлення'!G37*2 -> 0 | I27: ='Бланк Замовлення'!F37-128 -> -128 | J27: х | K27: 65 | L27: ='Бланк Замовлення'!G37*2 -> 0
B28: 25 | C28: ХДФ 3мм Біла/Шліфована | D28: ='Бланк Замовлення'!E38+2 -> 2 | E28: х | F28: 65 | G28: ='Бланк Замовлення'!G38*2 -> 0 | I28: ='Бланк Замовлення'!F38-128 -> -128 | J28: х | K28: 65 | L28: ='Бланк Замовлення'!G38*2 -> 0
B29: 26 | C29: ХДФ 3мм Біла/Шліфована | D29: ='Бланк Замовлення'!E39+2 -> 2 | E29: х | F29: 65 | G29: ='Бланк Замовлення'!G39*2 -> 0 | I29: ='Бланк Замовлення'!F39-128 -> -128 | J29: х | K29: 65 | L29: ='Бланк Замовлення'!G39*2 -> 0
B30: 27 | C30: ХДФ 3мм Біла/Шліфована | D30: ='Бланк Замовлення'!E40+2 -> 2 | E30: х | F30: 65 | G30: ='Бланк Замовлення'!G40*2 -> 0 | I30: ='Бланк Замовлення'!F40-128 -> -128 | J30: х | K30: 65 | L30: ='Бланк Замовлення'!G40*2 -> 0
B31: 28 | C31: ХДФ 3мм Біла/Шліфована | D31: ='Бланк Замовлення'!E41+2 -> 2 | E31: х | F31: 65 | G31: ='Бланк Замовлення'!G41*2 -> 0 | I31: ='Бланк Замовлення'!F41-128 -> -128 | J31: х | K31: 65 | L31: ='Бланк Замовлення'!G41*2 -> 0
B32: 29 | C32: ХДФ 3мм Біла/Шліфована | D32: ='Бланк Замовлення'!E42+2 -> 2 | E32: х | F32: 65 | G32: ='Бланк Замовлення'!G42*2 -> 0 | I32: ='Бланк Замовлення'!F42-128 -> -128 | J32: х | K32: 65 | L32: ='Бланк Замовлення'!G42*2 -> 0

Sheet Декоративна решітка (hidden)
B1: Декоративна решітка
B2: № | C2: Номенклатура | G2: Довжина | H2: Ширина | I2: К-сть
B3: 1 | C3: Декоративна решітка | G3: ='Бланк Замовлення'!E14-113 -> -113 | H3: ='Бланк Замовлення'!F14-113 -> -113 | I3: ='Бланк Замовлення'!G14 -> 0
B4: 2 | C4: Декоративна решітка | G4: ='Бланк Замовлення'!E15-113 -> -113 | H4: ='Бланк Замовлення'!F15-113 -> -113 | I4: ='Бланк Замовлення'!G15 -> 0
B5: 3 | C5: Декоративна решітка | G5: ='Бланк Замовлення'!E16-113 -> -113 | H5: ='Бланк Замовлення'!F16-113 -> -113 | I5: ='Бланк Замовлення'!G16 -> 0
B6: 4 | C6: Декоративна решітка | G6: ='Бланк Замовлення'!E17-113 -> -113 | H6: ='Бланк Замовлення'!F17-113 -> -113 | I6: ='Бланк Замовлення'!G17 -> 0
B7: 5 | C7: Декоративна решітка | G7: ='Бланк Замовлення'!E18-113 -> -113 | H7: ='Бланк Замовлення'!F18-113 -> -113 | I7: ='Бланк Замовлення'!G18 -> 0
B8: 6 | C8: Декоративна решітка | G8: ='Бланк Замовлення'!E19-113 -> -113 | H8: ='Бланк Замовлення'!F19-113 -> -113 | I8: ='Бланк Замовлення'!G19 -> 0
B9: 7 | C9: Декоративна решітка | G9: ='Бланк Замовлення'!E20-113 -> -113 | H9: ='Бланк Замовлення'!F20-113 -> -113 | I9: ='Бланк Замовлення'!G20 -> 0
B10: 8 | C10: Декоративна решітка | G10: ='Бланк Замовлення'!E21-113 -> -113 | H10: ='Бланк Замовлення'!F21-113 -> -113 | I10: ='Бланк Замовлення'!G21 -> 0
B11: 9 | C11: Декоративна решітка | G11: ='Бланк Замовлення'!E22-113 -> -113 | H11: ='Бланк Замовлення'!F22-113 -> -113 | I11: ='Бланк Замовлення'!G22 -> 0
B12: 10 | C12: Декоративна решітка | G12: ='Бланк Замовлення'!E23-113 -> -113 | H12: ='Бланк Замовлення'!F23-113 -> -113 | I12: ='Бланк Замовлення'!G23 -> 0
B13: 11 | C13: Декоративна решітка | G13: ='Бланк Замовлення'!E24-113 -> -113 | H13: ='Бланк Замовлення'!F24-113 -> -113 | I13: ='Бланк Замовлення'!G24 -> 0
B14: 12 | C14: Декоративна решітка | G14: ='Бланк Замовлення'!E25-113 -> -113 | H14: ='Бланк Замовлення'!F25-113 -> -113 | I14: ='Бланк Замовлення'!G25 -> 0
B15: 13 | C15: Декоративна решітка | G15: ='Бланк Замовлення'!E26-113 -> -113 | H15: ='Бланк Замовлення'!F26-113 -> -113 | I15: ='Бланк Замовлення'!G26 -> 0
B16: 14 | C16: Декоративна решітка | G16: ='Бланк Замовлення'!E27-113 -> -113 | H16: ='Бланк Замовлення'!F27-113 -> -113 | I16: ='Бланк Замовлення'!G27 -> 0
B17: 15 | C17: Декоративна решітка | G17: ='Бланк Замовлення'!E28-113 -> -113 | H17: ='Бланк Замовлення'!F28-113 -> -113 | I17: ='Бланк Замовлення'!G28 -> 0
B18: 16 | C18: Декоративна решітка | G18: ='Бланк Замовлення'!E29-113 -> -113 | H18: ='Бланк Замовлення'!F29-113 -> -113 | I18: ='Бланк Замовлення'!G29 -> 0
B19: 17 | C19: Декоративна решітка | G19: ='Бланк Замовлення'!E30-113 -> -113 | H19: ='Бланк Замовлення'!F30-113 -> -113 | I19: ='Бланк Замовлення'!G30 -> 0
B20: 18 | C20: Декоративна решітка | G20: ='Бланк Замовлення'!E31-113 -> -113 | H20: ='Бланк Замовлення'!F31-113 -> -113 | I20: ='Бланк Замовлення'!G31 -> 0
B21: 19 | C21: Декоративна решітка | G21: ='Бланк Замовлення'!E32-113 -> -113 | H21: ='Бланк Замовлення'!F32-113 -> -113 | I21: ='Бланк Замовлення'!G32 -> 0
B22: 20 | C22: Декоративна решітка | G22: ='Бланк Замовлення'!E33-113 -> -113 | H22: ='Бланк Замовлення'!F33-113 -> -113 | I22: ='Бланк Замовлення'!G33 -> 0
B23: 21 | C23: Декоративна решітка | G23: ='Бланк Замовлення'!E34-113 -> -113 | H23: ='Бланк Замовлення'!F34-113 -> -113 | I23: ='Бланк Замовлення'!G34 -> 0
B24: 22 | C24: Декоративна решітка | G24: ='Бланк Замовлення'!E35-113 -> -113 | H24: ='Бланк Замовлення'!F35-113 -> -113 | I24: ='Бланк Замовлення'!G35 -> 0
B25: 23 | C25: Декоративна решітка | G25: ='Бланк Замовлення'!E36-113 -> -113 | H25: ='Бланк Замовлення'!F36-113 -> -113 | I25: ='Бланк Замовлення'!G36 -> 0
B26: 24 | C26: Декоративна решітка | G26: ='Бланк Замовлення'!E37-113 -> -113 | H26: ='Бланк Замовлення'!F37-113 -> -113 | I26: ='Бланк Замовлення'!G37 -> 0
B27: 25 | C27: Декоративна решітка | G27: ='Бланк Замовлення'!E38-113 -> -113 | H27: ='Бланк Замовлення'!F38-113 -> -113 | I27: ='Бланк Замовлення'!G38 -> 0
B28: 26 | C28: Декоративна решітка | G28: ='Бланк Замовлення'!E39-113 -> -113 | H28: ='Бланк Замовлення'!F39-113 -> -113 | I28: ='Бланк Замовлення'!G39 -> 0
B29: 27 | C29: Декоративна решітка | G29: ='Бланк Замовлення'!E40-113 -> -113 | H29: ='Бланк Замовлення'!F40-113 -> -113 | I29: ='Бланк Замовлення'!G40 -> 0
B30: 28 | C30: Декоративна решітка | G30: ='Бланк Замовлення'!E41-113 -> -113 | H30: ='Бланк Замовлення'!F41-113 -> -113 | I30: ='Бланк Замовлення'!G41 -> 0
B31: 29 | C31: Декоративна решітка | G31: ='Бланк Замовлення'!E42-113 -> -113 | H31: ='Бланк Замовлення'!F42-113 -> -113 | I31: ='Бланк Замовлення'!G42 -> 0
B32: 30 | C32: Декоративна решітка | G32: ='Бланк Замовлення'!E43-113 -> -113 | H32: ='Бланк Замовлення'!F43-113 -> -113 | I32: ='Бланк Замовлення'!G43 -> 0

Sheet Фасади кухонних корпусів станд
C1: Фасади кухонних корпусів стандарт
C2: Номенклатура | D2: Довжина/мм | E2: Ширина/мм | F2: К-сть на 1 комплект | G2: Площа,м2 | H2: Площа замовлення | I2: Корпус, Ціна за 1 комплект | J2: Корпус К-сть секцій | K2: Софія + К-сть секцій | L2: Сверління під ручку | M2: Софія + Ціна за м2 Напівмат | N2: Софія + Ціна за м2 Глянець | O2: Софія + Ціна за м2 Перламутр | P2: Софія + Сума Напівмат | Q2: Софія + Сума Глянець | R2: Софія + Сума Перламутр | S2: Аманда Ціна за м2 Напівмат | T2: Аманда Ціна за м2 Глянець | U2: Аманда Ціна за м2 Перламутр | V2: Площа замовлення | W2: Аманда К-сть секцій | X2: Сверління під ручку | Y2: Аманда Сума Напівмат | Z2: Аманда Сума Глянець | AA2: Аманда Сума Перламутр | AB2: Міленіум + Ціна за м2 Напівмат | AC2: Міленіум + Ціна за м2 Глянець | AD2: Міленіум + Ціна за м2 Перламутр | AE2: Площа замовлення | AF2: Міленіум+, Мілена, Адель, Емілія, Мельвін, Максі К-сть секцій | AG2: Сверління під ручку | AH2: Міленіум + Сума Напівмат | AI2: Міленіум + Сума Глянець | AJ2: Міленіум + Сума Перламутр | AK2: Візель Ціна за м2 Напівмат | AL2: Площа замовлення | AM2: Вінтаж+, Візель, Вікі К-сть секцій | AN2: Сверління під ручку | AO2: Візель Сума Напівмат | AP2: Прованс Ціна за м2 Напівмат | AQ2: Прованс Ціна за м2 Глянець | AR2: Прованс Ціна за м2 Перламутр | AS2: Площа замовлення | AT2: Прованс, Валенсія +, Мішель, Доміні, Матільда, Вілсон К-сть секцій | AU2: Сверління під ручку | AV2: Прованс Сума Напівмат | AW2: Прованс Сума Глянець | AX2: Прованс Сума Перламутр
B3: Верхні секції | C3: Корпус кухонний секцiя верхня 20В/720 1дв | D3: 715 | E3: 196 | F3: 1 | G3: =(D3*E3)/1000000*F3 -> 0.14014 | H3: =G3*K3 -> 0 | L3: =(K3*$F$3)*#REF! ->  | M3: =#REF! ->  | N3: =#REF! ->  | O3: =#REF! ->  | P3: =M3*H3 ->  | Q3: =N3*H3 ->  | R3: =O3*H3 ->  | S3: =#REF! ->  | T3: =#REF! ->  | U3: =#REF! ->  | V3: =W3*$G$3 -> 0 | X3: =(W3*$F$3)*#REF! ->  | Y3: =S3*V3 ->  | Z3: =T3*V3 ->  | AA3: =U3*V3 ->  | AB3: =#REF! ->  | AC3: =#REF! ->  | AD3: =#REF! ->  | AE3: =AF3*$G$3 -> 0 | AH3: =AB3*AE3 ->  | AI3: =AC3*AE3 ->  | AJ3: =AD3*AE3 ->  | AK3: =#REF! ->  | AL3: =AM3*$G$3 -> 0 | AN3: =(AM3*$F$3)*#REF! ->  | AO3: =AL3*AK3 ->  | AP3: =#REF! ->  | AQ3: =#REF! ->  | AR3: =#REF! ->  | AS3: =AT3*$G$3 -> 0 | AU3: =(AT3*$F$3)*#REF! ->  | AV3: =AP3*AS3 ->  | AW3: =AQ3*AS3 ->  | AX3: =AR3*AS3 -> 
C4: Корпус кухонний секцiя верхня 20В/900 1дв | D4: 895 | E4: 196 | F4: 1 | G4: =(D4*E4)/1000000*F4 -> 0.17542 | H4: 0 | L4: =(K4*$F$4)*#REF! ->  | M4: =#REF! ->  | N4: =#REF! ->  | O4: =#REF! ->  | S4: =#REF! ->  | T4: =#REF! ->  | U4: =#REF! ->  | V4: =W4*$G$4 -> 0 | X4: =(W4*$F$4)*#REF! ->  | Y4: =S4*V4 ->  | Z4: =T4*V4 ->  | AA4: =U4*V4 ->  | AB4: =#REF! ->  | AC4: =#REF! ->  | AD4: =#REF! ->  | AE4: =AF4*$G$4 -> 0 | AH4: =AB4*AE4 ->  | AI4: =AC4*AE4 ->  | AJ4: =AD4*AE4 ->  | AK4: =#REF! ->  | AL4: =AM4*$G$4 -> 0 | AN4: =(AM4*$F$4)*#REF! ->  | AP4: =#REF! ->  | AQ4: =#REF! ->  | AR4: =#REF! ->  | AS4: =AT4*$G$4 -> 0 | AU4: =(AT4*$F$4)*#REF! ->  | AV4: =AP4*AS4 ->  | AW4: =AQ4*AS4 ->  | AX4: =AR4*AS4 -> 
C5: Корпус кухонний секцiя верхня 30В/720 1дв | D5: 715 | E5: 296 | F5: 1 | G5: 0.21164 | H5: 0 | L5: =(K5*$F$5)*#REF! ->  | M5: =#REF! ->  | N5: =#REF! ->  | O5: =#REF! ->  | S5: =#REF! ->  | T5: =#REF! ->  | U5: =#REF! ->  | V5: =W5*$G$5 -> 0 | X5: =(W5*$F$5)*#REF! ->  | AB5: =#REF! ->  | AC5: =#REF! ->  | AD5: =#REF! ->  | AE5: =AF5*$G$5 -> 0 | AK5: =#REF! ->  | AL5: =AM5*$G$5 -> 0 | AN5: =(AM5*$F$5)*#REF! ->  | AP5: =#REF! ->  | AQ5: =#REF! ->  | AR5: =#REF! ->  | AS5: =AT5*$G$5 -> 0 | AU5: =(AT5*$F$5)*#REF! -> 
C6: Корпус кухонний секцiя верхня 30В/900 1дв | D6: 895 | E6: 296 | F6: 1 | G6: 0.26492 | H6: 0 | L6: =(K6*$F$6)*#REF! ->  | M6: =#REF! ->  | N6: =#REF! ->  | O6: =#REF! ->  | S6: =#REF! ->  | T6: =#REF! ->  | U6: =#REF! ->  | V6: =W6*$G$6 -> 0 | X6: =(W6*$F$6)*#REF! ->  | AB6: =#REF! ->  | AC6: =#REF! ->  | AD6: =#REF! ->  | AE6: =AF6*$G$6 -> 0 | AK6: =#REF! ->  | AL6: =AM6*$G$6 -> 0 | AN6: =(AM6*$F$6)*#REF! ->  | AP6: =#REF! ->  | AQ6: =#REF! ->  | AR6: =#REF! ->  | AS6: =AT6*$G$6 -> 0 | AU6: =(AT6*$F$6)*#REF! -> 
C7: Корпус кухонний секцiя верхня 40В/720 1дв | D7: 715 | E7: 396 | F7: 1 | G7: 0.28314 | H7: 0 | L7: =(K7*$F$7)*#REF! ->  | M7: =#REF! ->  | N7: =#REF! ->  | O7: =#REF! ->  | S7: =#REF! ->  | T7: =#REF! ->  | U7: =#REF! ->  | V7: =W7*$G$7 -> 0 | X7: =(W7*$F$7)*#REF! ->  | AB7: =#REF! ->  | AC7: =#REF! ->  | AD7: =#REF! ->  | AE7: =AF7*$G$7 -> 0 | AK7: =#REF! ->  | AL7: =AM7*$G$7 -> 0 | AN7: =(AM7*$F$7)*#REF! ->  | AP7: =#REF! ->  | AQ7: =#REF! ->  | AR7: =#REF! ->  | AS7: =AT7*$G$7 -> 0 | AU7: =(AT7*$F$7)*#REF! -> 
C8: Корпус кухонний секцiя верхня 40В/900 1дв | D8: 895 | E8: 396 | F8: 1 | G8: 0.35442 | H8: 0 | L8: =(K8*$F$8)*#REF! ->  | M8: =#REF! ->  | N8: =#REF! ->  | O8: =#REF! ->  | S8: =#REF! ->  | T8: =#REF! ->  | U8: =#REF! ->  | V8: =W8*$G$8 -> 0 | X8: =(W8*$F$8)*#REF! ->  | AB8: =#REF! ->  | AC8: =#REF! ->  | AD8: =#REF! ->  | AE8: =AF8*$G$8 -> 0 | AK8: =#REF! ->  | AL8: =AM8*$G$8 -> 0 | AN8: =(AM8*$F$8)*#REF! ->  | AP8: =#REF! ->  | AQ8: =#REF! ->  | AR8: =#REF! ->  | AS8: =AT8*$G$8 -> 0 | AU8: =(AT8*$F$8)*#REF! -> 
C9: Корпус кухонний секцiя верхня 40В/360 1дв Газ Ліфт | D9: 356 | E9: 396 | F9: 1 | G9: 0.140976 | H9: 0 | L9: =(K9*$F$8)*#REF! ->  | M9: =#REF! ->  | N9: =#REF! ->  | O9: =#REF! -> 
C10: Корпус кухонний секцiя верхня 40ВА/360 1дв Антресоль Газ Ліфт | D10: 356 | E10: 396 | F10: 1 | G10: 0.140976 | H10: 0 | L10: =(K10*$F$8)*#REF! ->  | M10: =#REF! ->  | N10: =#REF! ->  | O10: =#REF! -> 
C11: Корпус кухонний секцiя верхня 40В/450 1дв Газ Ліфт | D11: 446 | E11: 396 | F11: 1 | G11: 0.176616 | H11: 0 | L11: =(K11*$F$8)*#REF! ->  | M11: =#REF! ->  | N11: =#REF! ->  | O11: =#REF! -> 
C12: Корпус кухонний секцiя верхня 45В/720 1дв | D12: 715 | E12: 446 | F12: 1 | G12: 0.31889 | H12: 0 | L12: =(K12*$F$12)*#REF! ->  | M12: =#REF! ->  | N12: =#REF! ->  | O12: =#REF! ->  | S12: =#REF! ->  | T12: =#REF! ->  | U12: =#REF! ->  | V12: =W12*$G$12 -> 0 | X12: =(W12*$F$12)*#REF! ->  | AB12: =#REF! ->  | AC12: =#REF! ->  | AD12: =#REF! ->  | AE12: =AF12*$G$12 -> 0 | AK12: =#REF! ->  | AL12: =AM12*$G$12 -> 0 | AN12: =(AM12*$F$12)*#REF! ->  | AP12: =#REF! ->  | AQ12: =#REF! ->  | AR12: =#REF! ->  | AS12: =AT12*$G$12 -> 0 | AU12: =(AT12*$F$12)*#REF! -> 
C13: Корпус кухонний секцiя верхня 45В/900 1дв | D13: 895 | E13: 446 | F13: 1 | G13: 0.39917 | H13: 0 | L13: =(K13*$F$13)*#REF! ->  | M13: =#REF! ->  | N13: =#REF! ->  | O13: =#REF! ->  | S13: =#REF! ->  | T13: =#REF! ->  | U13: =#REF! ->  | V13: =W13*$G$13 -> 0 | X13: =(W13*$F$13)*#REF! ->  | AB13: =#REF! ->  | AC13: =#REF! ->  | AD13: =#REF! ->  | AE13: =AF13*$G$13 -> 0 | AK13: =#REF! ->  | AL13: =AM13*$G$13 -> 0 | AN13: =(AM13*$F$13)*#REF! ->  | AP13: =#REF! ->  | AQ13: =#REF! ->  | AR13: =#REF! ->  | AS13: =AT13*$G$13 -> 0 | AU13: =(AT13*$F$13)*#REF! -> 
C14: Корпус кухонний секцiя верхня 45В/360 1дв Газ Ліфт | D14: 356 | E14: 446 | F14: 1 | G14: 0.158776 | H14: 0 | L14: =(K14*$F$13)*#REF! ->  | M14: =#REF! ->  | N14: =#REF! ->  | O14: =#REF! -> 
C15: Корпус кухонний секцiя верхня 45В/450 1дв Газ Ліфт | D15: 446 | E15: 446 | F15: 1 | G15: 0.198916 | H15: 0 | L15: =(K15*$F$13)*#REF! ->  | M15: =#REF! ->  | N15: =#REF! ->  | O15: =#REF! -> 
C16: Корпус кухонний секцiя верхня 45ВА/360 1дв Антресоль Газ Ліфт | D16: 356 | E16: 446 | F16: 1 | G16: 0.158776 | H16: 0 | L16: =(K16*$F$13)*#REF! ->  | M16: =#REF! ->  | N16: =#REF! ->  | O16: =#REF! -> 
C17: Корпус кухонний секцiя верхня 50ВА/360 1дв Антресоль Газ Ліфт | D17: 356 | E17: 496 | F17: 1 | G17: 0.176576 | H17: 0 | L17: =(K17*$F$13)*#REF! ->  | M17: =#REF! ->  | N17: =#REF! ->  | O17: =#REF! ->  | S17: =#REF! ->  | T17: =#REF! ->  | U17: =#REF! ->  | V17: =W17*$G$17 -> 0 | X17: =(W17*$F$17)*#REF! ->  | AB17: =#REF! ->  | AC17: =#REF! ->  | AD17: =#REF! ->  | AE17: =AF17*$G$17 -> 0 | AK17: =#REF! ->  | AL17: =AM17*$G$17 -> 0 | AN17: =(AM17*$F$17)*#REF! ->  | AP17: =#REF! ->  | AQ17: =#REF! ->  | AR17: =#REF! ->  | AS17: =AT17*$G$17 -> 0 | AU17: =(AT17*$F$17)*#REF! -> 
C18: Корпус кухонний секцiя верхня 50В/360 1дв Газ Ліфт | D18: 356 | E18: 496 | F18: 1 | G18: 0.176576 | H18: 0 | L18: =(K18*$F$13)*#REF! ->  | M18: =#REF! ->  | N18: =#REF! ->  | O18: =#REF! ->  | S18: =#REF! ->  | T18: =#REF! ->  | U18: =#REF! ->  | V18: =W18*$G$18 -> 0 | X18: =(W18*$F$18)*#REF! ->  | AB18: =#REF! ->  | AC18: =#REF! ->  | AD18: =#REF! ->  | AE18: =AF18*$G$18 -> 0 | AK18: =#REF! ->  | AL18: =AM18*$G$18 -> 0 | AN18: =(AM18*$F$18)*#REF! ->  | AP18: =#REF! ->  | AQ18: =#REF! ->  | AR18: =#REF! ->  | AS18: =AT18*$G$18 -> 0 | AU18: =(AT18*$F$18)*#REF! -> 
C19: Корпус кухонний секцiя верхня 50В/450 1дв Газ Ліфт | D19: 446 | E19: 496 | F19: 1 | G19: 0.221216 | H19: 0 | L19: =(K19*$F$13)*#REF! ->  | M19: =#REF! ->  | N19: =#REF! ->  | O19: =#REF! -> 
C20: Корпус кухонний секцiя верхня 50В/720 1дв | D20: 715 | E20: 496 | F20: 1 | G20: 0.35464 | H20: 0 | L20: =(K20*$F$13)*#REF! ->  | M20: =#REF! ->  | N20: =#REF! ->  | O20: =#REF! ->  | S20: =#REF! ->  | T20: =#REF! ->  | U20: =#REF! ->  | V20: =W20*$G$20 -> 0 | X20: =(W20*$F$20)*#REF! ->  | AB20: =#REF! ->  | AC20: =#REF! ->  | AD20: =#REF! ->  | AE20: =AF20*$G$20 -> 0 | AK20: =#REF! ->  | AL20: =AM20*$G$20 -> 0 | AN20: =(AM20*$F$20)*#REF! ->  | AP20: =#REF! ->  | AQ20: =#REF! ->  | AR20: =#REF! ->  | AS20: =AT20*$G$20 -> 0 | AU20: =(AT20*$F$20)*#REF! -> 
C21: Корпус кухонний секцiя верхня 50В/900 1дв | D21: 895 | E21: 496 | F21: 1 | G21: 0.44392 | H21: 0 | L21: =(K21*$F$13)*#REF! ->  | M21: =#REF! ->  | N21: =#REF! ->  | O21: =#REF! ->  | S21: =#REF! ->  | T21: =#REF! ->  | U21: =#REF! ->  | V21: =W21*$G$21 -> 0 | X21: =(W21*$F$21)*#REF! ->  | AB21: =#REF! ->  | AC21: =#REF! ->  | AD21: =#REF! ->  | AE21: =AF21*$G$21 -> 0 | AK21: =#REF! ->  | AL21: =AM21*$G$21 -> 0 | AN21: =(AM21*$F$21)*#REF! ->  | AP21: =#REF! ->  | AQ21: =#REF! ->  | AR21: =#REF! ->  | AS21: =AT21*$G$21 -> 0 | AU21: =(AT21*$F$21)*#REF! -> 
C22: Корпус кухонний секцiя верхня 60ВА/360 1дв Антресоль Газ Ліфт | D22: 356 | E22: 596 | F22: 1 | G22: 0.212176 | H22: 0 | L22: =(K22*$F$13)*#REF! ->  | M22: =#REF! ->  | N22: =#REF! ->  | O22: =#REF! ->  | S22: =#REF! ->  | T22: =#REF! ->  | U22: =#REF! ->  | V22: =W22*$G$22 -> 0 | X22: =(W22*$F$22)*#REF! ->  | AB22: =#REF! ->  | AC22: =#REF! ->  | AD22: =#REF! ->  | AE22: =AF22*$G$22 -> 0 | AK22: =#REF! ->  | AL22: =AM22*$G$22 -> 0 | AN22: =(AM22*$F$22)*#REF! ->  | AP22: =#REF! ->  | AQ22: =#REF! ->  | AR22: =#REF! ->  | AS22: =AT22*$G$22 -> 0 | AU22: =(AT22*$F$22)*#REF! -> 
C23: Корпус кухонний секцiя верхня 60В/720 1дв | D23: 715 | E23: 596 | F23: 1 | G23: 0.42614 | H23: 0 | L23: =(K23*$F$13)*#REF! ->  | M23: =#REF! ->  | N23: =#REF! ->  | O23: =#REF! -> 
C24: Корпус кухонний секцiя верхня 60В/900 1дв | D24: 895 | E24: 596 | F24: 1 | G24: 0.53342 | H24: 0 | L24: =(K24*$F$13)*#REF! ->  | M24: =#REF! ->  | N24: =#REF! ->  | O24: =#REF! -> 
C25: Корпус кухонний секцiя верхня 60В/900 2дв Газ Ліфт | D25: 895 | E25: 596 | F25: 2 | G25: =(D25*E25)/1000000*F25 -> 1.06684 | H25: 0 | L25: =(K25*$F$13)*#REF! ->  | M25: =#REF! ->  | N25: =#REF! ->  | O25: =#REF! -> 
C26: Корпус кухонний секцiя верхня 60В/360 1дв Газ Ліфт | D26: 356 | E26: 596 | F26: 1 | G26: =(D26*E26)/1000000*F26 -> 0.212176 | H26: 0 | L26: =(K26*$F$13)*#REF! ->  | M26: =#REF! ->  | N26: =#REF! ->  | O26: =#REF! ->  | S26: =#REF! ->  | T26: =#REF! ->  | U26: =#REF! ->  | V26: =W26*$G$26 -> 0 | X26: =(W26*$F$26)*#REF! ->  | AB26: =#REF! ->  | AC26: =#REF! ->  | AD26: =#REF! ->  | AE26: =AF26*$G$26 -> 0 | AK26: =#REF! ->  | AL26: =AM26*$G$26 -> 0 | AN26: =(AM26*$F$26)*#REF! ->  | AP26: =#REF! ->  | AQ26: =#REF! ->  | AR26: =#REF! ->  | AS26: =AT26*$G$26 -> 0 | AU26: =(AT26*$F$26)*#REF! ->  | AW26: =AQ26*AS26 -> 
C27: Корпус кухонний секцiя верхня 60В/450 1дв Газ Ліфт | D27: 446 | E27: 596 | F27: 1 | G27: 0.265816 | H27: 0 | L27: =(K27*$F$13)*#REF! ->  | M27: =#REF! ->  | N27: =#REF! ->  | O27: =#REF! -> 
C28: Корпус кухонний секцiя верхня 60ВВТ/510 1дв Витяжка Телескоп | D28: 505 | E28: 596 | F28: 1 | G28: 0.30098 | H28: 0 | L28: =(K28*$F$13)*#REF! ->  | M28: =#REF! ->  | N28: =#REF! ->  | O28: =#REF! ->  | S28: =#REF! ->  | T28: =#REF! ->  | U28: =#REF! ->  | V28: =W28*$G$28 -> 0 | X28: =(W28*$F$28)*#REF! ->  | AB28: =#REF! ->  | AC28: =#REF! ->  | AD28: =#REF! ->  | AE28: =AF28*$G$28 -> 0 | AK28: =#REF! ->  | AL28: =AM28*$G$28 -> 0 | AN28: =(AM28*$F$28)*#REF! ->  | AP28: =#REF! ->  | AQ28: =#REF! ->  | AR28: =#REF! ->  | AS28: =AT28*$G$28 -> 0 | AU28: =(AT28*$F$28)*#REF! -> 
C29: Корпус кухонний секцiя верхня 60ВВТ/690 1дв Витяжка Телескоп | D29: 685 | E29: 596 | F29: 1 | G29: 0.40826 | H29: 0 | L29: =(K29*$F$13)*#REF! ->  | M29: =#REF! ->  | N29: =#REF! ->  | O29: =#REF! -> 
C30: Корпус кухонний секцiя верхня 60В/720 2дв | D30: 715 | E30: 296 | F30: 2 | G30: 0.42328 | H30: 0 | L30: =(K30*$F$13)*#REF! ->  | M30: =#REF! ->  | N30: =#REF! ->  | O30: =#REF! ->  | S30: =#REF! ->  | T30: =#REF! ->  | U30: =#REF! ->  | V30: =W30*$G$30 -> 0 | X30: =(W30*$F$30)*#REF! ->  | AB30: =#REF! ->  | AC30: =#REF! ->  | AD30: =#REF! ->  | AE30: =AF30*$G$30 -> 0 | AK30: =#REF! ->  | AL30: =AM30*$G$30 -> 0 | AN30: =(AM30*$F$30)*#REF! ->  | AP30: =#REF! ->  | AQ30: =#REF! ->  | AR30: =#REF! ->  | AS30: =AT30*$G$30 -> 0 | AU30: =(AT30*$F$30)*#REF! -> 
C31: Корпус кухонний секцiя верхня 60ВС/720 2дв Сушка | D31: 715 | E31: 296 | F31: 2 | G31: 0.42328 | H31: 0 | L31: =(K31*$F$13)*#REF! ->  | M31: =#REF! ->  | N31: =#REF! ->  | O31: =#REF! ->  | S31: =#REF! ->  | T31: =#REF! ->  | U31: =#REF! ->  | V31: =W31*$G$31 -> 0 | X31: =(W31*$F$31)*#REF! ->  | AB31: =#REF! ->  | AC31: =#REF! ->  | AD31: =#REF! ->  | AE31: =AF31*$G$31 -> 0 | AK31: =#REF! ->  | AL31: =AM31*$G$31 -> 0 | AN31: =(AM31*$F$31)*#REF! ->  | AP31: =#REF! ->  | AQ31: =#REF! ->  | AR31: =#REF! ->  | AS31: =AT31*$G$31 -> 0 | AU31: =(AT31*$F$31)*#REF! -> 
C32: Корпус кухонний секцiя верхня 60В/900 2дв | D32: 895 | E32: 296 | F32: 2 | G32: 0.52984 | H32: 0 | L32: =(K32*$F$13)*#REF! ->  | M32: =#REF! ->  | N32: =#REF! ->  | O32: =#REF! ->  | S32: =#REF! ->  | T32: =#REF! ->  | U32: =#REF! ->  | V32: =W32*$G$32 -> 0 | X32: =(W32*$F$32)*#REF! ->  | AB32: =#REF! ->  | AC32: =#REF! ->  | AD32: =#REF! ->  | AE32: =AF32*$G$32 -> 0 | AK32: =#REF! ->  | AL32: =AM32*$G$32 -> 0 | AN32: =(AM32*$F$32)*#REF! ->  | AP32: =#REF! ->  | AQ32: =#REF! ->  | AR32: =#REF! ->  | AS32: =AT32*$G$32 -> 0 | AU32: =(AT32*$F$32)*#REF! -> 
C33: Корпус кухонний секцiя верхня 60ВС/900 2дв Сушка | D33: 895 | E33: 296 | F33: 2 | G33: 0.52984 | H33: 0 | L33: =(K33*$F$13)*#REF! ->  | M33: =#REF! ->  | N33: =#REF! ->  | O33: =#REF! ->  | S33: =#REF! ->  | T33: =#REF! ->  | U33: =#REF! ->  | V33: =W33*$G$33 -> 0 | X33: =(W33*$F$33)*#REF! ->  | AB33: =#REF! ->  | AC33: =#REF! ->  | AD33: =#REF! ->  | AE33: =AF33*$G$33 -> 0 | AK33: =#REF! ->  | AL33: =AM33*$G$33 -> 0 | AN33: =(AM33*$F$33)*#REF! ->  | AP33: =#REF! ->  | AQ33: =#REF! ->  | AR33: =#REF! ->  | AS33: =AT33*$G$33 -> 0 | AU33: =(AT33*$F$33)*#REF! -> 
C34: Корпус кухонний секцiя верхня 60В/720 2дв Газ Ліфт | D34: 356 | E34: 596 | F34: 2 | G34: 0.424352 | H34: 0 | L34: =(K34*$F$13)*#REF! ->  | M34: =#REF! ->  | N34: =#REF! ->  | O34: =#REF! ->  | S34: =#REF! ->  | T34: =#REF! ->  | U34: =#REF! ->  | V34: =W34*$G$34 -> 0 | X34: =(W34*$F$34)*#REF! ->  | AB34: =#REF! ->  | AC34: =#REF! ->  | AD34: =#REF! ->  | AE34: =AF34*$G$34 -> 0 | AK34: =#REF! ->  | AL34: =AM34*$G$34 -> 0 | AN34: =(AM34*$F$34)*#REF! ->  | AP34: =#REF! ->  | AQ34: =#REF! ->  | AR34: =#REF! ->  | AS34: =AT34*$G$34 -> 0 | AU34: =(AT34*$F$34)*#REF! -> 
C35: Корпус кухонний секцiя верхня 80ВА/360 1дв Антресоль Газ Ліфт | D35: 356 | E35: 796 | F35: 1 | G35: 0.283376 | H35: 0 | L35: =(K35*$F$13)*#REF! ->  | M35: =#REF! ->  | N35: =#REF! ->  | O35: =#REF! ->  | S35: =#REF! ->  | T35: =#REF! ->  | U35: =#REF! ->  | V35: =W35*$G$35 -> 0 | X35: =(W35*$F$35)*#REF! ->  | AB35: =#REF! ->  | AC35: =#REF! ->  | AD35: =#REF! ->  | AE35: =AF35*$G$35 -> 0 | AK35: =#REF! ->  | AL35: =AM35*$G$35 -> 0 | AN35: =(AM35*$F$35)*#REF! ->  | AP35: =#REF! ->  | AQ35: =#REF! ->  | AR35: =#REF! ->  | AS35: =AT35*$G$35 -> 0 | AU35: =(AT35*$F$35)*#REF! -> 
C36: Корпус кухонний секцiя верхня 80В/360 1дв Газ Ліфт | D36: 356 | E36: 796 | F36: 1 | G36: 0.283376 | H36: =$G$36*K36 -> 0 | L36: =(K36*$F$13)*#REF! ->  | M36: =#REF! ->  | N36: =#REF! ->  | O36: =#REF! ->  | S36: =#REF! ->  | T36: =#REF! ->  | U36: =#REF! ->  | V36: =W36*$G$36 -> 0 | X36: =(W36*$F$36)*#REF! ->  | AB36: =#REF! ->  | AC36: =#REF! ->  | AD36: =#REF! ->  | AE36: =AF36*$G$36 -> 0 | AK36: =#REF! ->  | AL36: =AM36*$G$36 -> 0 | AN36: =(AM36*$F$36)*#REF! ->  | AP36: =#REF! ->  | AQ36: =#REF! ->  | AR36: =#REF! ->  | AS36: =AT36*$G$36 -> 0 | AU36: =(AT36*$F$36)*#REF! -> 
C37: Корпус кухонний секцiя верхня 80В/720 2дв | D37: 715 | E37: 396 | F37: 2 | G37: 0.56628 | H37: =G37*K37 -> 0 | L37: =(K37*$F$13)*#REF! ->  | M37: =#REF! ->  | N37: =#REF! ->  | O37: =#REF! ->  | S37: =#REF! ->  | T37: =#REF! ->  | U37: =#REF! ->  | V37: =W37*$G$37 -> 0 | X37: =(W37*$F$37)*#REF! ->  | AB37: =#REF! ->  | AC37: =#REF! ->  | AD37: =#REF! ->  | AE37: =AF37*$G$37 -> 0 | AK37: =#REF! ->  | AL37: =AM37*$G$37 -> 0 | AN37: =(AM37*$F$37)*#REF! ->  | AP37: =#REF! ->  | AQ37: =#REF! ->  | AR37: =#REF! ->  | AS37: =AT37*$G$37 -> 0 | AU37: =(AT37*$F$37)*#REF! -> 
C38: Корпус кухонний секцiя верхня 80ВС/720 2дв Сушка | D38: 715 | E38: 396 | F38: 2 | G38: 0.56628 | H38: 0 | L38: =(K38*$F$13)*#REF! ->  | M38: =#REF! ->  | N38: =#REF! ->  | O38: =#REF! ->  | S38: =#REF! ->  | T38: =#REF! ->  | U38: =#REF! ->  | V38: =W38*$G$38 -> 0 | X38: =(W38*$F$38)*#REF! ->  | AB38: =#REF! ->  | AC38: =#REF! ->  | AD38: =#REF! ->  | AE38: =AF38*$G$38 -> 0 | AK38: =#REF! ->  | AL38: =AM38*$G$38 -> 0 | AN38: =(AM38*$F$38)*#REF! ->  | AP38: =#REF! ->  | AQ38: =#REF! ->  | AR38: =#REF! ->  | AS38: =AT38*$G$38 -> 0 | AU38: =(AT38*$F$38)*#REF! -> 
C39: Корпус кухонний секцiя верхня 80В/900 2дв | D39: 895 | E39: 396 | F39: 2 | G39: 0.70884 | H39: 0 | L39: =(K39*$F$13)*#REF! ->  | M39: =#REF! ->  | N39: =#REF! ->  | O39: =#REF! ->  | S39: =#REF! ->  | T39: =#REF! ->  | U39: =#REF! ->  | V39: =W39*$G$39 -> 0 | X39: =(W39*$F$39)*#REF! ->  | AB39: =#REF! ->  | AC39: =#REF! ->  | AD39: =#REF! ->  | AE39: =AF39*$G$39 -> 0 | AK39: =#REF! ->  | AL39: =AM39*$G$39 -> 0 | AN39: =(AM39*$F$39)*#REF! ->  | AP39: =#REF! ->  | AQ39: =#REF! ->  | AR39: =#REF! ->  | AS39: =AT39*$G$39 -> 0 | AU39: =(AT39*$F$39)*#REF! -> 
C40: Корпус кухонний секцiя верхня 80ВС/900 2дв Сушка | D40: 895 | E40: 396 | F40: 2 | G40: 0.70884 | H40: 0 | L40: =(K40*$F$13)*#REF! ->  | M40: =#REF! ->  | N40: =#REF! ->  | O40: =#REF! ->  | S40: =#REF! ->  | T40: =#REF! ->  | U40: =#REF! ->  | V40: =W40*$G$40 -> 0 | X40: =(W40*$F$40)*#REF! ->  | AB40: =#REF! ->  | AC40: =#REF! ->  | AD40: =#REF! ->  | AE40: =AF40*$G$40 -> 0 | AK40: =#REF! ->  | AL40: =AM40*$G$40 -> 0 | AN40: =(AM40*$F$40)*#REF! ->  | AP40: =#REF! ->  | AQ40: =#REF! ->  | AR40: =#REF! ->  | AS40: =AT40*$G$40 -> 0 | AU40: =(AT40*$F$40)*#REF! -> 
C41: Корпус кухонний секцiя верхня 80В/720 2дв Газ Ліфт | D41: 356 | E41: 796 | F41: 2 | G41: 0.566752 | H41: 0 | L41: =(K41*$F$13)*#REF! ->  | M41: =#REF! ->  | N41: =#REF! ->  | O41: =#REF! ->  | S41: =#REF! ->  | T41: =#REF! ->  | U41: =#REF! ->  | V41: =W41*$G$41 -> 0 | X41: =(W41*$F$41)*#REF! ->  | AB41: =#REF! ->  | AC41: =#REF! ->  | AD41: =#REF! ->  | AE41: =AF41*$G$41 -> 0 | AK41: =#REF! ->  | AL41: =AM41*$G$41 -> 0 | AN41: =(AM41*$F$41)*#REF! ->  | AP41: =#REF! ->  | AQ41: =#REF! ->  | AR41: =#REF! ->  | AS41: =AT41*$G$41 -> 0 | AU41: =(AT41*$F$41)*#REF! -> 
C42: Корпус кухонний секцiя верхня 80В/900 2дв Газ Ліфт | D42: 446 | E42: 796 | F42: 2 | G42: 0.710032 | H42: 0 | L42: =(K42*$F$13)*#REF! ->  | M42: =#REF! ->  | N42: =#REF! ->  | O42: =#REF! -> 
C43: Корпус кухонний секцiя верхня 80В/450 1дв Газ Ліфт | D43: 446 | E43: 796 | F43: 1 | G43: 0.355016 | H43: 0 | L43: =(K43*$F$13)*#REF! ->  | M43: =#REF! ->  | N43: =#REF! ->  | O43: =#REF! -> 
C44: Корпус кухонний секцiя верхня 30ВЗР/720 1дв Закінчення Радіусне | D44: 715 | E44: 448 | F44: 1 | G44: 0.32032 | H44: 0 | L44: =(K44*$F$13)*#REF! ->  | M44: =#REF! ->  | N44: =#REF! ->  | O44: =#REF! ->  | S44: =#REF! ->  | T44: =#REF! ->  | U44: =#REF! ->  | V44: =W44*$G$44 -> 0 | X44: =(W44*$F$44)*#REF! ->  | Y44: =S44*W44 ->  | Z44: =T44*W44 ->  | AA44: =U44*W44 ->  | AB44: =#REF! ->  | AC44: =#REF! ->  | AD44: =#REF! ->  | AE44: =AF44*$G$44 -> 0 | AH44: =AB44*AF44 ->  | AI44: =AC44*AF44 ->  | AJ44: =AD44*AF44 ->  | AK44: =#REF! ->  | AL44: =AM44*$G$44 -> 0 | AN44: =(AM44*$F$44)*#REF! ->  | AP44: =#REF! ->  | AQ44: =#REF! ->  | AR44: =#REF! ->  | AS44: =AT44*$G$44 -> 0 | AU44: =(AT44*$F$44)*#REF! ->  | AV44: =AP44*AT44 ->  | AW44: =AQ44*AT44 ->  | AX44: =AR44*AT44 -> 
C45: Корпус кухонний секцiя верхня 30ВЗР/900 1дв Закінчення Радіусне | D45: 895 | E45: 448 | F45: 1 | G45: 0.40096 | H45: 0 | L45: =(K45*$F$13)*#REF! ->  | M45: =#REF! ->  | N45: =#REF! ->  | O45: =#REF! ->  | S45: =#REF! ->  | T45: =#REF! ->  | U45: =#REF! ->  | V45: =W45*$G$45 -> 0 | X45: =(W45*$F$45)*#REF! ->  | Y45: =S45*W45 ->  | Z45: =T45*W45 ->  | AA45: =U45*W45 ->  | AB45: =#REF! ->  | AC45: =#REF! ->  | AD45: =#REF! ->  | AE45: =AF45*$G$45 -> 0 | AH45: =AB45*AF45 ->  | AI45: =AC45*AF45 ->  | AJ45: =AD45*AF45 ->  | AK45: =#REF! ->  | AL45: =AM45*$G$45 -> 0 | AN45: =(AM45*$F$45)*#REF! ->  | AP45: =#REF! ->  | AQ45: =#REF! ->  | AR45: =#REF! ->  | AS45: =AT45*$G$45 -> 0 | AU45: =(AT45*$F$45)*#REF! ->  | AV45: =AP45*AT45 ->  | AW45: =AQ45*AT45 ->  | AX45: =AR45*AT45 -> 
C46: Корпус кухонний секцiя верхня Кут 90°/360 Антресоль Обманка | D46: 356 | E46: 90 | F46: 1 | G46: 0.03204 | H46: 0 | M46: 1873 | N46: =#REF! ->  | O46: =#REF! ->  | P46: 0
D47: 356 | E47: 72 | F47: 1 | G47: 0.025632 | H47: 0 | M47: 1873 | N47: =#REF! ->  | O47: =#REF! ->  | P47: 0
C48: Корпус кухонний секцiя верхня КутВ 45°/720 1дв | D48: 715 | E48: 428 | F48: 1 | G48: 0.30602 | H48: 0 | L48: =(K48*$F$13)*#REF! ->  | M48: 1873 | N48: =#REF! ->  | O48: =#REF! ->  | P48: 0
C49: Корпус кухонний секцiя верхня КутВ 45°/900 1дв | D49: 895 | E49: 428 | F49: 1 | G49: 0.38306 | H49: 0 | L49: =(K49*$F$13)*#REF! ->  | M49: 1873 | N49: =#REF! ->  | O49: =#REF! ->  | P49: 0
C50: Корпус кухонний секцiя верхня КутВ 90°/360 2дв | D50: 356 | E50: 308 | F50: 1 | G50: 0.109648 | H50: 0 | L50: =(K50*$F$13)*#REF! ->  | M50: 1873 | N50: =#REF! ->  | O50: =#REF! ->  | P50: 0
D51: 356 | E51: 298 | F51: 1 | G51: 0.106088 | H51: 0 | L51: =(K51*$F$13)*#REF! ->  | M51: 1873 | N51: =#REF! ->  | O51: =#REF! ->  | P51: 0
C52: Корпус кухонний секцiя верхня КутВ 90°/450 2дв | D52: 446 | E52: 308 | F52: 1 | G52: 0.137368 | H52: 0 | L52: =(K52*$F$13)*#REF! ->  | M52: 1873 | N52: =#REF! ->  | O52: =#REF! ->  | P52: 0
D53: 446 | E53: 298 | F53: 1 | G53: 0.132908 | H53: 0 | L53: =(K53*$F$13)*#REF! ->  | M53: 1873 | N53: =#REF! ->  | O53: =#REF! ->  | P53: 0
C54: Корпус кухонний секцiя верхня КутВ 90°/720 2дв | D54: 715 | E54: 308 | F54: 1 | G54: 0.22022 | H54: 0 | L54: =(K54*$F$13)*#REF! ->  | M54: 1873 | N54: =#REF! ->  | O54: =#REF! ->  | P54: 0
D55: 715 | E55: 298 | F55: 1 | G55: 0.21307 | H55: 0 | L55: =(K55*$F$13)*#REF! ->  | M55: 1873 | N55: =#REF! ->  | O55: =#REF! ->  | P55: 0
C56: Корпус кухонний секцiя верхня КутВ 90°/900 2дв | D56: 895 | E56: 308 | F56: 1 | G56: 0.27566 | H56: 0 | L56: =(K56*$F$13)*#REF! ->  | M56: 1873 | N56: =#REF! ->  | O56: =#REF! ->  | P56: 0
D57: 895 | E57: 298 | F57: 1 | G57: 0.26671 | H57: 0 | L57: =(K57*$F$13)*#REF! ->  | M57: 1873 | N57: =#REF! ->  | O57: =#REF! ->  | P57: 0
B58: Нижні секції | C58: Корпус кухонний секція нижня 20НК/820 Карго | D58: 715 | E58: 196 | F58: 1 | G58: 0.14014 | H58: 0 | L58: =(K58*$F$13)*#REF! ->  | M58: =#REF! ->  | N58: =#REF! ->  | O58: =#REF! ->  | S58: =#REF! ->  | T58: =#REF! ->  | U58: =#REF! ->  | V58: =W58*$G$58 -> 0 | X58: =(W58*$F$58)*#REF! ->  | Y58: =S58*V58 ->  | Z58: =T58*V58 ->  | AA58: =U58*V58 ->  | AB58: =#REF! ->  | AC58: =#REF! ->  | AD58: =#REF! ->  | AE58: =AF58*$G$58 -> 0 | AK58: =#REF! ->  | AL58: =AM58*$G$58 -> 0 | AN58: =(AM58*$F$58)*#REF! ->  | AP58: =#REF! ->  | AQ58: =#REF! ->  | AR58: =#REF! ->  | AS58: =AT58*$G$58 -> 0 | AU58: =(AT58*$F$58)*#REF! ->  | AV58: =AP58*AS58 ->  | AW58: =AQ58*AS58 ->  | AX58: =AR58*AS58 -> 
C59: Корпус кухонний секція нижня 20Н/820 1дв | D59: 715 | E59: 196 | F59: 1 | G59: 0.14014 | H59: 0 | L59: =(K59*$F$13)*#REF! ->  | M59: =#REF! ->  | N59: =#REF! ->  | O59: =#REF! -> 
C60: Корпус кухонний секція нижня 30Н/820 1дв | D60: 715 | E60: 296 | F60: 1 | G60: 0.21164 | H60: 0 | L60: =(K60*$F$13)*#REF! ->  | M60: =#REF! ->  | N60: =#REF! ->  | O60: =#REF! ->  | S60: =#REF! ->  | T60: =#REF! ->  | U60: =#REF! ->  | V60: =W60*$G$60 -> 0 | X60: =(W60*$F$60)*#REF! ->  | AB60: =#REF! ->  | AC60: =#REF! ->  | AD60: =#REF! ->  | AE60: =AF60*$G$60 -> 0 | AK60: =#REF! ->  | AL60: =AM60*$G$60 -> 0 | AN60: =(AM60*$F$60)*#REF! ->  | AP60: =#REF! ->  | AQ60: =#REF! ->  | AR60: =#REF! ->  | AS60: =AT60*$G$60 -> 0 | AU60: =(AT60*$F$60)*#REF! -> 
C61: Корпус кухонний секція нижня 40Н/820 1дв | D61: 715 | E61: 396 | F61: 1 | G61: 0.28314 | H61: 0 | L61: =(K61*$F$13)*#REF! ->  | M61: =#REF! ->  | N61: =#REF! ->  | O61: =#REF! ->  | S61: =#REF! ->  | T61: =#REF! ->  | U61: =#REF! ->  | V61: =W61*$G$61 -> 0 | X61: =(W61*$F$61)*#REF! ->  | AB61: =#REF! ->  | AC61: =#REF! ->  | AD61: =#REF! ->  | AE61: =AF61*$G$61 -> 0 | AK61: =#REF! ->  | AL61: =AM61*$G$61 -> 0 | AN61: =(AM61*$F$61)*#REF! ->  | AP61: =#REF! ->  | AQ61: =#REF! ->  | AR61: =#REF! ->  | AS61: =AT61*$G$61 -> 0 | AU61: =(AT61*$F$61)*#REF! -> 
C62: Корпус кухонний секція нижня 45Н/820 1дв | D62: 715 | E62: 446 | F62: 1 | G62: 0.31889 | H62: 0 | L62: =(K62*$F$13)*#REF! ->  | M62: =#REF! ->  | N62: =#REF! ->  | O62: =#REF! ->  | S62: =#REF! ->  | T62: =#REF! ->  | U62: =#REF! ->  | V62: =W62*$G$62 -> 0 | X62: =(W62*$F$62)*#REF! ->  | AB62: =#REF! ->  | AC62: =#REF! ->  | AD62: =#REF! ->  | AE62: =AF62*$G$62 -> 0 | AK62: =#REF! ->  | AL62: =AM62*$G$62 -> 0 | AN62: =(AM62*$F$62)*#REF! ->  | AP62: =#REF! ->  | AQ62: =#REF! ->  | AR62: =#REF! ->  | AS62: =AT62*$G$62 -> 0 | AU62: =(AT62*$F$62)*#REF! -> 
C63: Корпус кухонний секція нижня 40Н3ШХ/820 Телескоп | D63: 176 | E63: 396 | F63: 1 | G63: 0.069696 | H63: 0 | L63: =(K63*$F$13)*#REF! ->  | M63: =#REF! ->  | N63: =#REF! ->  | O63: =#REF! ->  | S63: =#REF! ->  | T63: =#REF! ->  | U63: =#REF! ->  | V63: =W63*$G$63 -> 0 | X63: =(W63*$F$63)*#REF! ->  | AB63: =#REF! ->  | AC63: =#REF! ->  | AD63: =#REF! ->  | AE63: =AF63*$G$63 -> 0 | AK63: =#REF! ->  | AL63: =AM63*$G$63 -> 0 | AN63: =(AM63*$F$63)*#REF! ->  | AP63: =#REF! ->  | AQ63: =#REF! ->  | AR63: =#REF! ->  | AS63: =AT63*$G$63 -> 0 | AU63: =(AT63*$F$63)*#REF! -> 
D64: 266 | E64: 396 | F64: 2 | G64: 0.210672 | H64: 0 | L64: =(K64*$F$13)*#REF! ->  | M64: =#REF! ->  | N64: =#REF! ->  | O64: =#REF! ->  | S64: =#REF! ->  | T64: =#REF! ->  | U64: =#REF! ->  | V64: =W63*$G$64 -> 0 | X64: =(W63*$F$64)*#REF! ->  | AB64: =#REF! ->  | AC64: =#REF! ->  | AD64: =#REF! ->  | AE64: =AF63*$G$64 -> 0 | AK64: =#REF! ->  | AL64: =AM63*$G$64 -> 0 | AN64: =(AM63*$F$64)*#REF! ->  | AP64: =#REF! ->  | AQ64: =#REF! ->  | AR64: =#REF! ->  | AS64: =AT63*$G$64 -> 0 | AU64: =(AT63*$F$64)*#REF! -> 
C65: Корпус кухонний секція нижня 50Н/820 1дв | D65: 715 | E65: 496 | F65: 1 | G65: 0.35464 | H65: 0 | L65: =(K65*$F$13)*#REF! ->  | M65: =#REF! ->  | N65: =#REF! ->  | O65: =#REF! ->  | S65: =#REF! ->  | T65: =#REF! ->  | U65: =#REF! ->  | V65: =W65*$G$65 -> 0 | X65: =(W65*$F$65)*#REF! ->  | AB65: =#REF! ->  | AC65: =#REF! ->  | AD65: =#REF! ->  | AE65: =AF65*$G$65 -> 0 | AK65: =#REF! ->  | AL65: =AM65*$G$65 -> 0 | AN65: =(AM65*$F$65)*#REF! ->  | AP65: =#REF! ->  | AQ65: =#REF! ->  | AR65: =#REF! ->  | AS65: =AT65*$G$65 -> 0 | AU65: =(AT65*$F$65)*#REF! -> 
C66: Корпус кухонний секція нижня 60НДШ/820 Телескоп | D66: 110 | E66: 596 | F66: 1 | G66: 0.06556 | H66: 0 | L66: =(K66*$F$13)*#REF! ->  | M66: =#REF! ->  | N66: =#REF! ->  | O66: =#REF! ->  | S66: =#REF! ->  | T66: =#REF! ->  | U66: =#REF! ->  | V66: =W66*$G$66 -> 0 | X66: =(W66*$F$66)*#REF! ->  | AB66: =#REF! ->  | AC66: =#REF! ->  | AD66: =#REF! ->  | AE66: =AF66*$G$66 -> 0 | AK66: =#REF! ->  | AL66: =AM66*$G$66 -> 0 | AN66: =(AM66*$F$66)*#REF! ->  | AP66: =#REF! ->  | AQ66: =#REF! ->  | AR66: =#REF! ->  | AS66: =AT66*$G$66 -> 0 | AU66: =(AT66*$F$66)*#REF! -> 
C67: Корпус кухонний секція нижня 60НД/820 | D67: 110 | E67: 596 | F67: 1 | G67: 0.06556 | H67: 0 | L67: =(K67*$F$13)*#REF! ->  | M67: =#REF! ->  | N67: =#REF! ->  | O67: =#REF! ->  | P67: =M67*H67 ->  | Q67: =N67*H67 ->  | R67: =O67*H67 ->  | S67: =#REF! ->  | T67: =#REF! ->  | U67: =#REF! ->  | V67: =W67*$G$67 -> 0 | X67: =(W67*$F$67)*#REF! ->  | AB67: =#REF! ->  | AC67: =#REF! ->  | AD67: =#REF! ->  | AE67: =AF67*$G$67 -> 0 | AK67: =#REF! ->  | AL67: =AM67*$G$67 -> 0 | AN67: =(AM67*$F$67)*#REF! ->  | AP67: =#REF! ->  | AQ67: =#REF! ->  | AR67: =#REF! ->  | AS67: =AT67*$G$67 -> 0 | AU67: =(AT67*$F$67)*#REF! -> 
C68: Корпус кухонний секція нижня 60Н/820 2дв | D68: 715 | E68: 296 | F68: 2 | G68: 0.42328 | H68: 0 | L68: =(K68*$F$13)*#REF! ->  | M68: =#REF! ->  | N68: =#REF! ->  | O68: =#REF! ->  | S68: =#REF! ->  | T68: =#REF! ->  | U68: =#REF! ->  | V68: =W68*$G$68 -> 0 | X68: =(W68*$F$68)*#REF! ->  | AB68: =#REF! ->  | AC68: =#REF! ->  | AD68: =#REF! ->  | AE68: =AF68*$G$68 -> 0 | AK68: =#REF! ->  | AL68: =AM68*$G$68 -> 0 | AN68: =(AM68*$F$68)*#REF! ->  | AP68: =#REF! ->  | AQ68: =#REF! ->  | AR68: =#REF! ->  | AS68: =AT68*$G$68 -> 0 | AU68: =(AT68*$F$68)*#REF! -> 
C69: Корпус кухонний секція нижня 60Н/820 1дв | D69: 715 | E69: 596 | F69: 1 | G69: 0.42614 | H69: 0 | L69: =(K69*$F$13)*#REF! ->  | M69: =#REF! ->  | N69: =#REF! ->  | O69: =#REF! -> 
C70: Корпус кухонний секція нижня 60НМ/820 2дв Мийка | D70: 715 | E70: 296 | F70: 2 | G70: 0.42328 | H70: 0 | L70: =(K70*$F$13)*#REF! ->  | M70: =#REF! ->  | N70: =#REF! ->  | O70: =#REF! ->  | S70: =#REF! ->  | T70: =#REF! ->  | U70: =#REF! ->  | V70: =W70*$G$70 -> 0 | X70: =(W70*$F$70)*#REF! ->  | AB70: =#REF! ->  | AC70: =#REF! ->  | AD70: =#REF! ->  | AE70: =AF70*$G$70 -> 0 | AK70: =#REF! ->  | AL70: =AM70*$G$70 -> 0 | AN70: =(AM70*$F$70)*#REF! ->  | AO70: =AL70*AK70 ->  | AP70: =#REF! ->  | AQ70: =#REF! ->  | AR70: =#REF! ->  | AS70: =AT70*$G$70 -> 0 | AU70: =(AT70*$F$70)*#REF! -> 
C71: Корпус кухонний секція нижня 60Н2ШХ/820 Телескоп | D71: 356 | E71: 596 | F71: 2 | G71: 0.424352 | H71: 0 | L71: =(K71*$F$13)*#REF! ->  | M71: =#REF! ->  | N71: =#REF! ->  | O71: =#REF! ->  | S71: =#REF! ->  | T71: =#REF! ->  | U71: =#REF! ->  | V71: =W71*$G$71 -> 0 | X71: =(W71*$F$71)*#REF! ->  | AB71: =#REF! ->  | AC71: =#REF! ->  | AD71: =#REF! ->  | AE71: =AF71*$G$71 -> 0 | AH71: =AB71*AE71 ->  | AI71: =AC71*AE71 ->  | AJ71: =AD71*AE71 ->  | AK71: =#REF! ->  | AL71: =AM71*$G$71 -> 0 | AN71: =(AM71*$F$71)*#REF! ->  | AP71: =#REF! ->  | AQ71: =#REF! ->  | AR71: =#REF! ->  | AS71: =AT71*$G$71 -> 0 | AU71: =(AT71*$F$71)*#REF! -> 
C72: Корпус кухонний секція нижня 60Н3ШХ/820 Телескоп | D72: 176 | E72: 596 | F72: 1 | G72: 0.104896 | H72: 0 | L72: =(K72*$F$13)*#REF! ->  | M72: =#REF! ->  | N72: =#REF! ->  | O72: =#REF! ->  | S72: =#REF! ->  | T72: =#REF! ->  | U72: =#REF! ->  | V72: =W72*$G$72 -> 0 | X72: =(W72*$F$72)*#REF! ->  | AB72: =#REF! ->  | AC72: =#REF! ->  | AD72: =#REF! ->  | AE72: =AF72*$G$72 -> 0 | AK72: =#REF! ->  | AL72: =AM72*$G$72 -> 0 | AN72: =(AM72*$F$72)*#REF! ->  | AP72: =#REF! ->  | AQ72: =#REF! ->  | AR72: =#REF! ->  | AS72: =AT72*$G$72 -> 0 | AU72: =(AT72*$F$72)*#REF! -> 
D73: 266 | E73: 596 | F73: 2 | G73: 0.317072 | H73: =G73*K72 -> 0 | L73: =(K73*$F$13)*#REF! ->  | M73: =#REF! ->  | N73: =#REF! ->  | O73: =#REF! ->  | S73: =#REF! ->  | T73: =#REF! ->  | U73: =#REF! ->  | V73: =W72*$G$73 -> 0 | X73: =(W72*$F$73)*#REF! ->  | AB73: =#REF! ->  | AC73: =#REF! ->  | AD73: =#REF! ->  | AE73: =AF72*$G$73 -> 0 | AK73: =#REF! ->  | AL73: =AM72*$G$73 -> 0 | AN73: =(AM72*$F$73)*#REF! ->  | AP73: =#REF! ->  | AQ73: =#REF! ->  | AR73: =#REF! ->  | AS73: =AT72*$G$73 -> 0 | AU73: =(AT72*$F$73)*#REF! -> 
C74: Корпус кухонний секція нижня 80Н/820 2дв | D74: 715 | E74: 396 | F74: 2 | G74: 0.56628 | H74: =G74*K74 -> 0 | L74: =(K74*$F$13)*#REF! ->  | M74: =#REF! ->  | N74: =#REF! ->  | O74: =#REF! ->  | S74: =#REF! ->  | T74: =#REF! ->  | U74: =#REF! ->  | V74: =W74*$G$74 -> 0 | X74: =(W74*$F$74)*#REF! ->  | AB74: =#REF! ->  | AC74: =#REF! ->  | AD74: =#REF! ->  | AE74: =AF74*$G$74 -> 0 | AK74: =#REF! ->  | AL74: =AM74*$G$74 -> 0 | AN74: =(AM74*$F$74)*#REF! ->  | AP74: =#REF! ->  | AQ74: =#REF! ->  | AR74: =#REF! ->  | AS74: =AT74*$G$74 -> 0 | AU74: =(AT74*$F$74)*#REF! -> 
C75: Корпус кухонний секція нижня 80НМ/820 2дв Мийка | D75: 715 | E75: 396 | F75: 2 | G75: 0.56628 | H75: =G75*K75 -> 0 | L75: =(K75*$F$13)*#REF! ->  | M75: =#REF! ->  | N75: =#REF! ->  | O75: =#REF! ->  | S75: =#REF! ->  | T75: =#REF! ->  | U75: =#REF! ->  | V75: =W75*$G$75 -> 0 | X75: =(W75*$F$75)*#REF! ->  | AB75: =#REF! ->  | AC75: =#REF! ->  | AD75: =#REF! ->  | AE75: =AF75*$G$75 -> 0 | AK75: =#REF! ->  | AL75: =AM75*$G$75 -> 0 | AN75: =(AM75*$F$75)*#REF! ->  | AP75: =#REF! ->  | AQ75: =#REF! ->  | AR75: =#REF! ->  | AS75: =AT75*$G$75 -> 0 | AU75: =(AT75*$F$75)*#REF! -> 
C76: Корпус кухонний секція нижня 80Н2ШХ/820 Телескоп | D76: 356 | E76: 796 | F76: 2 | G76: 0.566752 | H76: =G76*K76 -> 0 | L76: =(K76*$F$13)*#REF! ->  | M76: =#REF! ->  | N76: =#REF! ->  | O76: =#REF! ->  | S76: =#REF! ->  | T76: =#REF! ->  | U76: =#REF! ->  | V76: =W76*$G$76 -> 0 | X76: =(W76*$F$76)*#REF! ->  | AB76: =#REF! ->  | AC76: =#REF! ->  | AD76: =#REF! ->  | AE76: =AF76*$G$76 -> 0 | AK76: =#REF! ->  | AL76: =AM76*$G$76 -> 0 | AN76: =(AM76*$F$76)*#REF! ->  | AP76: =#REF! ->  | AQ76: =#REF! ->  | AR76: =#REF! ->  | AS76: =AT76*$G$76 -> 0 | AU76: =(AT76*$F$76)*#REF! -> 
C77: Корпус кухонний секція нижня 80Н3ШХ/820 Телескоп | D77: 176 | E77: 796 | F77: 1
D78: 266 | E78: 796 | F78: 2
C79: Корпус кухонний секцiя нижня КутН 90°/820 1дв | D79: 715 | E79: 396 | F79: 1 | G79: 0.28314 | H79: =G79*K79 -> 0 | L79: =(K79*$F$13)*#REF! ->  | M79: =#REF! ->  | N79: =#REF! ->  | O79: =#REF! ->  | P79: =M79*H79 ->  | Q79: =N79*H79 ->  | R79: =O79*H79 ->  | S79: =#REF! ->  | T79: =#REF! ->  | U79: =#REF! ->  | V79: =W79*$G$79 -> 0 | X79: =(W79*$F$79)*#REF! ->  | AB79: =#REF! ->  | AC79: =#REF! ->  | AD79: =#REF! ->  | AE79: =AF79*$G$79 -> 0 | AK79: =#REF! ->  | AL79: =AM79*$G$79 -> 0 | AN79: =(AM79*$F$79)*#REF! ->  | AP79: =#REF! ->  | AQ79: =#REF! ->  | AR79: =#REF! ->  | AS79: =AT79*$G$79 -> 0 | AU79: =(AT79*$F$79)*#REF! -> 
D80: 715 | E80: 72 | F80: 1 | G80: 0.05148 | H80: =G80*K79 -> 0 | L80: =(K80*$F$13)*#REF! ->  | M80: =#REF! ->  | N80: =#REF! ->  | O80: =#REF! ->  | S80: =#REF! ->  | T80: =#REF! ->  | U80: =#REF! ->  | V80: =W79*$G$80 -> 0 | X80: =(W80*$F$80)*#REF! ->  | AB80: =#REF! ->  | AC80: =#REF! ->  | AD80: =#REF! ->  | AE80: =AF79*$G$80 -> 0 | AK80: =#REF! ->  | AL80: =AM79*$G$80 -> 0 | AN80: =(AM80*$F$80)*#REF! ->  | AP80: =#REF! ->  | AQ80: =#REF! ->  | AR80: =#REF! ->  | AS80: =AT79*$G$80 -> 0 | AU80: =(AT80*$F$80)*#REF! -> 
D81: 715 | E81: 235 | F81: 1 | G81: 0.168025 | H81: =G81*K79 -> 0 | L81: =(K81*$F$13)*#REF! ->  | M81: =#REF! ->  | N81: =#REF! ->  | O81: =#REF! ->  | S81: =#REF! ->  | T81: =#REF! ->  | U81: =#REF! ->  | V81: =W79*$G$81 -> 0 | X81: =(W81*$F$81)*#REF! ->  | AB81: =#REF! ->  | AC81: =#REF! ->  | AD81: =#REF! ->  | AE81: =AF79*$G$81 -> 0 | AK81: =#REF! ->  | AL81: =AM79*$G$81 -> 0 | AN81: =(AM81*$F$81)*#REF! ->  | AP81: =#REF! ->  | AQ81: =#REF! ->  | AR81: =#REF! ->  | AS81: =AT79*$G$81 -> 0 | AU81: =(AT81*$F$81)*#REF! -> 
C82: Корпус кухонний секцiя нижня КутН 90°/820 Обманка | D82: 715 | E82: 90 | F82: 1 | G82: 0.06435 | H82: =G82*K80 -> 0 | M82: =#REF! ->  | N82: =#REF! ->  | O82: =#REF! -> 
D83: 715 | E83: 72 | F83: 1 | G83: 0.05148 | H83: =G83*K81 -> 0 | M83: =#REF! ->  | N83: =#REF! ->  | O83: =#REF! -> 
C84: Корпус кухонний секцiя нижня КутН 90°/820 2дв | D84: 715 | E84: 478 | F84: 1 | G84: 0.34177 | H84: =G84*K82 -> 0 | L84: =(K84*$F$13)*#REF! ->  | M84: =#REF! ->  | N84: =#REF! ->  | O84: =#REF! -> 
D85: 715 | E85: 468 | F85: 1 | G85: 0.33462 | H85: =G85*K83 -> 0 | L85: =(K85*$F$13)*#REF! ->  | M85: =#REF! ->  | N85: =#REF! ->  | O85: =#REF! -> 
C86: Корпус кухонний секцiя нижня 30НЗР/820 1дв Закінчення Радіусне | D86: 715 | E86: 464 | F86: 1 | G86: 0.33176 | H86: =G86*K86 -> 0 | L86: =(K86*$F$13)*#REF! ->  | M86: =#REF! ->  | N86: =#REF! ->  | O86: =#REF! ->  | P86: =M86*K86 ->  | Q86: =N86*K86 ->  | R86: =O86*K86 ->  | S86: =#REF! ->  | T86: =#REF! ->  | U86: =#REF! ->  | V86: =W86*$G$86 -> 0 | X86: =(W86*$F$86)*#REF! ->  | Y86: =S86*W86 ->  | Z86: =T86*W86 ->  | AA86: =U86*W86 ->  | AB86: =#REF! ->  | AC86: =#REF! ->  | AD86: =#REF! ->  | AE86: =AF86*$G$86 -> 0 | AH86: =AB86*AF86 ->  | AI86: =AC86*AF86 ->  | AJ86: =AD86*AF86 ->  | AK86: =#REF! ->  | AL86: =AM86*$G$86 -> 0 | AN86: =(AM86*$F$86)*#REF! ->  | AP86: =#REF! ->  | AQ86: =#REF! ->  | AR86: =#REF! ->  | AS86: =AT86*$G$86 -> 0 | AU86: =(AT86*$F$86)*#REF! ->  | AV86: =AP86*AT86 ->  | AW86: =AQ86*AT86 ->  | AX86: =AR86*AT86 -> 
D87: 715 | E87: 230 | F87: 1 | G87: 0.16445 | H87: =G87*K86 -> 0 | L87: =(K87*$F$13)*#REF! ->  | M87: =#REF! ->  | N87: =#REF! ->  | O87: =#REF! ->  | P87: =M87*H87 ->  | Q87: =N87*H87 ->  | R87: =O87*H87 ->  | S87: =#REF! ->  | T87: =#REF! ->  | U87: =#REF! ->  | V87: =W86*$G$87 -> 0 | X87: =(W87*$F$87)*#REF! ->  | Y87: =V87*S87 ->  | Z87: =V87*T87 ->  | AA87: =V87*U87 ->  | AB87: =#REF! ->  | AC87: =#REF! ->  | AD87: =#REF! ->  | AE87: =AF86*$G$87 -> 0 | AK87: =#REF! ->  | AL87: =AM86*$G$87 -> 0 | AN87: =(AM87*$F$87)*#REF! ->  | AP87: =#REF! ->  | AQ87: =#REF! ->  | AR87: =#REF! ->  | AS87: =AT86*$G$87 -> 0 | AU87: =(AT87*$F$87)*#REF! ->  | AV87: =AP87*AS87 ->  | AW87: =AQ87*AS87 ->  | AX87: =AR87*AS87 -> 
B88: Пенали | C88: Корпус кухонний секція пенал 40П/2140 | D88: 1316 | E88: 396 | F88: 1 | G88: 0.521136 | H88: 0 | L88: =(K88*$F$13)*#REF! ->  | M88: 1873 | N88: =#REF! ->  | O88: =#REF! ->  | P88: 0
D89: 715 | E89: 396 | F89: 1 | G89: 0.28314 | H89: 0 | L89: =(K89*$F$13)*#REF! ->  | M89: 1873 | N89: =#REF! ->  | O89: =#REF! ->  | P89: 0
C90: Корпус кухонний секція пенал 60П/1420 | D90: 1316 | E90: 596 | F90: 1 | G90: 0.784336 | H90: 0 | L90: =(K90*$F$13)*#REF! ->  | M90: 1873 | N90: =#REF! ->  | O90: =#REF! ->  | P90: 0
C91: Корпус кухонний секція пенал 60П/2140 | D91: 1316 | E91: 596 | F91: 1 | G91: =(D91*E91)/1000000*F91 -> 0.784336 | H91: 0 | L91: =(K91*$F$13)*#REF! ->  | M91: 1873 | N91: =#REF! ->  | O91: =#REF! ->  | P91: 0
D92: 715 | E92: 596 | F92: 1 | G92: 0.42614 | H92: 0 | L92: =(K92*$F$13)*#REF! ->  | M92: 1873 | N92: =#REF! ->  | O92: =#REF! ->  | P92: 0
C93: Корпус кухонний секція пенал 60П/2320 | D93: 1496 | E93: 596 | F93: 1 | G93: 0.891616 | H93: 0 | L93: =(K93*$F$13)*#REF! ->  | M93: 1873 | N93: =#REF! ->  | O93: =#REF! ->  | P93: 0
D94: 715 | E94: 596 | F94: 1 | G94: 0.42614 | H94: 0 | L94: =(K94*$F$13)*#REF! ->  | M94: 1873 | N94: =#REF! ->  | O94: =#REF! ->  | P94: 0
C95: Корпус кухонний секція пенал 60ПД/1420 Духовка | D95: 715 | E95: 596 | F95: 1 | G95: 0.42614 | H95: 0 | L95: =(K95*$F$13)*#REF! ->  | M95: 1873 | N95: =#REF! ->  | O95: =#REF! ->  | P95: 0
C96: Корпус кухонний секція пенал 60ПД/2140 Духовка | D96: 715 | E96: 596 | F96: 2 | G96: 0.85228
C97: Корпус кухонний секція пенал 60ПД/2320 Духовка | D97: 895 | E97: 596 | F97: 1 | G97: 0.53342 | H97: =G97*K95 -> 0 | L97: =(K97*$F$13)*#REF! ->  | M97: 1873 | N97: =#REF! ->  | O97: =#REF! ->  | P97: 0
D98: 715 | E98: 596 | F98: 1 | G98: 0.42614 | H98: 0 | L98: =(K98*$F$13)*#REF! ->  | M98: 1873 | N98: =#REF! ->  | O98: =#REF! ->  | P98: 0
C99: Корпус кухонний секція пенал 60ПДМ1ШХ/2140 Духовка+Мікрохвильовка Телескоп | D99: 715 | E99: 596 | F99: 1 | G99: 0.42614 | H99: 0 | L99: =(K99*$F$13)*#REF! ->  | M99: 1873 | N99: =#REF! ->  | O99: =#REF! ->  | P99: 0
D100: 336 | E100: 596 | F100: 1 | G100: 0.200256 | H100: 0 | L100: =(K100*$F$13)*#REF! ->  | M100: 1873 | N100: =#REF! ->  | O100: =#REF! ->  | P100: 0
C101: Корпус кухонний секція пенал 60ПДМ1ШХ/2320 Духовка+Мікрохвильовка Телескоп | D101: 895 | E101: 596 | F101: 1 | G101: 0.53342 | H101: 0 | L101: =(K101*$F$13)*#REF! ->  | M101: 1873 | N101: =#REF! ->  | O101: =#REF! ->  | P101: 0
D102: 336 | E102: 596 | F102: 1 | G102: 0.200256 | H102: 0 | L102: =(K102*$F$13)*#REF! ->  | M102: 1873 | N102: =#REF! ->  | O102: =#REF! ->  | P102: 0
C103: Корпус кухонний секція пенал 60ПЗ/2140 для Запасів | D103: 715 | E103: 596 | F103: 1 | G103: 0.42614 | H103: 0 | L103: =(K103*$F$13)*#REF! ->  | M103: 1873 | N103: =#REF! ->  | O103: =#REF! ->  | P103: 0
D104: 1316 | E104: 596 | F104: 1 | G104: 0.784336 | H104: 0 | L104: =(K104*$F$13)*#REF! ->  | M104: 1873 | N104: =#REF! ->  | O104: =#REF! ->  | P104: 0
C105: Корпус кухонний секція пенал 60ПХ/2140 Холодильник | D105: 1316 | E105: 596 | F105: 1 | G105: 0.784336 | H105: 0 | L105: =(K105*$F$13)*#REF! ->  | M105: 1873 | N105: =#REF! ->  | O105: =#REF! ->  | P105: 0
D106: 715 | E106: 596 | F106: 1 | G106: 0.42614 | H106: 0 | L106: =(K106*$F$13)*#REF! ->  | M106: 1873 | N106: =#REF! ->  | O106: =#REF! ->  | P106: 0
C107: Корпус кухонний секція пенал 60ПХ/2320 Холодильник | D107: 1496 | E107: 596 | F107: 1 | G107: 0.891616 | H107: 0 | L107: =(K107*$F$13)*#REF! ->  | M107: 1873 | N107: =#REF! ->  | O107: =#REF! ->  | P107: 0
D108: 715 | E108: 596 | F108: 1 | G108: 0.42614 | H108: 0 | L108: =(K108*$F$13)*#REF! ->  | M108: 1873 | N108: =#REF! ->  | O108: =#REF! ->  | P108: 0
B109: Інше | C109: Фасад кухонний 45Н/720 Посудомийка | D109: 715 | E109: 446 | F109: 1 | G109: 0.31889 | H109: =G109*K109 -> 0 | L109: =(K109*$F$109)*#REF! ->  | M109: =#REF! ->  | N109: =#REF! ->  | O109: =#REF! ->  | S109: =#REF! ->  | T109: =#REF! ->  | U109: =#REF! ->  | V109: =W109*$G$109 -> 0 | X109: =(W109*$F$109)*#REF! ->  | Y109: =S109*V109 ->  | Z109: =T109*V109 ->  | AA109: =U109*V109 ->  | AB109: =#REF! ->  | AC109: =#REF! ->  | AD109: =#REF! ->  | AE109: =AF109*$G$109 -> 0 | AK109: =#REF! ->  | AL109: =AM109*$G$109 -> 0 | AN109: =(AM109*$F$109)*#REF! ->  | AP109: =#REF! ->  | AQ109: =#REF! ->  | AR109: =#REF! ->  | AS109: =AT109*$G$109 -> 0 | AU109: =(AT109*$F$109)*#REF! -> 
C110: Фасад кухонний 60Н/720 Посудомийка | D110: 715 | E110: 596 | F110: 1 | G110: 0.42614 | H110: 0 | L110: =(K110*$F$110)*#REF! ->  | M110: =#REF! ->  | N110: =#REF! ->  | O110: =#REF! ->  | S110: =#REF! ->  | T110: =#REF! ->  | U110: =#REF! ->  | V110: =W110*$G$110 -> 0 | X110: =(W110*$F$110)*#REF! ->  | AB110: =#REF! ->  | AC110: =#REF! ->  | AD110: =#REF! ->  | AE110: =AF110*$G$110 -> 0 | AK110: =#REF! ->  | AL110: =AM110*$G$110 -> 0 | AN110: =(AM110*$F$110)*#REF! ->  | AP110: =#REF! ->  | AQ110: =#REF! ->  | AR110: =#REF! ->  | AS110: =AT110*$G$110 -> 0 | AU110: =(AT110*$F$110)*#REF! -> 
C111: Бічна панель верхня 720мм | D111: 720 | E111: 350 | F111: 1 | G111: 0.252 | H111: 0 | M111: 1873 | N111: =#REF! ->  | O111: =#REF! ->  | P111: 0
C112: Бічна панель верхня 900мм | D112: 900 | E112: 350 | F112: 1 | G112: 0.315 | H112: 0 | M112: 1873 | N112: =#REF! ->  | O112: =#REF! ->  | P112: 0
C113: Бічна панель нижня 820мм | D113: 820 | E113: 580 | F113: 1 | G113: 0.4756 | H113: 0 | M113: 1873 | N113: =#REF! ->  | O113: =#REF! ->  | P113: 0
C114: Бічна панель пенал 1420мм | D114: 1420 | E114: 580 | F114: 1 | G114: 0.8236 | H114: 0 | M114: 1873 | N114: =#REF! ->  | O114: =#REF! ->  | P114: 0
C115: Бічна панель пенал 2140мм | D115: 2140 | E115: 580 | F115: 1 | G115: 1.2412 | H115: 0 | M115: 1873 | N115: =#REF! ->  | O115: =#REF! ->  | P115: 0
C116: Бічна панель пенал 2320мм | D116: 2320 | E116: 580 | F116: 1 | G116: 1.3456 | H116: 0 | M116: 1873 | N116: =#REF! ->  | O116: =#REF! ->  | P116: 0
C117: Бічна панель верхня 720мм | D117: 720 | E117: 580 | F117: 1 | G117: 0.4176 | H117: 0 | M117: 1873 | N117: =#REF! ->  | O117: =#REF! ->  | P117: 0
C118: Бічна панель верхня 900мм | D118: 900 | E118: 580 | F118: 1 | G118: 0.522 | H118: 0 | M118: 1873 | N118: =#REF! ->  | O118: =#REF! ->  | P118: 0
C119: Бічна панель нижня 820мм | D119: 820 | E119: 580 | F119: 1 | G119: 0.4756 | H119: 0 | M119: 1873 | N119: =#REF! ->  | O119: =#REF! ->  | P119: 0
C120: Бічна панель пенал 1420мм | D120: 1420 | E120: 580 | F120: 1 | G120: 0.8236 | H120: 0 | M120: 1873 | N120: =#REF! ->  | O120: =#REF! ->  | P120: 0
C121: Бічна панель пенал 2140мм | D121: 2140 | E121: 580 | F121: 1 | G121: 1.2412 | H121: 0 | M121: 1873 | N121: =#REF! ->  | O121: =#REF! ->  | P121: 0
C122: Бічна панель пенал 2320мм | D122: 2320 | E122: 580 | F122: 1 | G122: 1.3456 | H122: 0 | M122: 1873 | N122: =#REF! ->  | O122: =#REF! ->  | P122: 0
C123: Корпус кухонний секція верхня 5ВП/720 Пілястра | D123: 715 | E123: 50 | F123: 1 | G123: 0.03575 | H123: 0 | M123: =#REF! ->  | N123: =#REF! ->  | O123: =#REF! -> 
C124: Корпус кухонний секція верхня 5ВП/900 Пілястра | D124: 895 | E124: 50 | F124: 1 | G124: 0.04475 | H124: 0 | M124: =#REF! ->  | N124: =#REF! ->  | O124: =#REF! -> 
C125: Корпус кухонний секція нижня 5НП/820 Пілястра | D125: 715 | E125: 50 | F125: 1 | G125: 0.03575 | H125: 0 | M125: =#REF! ->  | N125: =#REF! ->  | O125: =#REF! ->  | S125: =#REF! ->  | T125: =#REF! ->  | U125: =#REF! ->  | V125: =W125*$G$125 -> 0 | Y125: =S125*V125 ->  | Z125: =T125*V125 ->  | AA125: =U125*V125 ->  | AB125: =#REF! ->  | AC125: =#REF! ->  | AD125: =#REF! ->  | AE125: =AF125*$G$125 -> 0 | AK125: =#REF! ->  | AL125: =AM125*$G$125 -> 0 | AP125: =#REF! ->  | AQ125: =#REF! ->  | AR125: =#REF! ->  | AS125: =AT125*$G$125 -> 0

Sheet Фасади кухонних корпусів ПРО
C1: Фасади кухонних корпусів ПРО
C2: Номенклатура | D2: Довжина/мм | E2: Ширина/мм | F2: К-сть на 1 комплект | G2: Площа,м2 | H2: Площа замовлення | I2: Корпус, Ціна за 1 комплект | J2: Корпус К-сть секцій | K2: Сума секцій корпуса | L2: Софія + К-сть секцій | M2: Сверління під ручку | N2: Софія + Ціна за м2 Напівмат | O2: Софія + Ціна за м2 Глянець | P2: Софія + Ціна за м2 Перламутр | Q2: Софія + Сума Напівмат | R2: Софія + Сума Глянець | S2: Софія + Сума Перламутр | T2: Аманда Ціна за м2 Напівмат | U2: Аманда Ціна за м2 Глянець | V2: Аманда Ціна за м2 Перламутр | W2: Площа замовлення | X2: Аманда К-сть секцій | Y2: Сверління під ручку | Z2: Аманда Сума Напівмат | AA2: Аманда Сума Глянець | AB2: Аманда Сума Перламутр | AC2: Міленіум + Ціна за м2 Напівмат | AD2: Міленіум + Ціна за м2 Глянець | AE2: Міленіум + Ціна за м2 Перламутр | AF2: Площа замовлення | AG2: Міленіум+, Мілена, Адель, Емілія, Мельвін, Максі К-сть секцій | AH2: Сверління під ручку | AI2: Міленіум + Сума Напівмат | AJ2: Міленіум + Сума Глянець | AK2: Міленіум + Сума Перламутр | AL2: Візель Ціна за м2 Напівмат | AM2: Площа замовлення | AN2: Вінтаж+, Візель, Вікі К-сть секцій | AO2: Сверління під ручку | AP2: Візель Сума Напівмат | AQ2: Прованс Ціна за м2 Напівмат | AR2: Прованс Ціна за м2 Глянець | AS2: Прованс Ціна за м2 Перламутр | AT2: Площа замовлення | AU2: Прованс, Валенсія +, Мішель, Доміні, Матільда, Вілсон К-сть секцій | AV2: Сверління під ручку | AW2: Прованс Сума Напівмат | AX2: Прованс Сума Глянець | AY2: Прованс Сума Перламутр
B3: Верхні секції | C3: Корпус кухонний секцiя верхня 20В/720 1дв Pro Blum | D3: 715 | E3: 196 | F3: 1 | G3: =(D3*E3)/1000000*F3 -> 0.14014 | H3: =G3*L3 -> 0 | I3: 900 | K3: =(I3*1)*J3 -> 0 | M3: =(L3*$F$3)*#REF! ->  | N3: =#REF! ->  | O3: =#REF! ->  | P3: =#REF! ->  | Q3: =N3*H3 ->  | R3: =O3*H3 ->  | S3: =P3*H3 ->  | T3: =#REF! ->  | U3: =#REF! ->  | V3: =#REF! ->  | W3: =X3*$G$3 -> 0 | Y3: =(X3*$F$3)*#REF! ->  | Z3: =T3*W3 ->  | AA3: =U3*W3 ->  | AB3: =V3*W3 ->  | AC3: =#REF! ->  | AD3: =#REF! ->  | AE3: =#REF! ->  | AF3: =AG3*$G$3 -> 0 | AI3: =AC3*AF3 ->  | AJ3: =AD3*AF3 ->  | AK3: =AE3*AF3 ->  | AL3: =#REF! ->  | AM3: =AN3*$G$3 -> 0 | AO3: =(AN3*$F$3)*#REF! ->  | AP3: =AM3*AL3 ->  | AQ3: =#REF! ->  | AR3: =#REF! ->  | AS3: =#REF! ->  | AT3: =AU3*$G$3 -> 0 | AV3: =(AU3*$F$3)*#REF! ->  | AW3: =AQ3*AT3 ->  | AX3: =AR3*AT3 ->  | AY3: =AS3*AT3 -> 
C4: Корпус кухонний секцiя верхня 20В/900 1дв Pro Blum | D4: 895 | E4: 196 | F4: 1 | G4: =(D4*E4)/1000000*F4 -> 0.17542 | H4: 0 | I4: 988 | K4: =(I4*1)*J4 -> 0 | M4: =(L4*$F$4)*#REF! ->  | N4: =#REF! ->  | O4: =#REF! ->  | P4: =#REF! ->  | Q4: =N4*H4 ->  | R4: =O4*H4 ->  | S4: =P4*H4 ->  | T4: =#REF! ->  | U4: =#REF! ->  | V4: =#REF! ->  | W4: =X4*$G$4 -> 0 | Y4: =(X4*$F$4)*#REF! ->  | Z4: =T4*W4 ->  | AA4: =U4*W4 ->  | AB4: =V4*W4 ->  | AC4: =#REF! ->  | AD4: =#REF! ->  | AE4: =#REF! ->  | AF4: =AG4*$G$4 -> 0 | AI4: =AC4*AF4 ->  | AJ4: =AD4*AF4 ->  | AK4: =AE4*AF4 ->  | AL4: =#REF! ->  | AM4: =AN4*$G$4 -> 0 | AO4: =(AN4*$F$4)*#REF! ->  | AP4: =AM4*AL4 ->  | AQ4: =#REF! ->  | AR4: =#REF! ->  | AS4: =#REF! ->  | AT4: =AU4*$G$4 -> 0 | AV4: =(AU4*$F$4)*#REF! ->  | AW4: =AQ4*AT4 ->  | AX4: =AR4*AT4 ->  | AY4: =AS4*AT4 ->  | BC4: Софія+
C5: Корпус кухонний секцiя верхня 30В/720 1дв Pro Blum | D5: 715 | E5: 296 | F5: 1 | G5: 0.21164 | H5: 0 | I5: 942 | K5: =(I5*1)*J5 -> 0 | M5: =(L5*$F$5)*#REF! ->  | N5: =#REF! ->  | O5: =#REF! ->  | P5: =#REF! ->  | Q5: =N5*H5 ->  | R5: =O5*H5 ->  | S5: =P5*H5 ->  | T5: =#REF! ->  | U5: =#REF! ->  | V5: =#REF! ->  | W5: =X5*$G$5 -> 0 | Y5: =(X5*$F$5)*#REF! ->  | AC5: =#REF! ->  | AD5: =#REF! ->  | AE5: =#REF! ->  | AF5: =AG5*$G$5 -> 0 | AL5: =#REF! ->  | AM5: =AN5*$G$5 -> 0 | AO5: =(AN5*$F$5)*#REF! ->  | AQ5: =#REF! ->  | AR5: =#REF! ->  | AS5: =#REF! ->  | AT5: =AU5*$G$5 -> 0 | AV5: =(AU5*$F$5)*#REF! ->  | AW5: =AQ5*AT5 ->  | AX5: =AR5*AT5 ->  | AY5: =AS5*AT5 ->  | BC5: Аманда
C6: Корпус кухонний секцiя верхня 30В/900 1дв Pro Blum | D6: 895 | E6: 296 | F6: 1 | G6: 0.26492 | H6: 0 | I6: 1030 | K6: =(I6*1)*J6 -> 0 | M6: =(L6*$F$6)*#REF! ->  | N6: =#REF! ->  | O6: =#REF! ->  | P6: =#REF! ->  | Q6: =N6*H6 ->  | R6: =O6*H6 ->  | S6: =P6*H6 ->  | T6: =#REF! ->  | U6: =#REF! ->  | V6: =#REF! ->  | W6: =X6*$G$6 -> 0 | Y6: =(X6*$F$6)*#REF! ->  | AC6: =#REF! ->  | AD6: =#REF! ->  | AE6: =#REF! ->  | AF6: =AG6*$G$5 -> 0 | AL6: =#REF! ->  | AM6: =AN6*$G$6 -> 0 | AO6: =(AN6*$F$6)*#REF! ->  | AQ6: =#REF! ->  | AR6: =#REF! ->  | AS6: =#REF! ->  | AT6: =AU6*$G$6 -> 0 | AV6: =(AU6*$F$6)*#REF! ->  | BC6: Міленіум+
C7: Корпус кухонний секцiя верхня 40В/720 1дв Pro Blum | D7: 715 | E7: 396 | F7: 1 | G7: 0.28314 | H7: 0 | I7: 1030 | K7: =(I7*1)*J7 -> 0 | M7: =(L7*$F$7)*#REF! ->  | N7: =#REF! ->  | O7: =#REF! ->  | P7: =#REF! ->  | Q7: =N7*H7 ->  | R7: =O7*H7 ->  | S7: =P7*H7 ->  | T7: =#REF! ->  | U7: =#REF! ->  | V7: =#REF! ->  | W7: =X7*$G$7 -> 0 | Y7: =(X7*$F$7)*#REF! ->  | AC7: =#REF! ->  | AD7: =#REF! ->  | AE7: =#REF! ->  | AF7: =AG7*$G$7 -> 0 | AL7: =#REF! ->  | AM7: =AN7*$G$7 -> 0 | AO7: =(AN7*$F$7)*#REF! ->  | AQ7: =#REF! ->  | AR7: =#REF! ->  | AS7: =#REF! ->  | AT7: =AU7*$G$7 -> 0 | AV7: =(AU7*$F$7)*#REF! ->  | BC7: Максі
C8: Корпус кухонний секцiя верхня 40В/900 1дв Pro Blum | D8: 895 | E8: 396 | F8: 1 | G8: 0.35442 | H8: 0 | I8: 1121 | K8: =(I8*1)*J8 -> 0 | M8: =(L8*$F$8)*#REF! ->  | N8: =#REF! ->  | O8: =#REF! ->  | P8: =#REF! ->  | T8: =#REF! ->  | U8: =#REF! ->  | V8: =#REF! ->  | W8: =X8*$G$8 -> 0 | Y8: =(X8*$F$8)*#REF! ->  | AC8: =#REF! ->  | AD8: =#REF! ->  | AE8: =#REF! ->  | AF8: =AG8*$G$8 -> 0 | AL8: =#REF! ->  | AM8: =AN8*$G$8 -> 0 | AO8: =(AN8*$F$8)*#REF! ->  | AQ8: =#REF! ->  | AR8: =#REF! ->  | AS8: =#REF! ->  | AT8: =AU8*$G$8 -> 0 | AV8: =(AU8*$F$8)*#REF! ->  | BC8: Вінтаж+
C9: Корпус кухонний секцiя верхня 40В/360 1дв Aventos Pro Blum | D9: 356 | E9: 396 | F9: 1 | G9: 0.140976 | H9: 0
C10: Корпус кухонний секцiя верхня 40В/450 1дв Aventos Pro Blum | D10: 446 | E10: 396 | F10: 1 | G10: 0.176616 | H10: 0
C11: Корпус кухонний секцiя верхня 40В/900 1дв Вітрина Pro Blum | D11: 895 | E11: 396 | F11: 1 | G11: 0.35442 | H11: 0 | I11: 1121 | K11: 0 | M11: =(L11*$F$11)*#REF! ->  | N11: =#REF!*1.5 ->  | O11: =#REF!*1.5 ->  | P11: =#REF!*1.5 ->  | T11: =#REF!*1.5 ->  | U11: =#REF!*1.5 ->  | V11: =#REF!*1.5 ->  | W11: =X11*$G$11 -> 0 | Y11: =(X11*$F$11)*#REF! ->  | AC11: =#REF!*1.5 ->  | AD11: =#REF!*1.5 ->  | AE11: =#REF!*1.5 ->  | AF11: =AG11*$G$11 -> 0 | AL11: =#REF!*1.5 ->  | AM11: =AN11*$G$11 -> 0 | AO11: =(AN11*$F$11)*#REF! ->  | AQ11: =#REF!*1.5 ->  | AR11: =#REF!*1.5 ->  | AS11: =#REF!*1.5 ->  | AT11: =AU11*$G$11 -> 0 | AV11: =(AU11*$F$11)*#REF! ->  | BC11: Вікі
C12: Корпус кухонний секцiя верхня 40ВА/360 1дв Антресоль Газ Ліфт | D12: 356 | E12: 396 | F12: 1 | G12: 0.140976 | H12: 0 | I12: 2056 | K12: 0 | M12: =(L12*$F$12)*#REF! ->  | N12: =#REF! ->  | O12: =#REF! ->  | P12: =#REF! ->  | T12: =#REF! ->  | U12: =#REF! ->  | V12: =#REF! ->  | W12: =X12*$G$12 -> 0 | Y12: =(X12*$F$12)*#REF! ->  | AC12: =#REF! ->  | AD12: =#REF! ->  | AE12: =#REF! ->  | AF12: =AG12*$G$12 -> 0 | AL12: =#REF! ->  | AM12: =AN12*$G$12 -> 0 | AO12: =(AN12*$F$12)*#REF! ->  | AQ12: =#REF! ->  | AR12: =#REF! ->  | AS12: =#REF! ->  | AT12: =AU12*$G$12 -> 0 | AV12: =(AU12*$F$12)*#REF! ->  | BC12: Мішель
C13: Корпус кухонний секцiя верхня 45В/360 1дв Aventos Pro Blum | D13: 356 | E13: 446 | F13: 1 | G13: 0.158776 | H13: 0
C14: Корпус кухонний секцiя верхня 45В/450 1дв Aventos Pro Blum | D14: 446 | E14: 446 | F14: 1 | G14: 0.198916 | H14: 0
C15: Корпус кухонний секцiя верхня 45В/720 1дв Pro Blum | D15: 715 | E15: 446 | F15: 1 | G15: 0.31889 | H15: 0 | I15: 1030 | K15: 0 | M15: =(L15*$F$15)*#REF! ->  | N15: =#REF! ->  | O15: =#REF! ->  | P15: =#REF! ->  | T15: =#REF! ->  | U15: =#REF! ->  | V15: =#REF! ->  | W15: =X15*$G$15 -> 0 | Y15: =(X15*$F$15)*#REF! ->  | AC15: =#REF! ->  | AD15: =#REF! ->  | AE15: =#REF! ->  | AF15: =AG15*$G$15 -> 0 | AL15: =#REF! ->  | AM15: =AN15*$G$15 -> 0 | AO15: =(AN15*$F$15)*#REF! ->  | AQ15: =#REF! ->  | AR15: =#REF! ->  | AS15: =#REF! ->  | AT15: =AU15*$G$15 -> 0 | AV15: =(AU15*$F$15)*#REF! ->  | BC15: Доміні
C16: Корпус кухонний секцiя верхня 45В/900 1дв Pro Blum | D16: 895 | E16: 446 | F16: 1 | G16: 0.39917 | H16: 0 | I16: 1131 | K16: 0 | M16: =(L16*$F$16)*#REF! ->  | N16: =#REF! ->  | O16: =#REF! ->  | P16: =#REF! ->  | T16: =#REF! ->  | U16: =#REF! ->  | V16: =#REF! ->  | W16: =X16*$G$16 -> 0 | Y16: =(X16*$F$16)*#REF! ->  | AC16: =#REF! ->  | AD16: =#REF! ->  | AE16: =#REF! ->  | AF16: =AG16*$G$16 -> 0 | AL16: =#REF! ->  | AM16: =AN16*$G$16 -> 0 | AO16: =(AN16*$F$16)*#REF! ->  | AQ16: =#REF! ->  | AR16: =#REF! ->  | AS16: =#REF! ->  | AT16: =AU16*$G$16 -> 0 | AV16: =(AU16*$F$16)*#REF! ->  | BC16: Матільда
C17: Корпус кухонний секцiя верхня 50В/360 1дв Aventos Pro Blum | D17: 356 | E17: 496 | F17: 1 | G17: 0.176576 | H17: 0 | I17: 1968 | K17: 0 | M17: =(L17*$F$17)*#REF! ->  | N17: =#REF! ->  | O17: =#REF! ->  | P17: =#REF! ->  | T17: =#REF! ->  | U17: =#REF! ->  | V17: =#REF! ->  | W17: =X17*$G$17 -> 0 | Y17: =(X17*$F$17)*#REF! ->  | AC17: =#REF! ->  | AD17: =#REF! ->  | AE17: =#REF! ->  | AF17: =AG17*$G$17 -> 0 | AL17: =#REF! ->  | AM17: =AN17*$G$17 -> 0 | AO17: =(AN17*$F$17)*#REF! ->  | AQ17: =#REF! ->  | AR17: =#REF! ->  | AS17: =#REF! ->  | AT17: =AU17*$G$17 -> 0 | AV17: =(AU17*$F$17)*#REF! ->  | BC17: Вілсон
C18: Корпус кухонний секцiя верхня 50В/360 1дв Aventos Pro Blum | D18: 356 | E18: 496 | F18: 1 | G18: 0.176576 | H18: 0 | I18: 2147 | K18: 0 | M18: =(L18*$F$18)*#REF! ->  | N18: =#REF! ->  | O18: =#REF! ->  | P18: =#REF! ->  | T18: =#REF! ->  | U18: =#REF! ->  | V18: =#REF! ->  | W18: =X18*$G$18 -> 0 | Y18: =(X18*$F$18)*#REF! ->  | AC18: =#REF! ->  | AD18: =#REF! ->  | AE18: =#REF! ->  | AF18: =AG18*$G$18 -> 0 | AL18: =#REF! ->  | AM18: =AN18*$G$18 -> 0 | AO18: =(AN18*$F$18)*#REF! ->  | AQ18: =#REF! ->  | AR18: =#REF! ->  | AS18: =#REF! ->  | AT18: =AU18*$G$18 -> 0 | AV18: =(AU18*$F$18)*#REF! -> 
C19: Корпус кухонний секцiя верхня 50В/450 1дв Aventos Pro Blum | D19: 446 | E19: 496 | F19: 1 | G19: 0.221216 | H19: 0
C20: Корпус кухонний секцiя верхня 50В/720 1дв Pro Blum | D20: 715 | E20: 496 | F20: 1 | G20: 0.35464 | H20: 0 | I20: 1075 | K20: 0 | M20: =(L20*$F$20)*#REF! ->  | N20: =#REF! ->  | O20: =#REF! ->  | P20: =#REF! ->  | T20: =#REF! ->  | U20: =#REF! ->  | V20: =#REF! ->  | W20: =X20*$G$20 -> 0 | Y20: =(X20*$F$20)*#REF! ->  | AC20: =#REF! ->  | AD20: =#REF! ->  | AE20: =#REF! ->  | AF20: =AG20*$G$20 -> 0 | AL20: =#REF! ->  | AM20: =AN20*$G$20 -> 0 | AO20: =(AN20*$F$20)*#REF! ->  | AQ20: =#REF! ->  | AR20: =#REF! ->  | AS20: =#REF! ->  | AT20: =AU20*$G$20 -> 0 | AV20: =(AU20*$F$20)*#REF! -> 
C21: Корпус кухонний секцiя верхня 50В/900 1дв Pro Blum | D21: 895 | E21: 496 | F21: 1 | G21: 0.44392 | H21: 0 | I21: 1166 | K21: 0 | M21: =(L21*$F$21)*#REF! ->  | N21: =#REF! ->  | O21: =#REF! ->  | P21: =#REF! ->  | T21: =#REF! ->  | U21: =#REF! ->  | V21: =#REF! ->  | W21: =X21*$G$21 -> 0 | Y21: =(X21*$F$21)*#REF! ->  | AC21: =#REF! ->  | AD21: =#REF! ->  | AE21: =#REF! ->  | AF21: =AG21*$G$21 -> 0 | AL21: =#REF! ->  | AM21: =AN21*$G$21 -> 0 | AO21: =(AN21*$F$21)*#REF! ->  | AQ21: =#REF! ->  | AR21: =#REF! ->  | AS21: =#REF! ->  | AT21: =AU21*$G$21 -> 0 | AV21: =(AU21*$F$21)*#REF! -> 
C22: Корпус кухонний секцiя верхня 60ВА/360 1дв Антресоль Газ Ліфт | D22: 356 | E22: 596 | F22: 1 | G22: 0.212176 | H22: 0 | I22: 2192 | K22: 0 | M22: =(L22*$F$22)*#REF! ->  | N22: =#REF! ->  | O22: =#REF! ->  | P22: =#REF! ->  | T22: =#REF! ->  | U22: =#REF! ->  | V22: =#REF! ->  | W22: =X22*$G$22 -> 0 | Y22: =(X22*$F$22)*#REF! ->  | AC22: =#REF! ->  | AD22: =#REF! ->  | AE22: =#REF! ->  | AF22: =AG22*$G$22 -> 0 | AL22: =#REF! ->  | AM22: =AN22*$G$22 -> 0 | AO22: =(AN22*$F$22)*#REF! ->  | AQ22: =#REF! ->  | AR22: =#REF! ->  | AS22: =#REF! ->  | AT22: =AU22*$G$22 -> 0 | AV22: =(AU22*$F$22)*#REF! -> 
C23: Корпус кухонний секцiя верхня 60В/360 1дв Aventos Pro Blum | D23: 356 | E23: 596 | F23: 1 | G23: 0.212176 | H23: 0 | I23: 2014 | K23: 0 | M23: =(L23*$F$23)*#REF! ->  | N23: =#REF! ->  | O23: =#REF! ->  | P23: =#REF! ->  | T23: =#REF! ->  | U23: =#REF! ->  | V23: =#REF! ->  | W23: =X23*$G$23 -> 0 | Y23: =(X23*$F$23)*#REF! ->  | AC23: =#REF! ->  | AD23: =#REF! ->  | AE23: =#REF! ->  | AF23: =AG23*$G$23 -> 0 | AL23: =#REF! ->  | AM23: =AN23*$G$23 -> 0 | AO23: =(AN23*$F$23)*#REF! ->  | AQ23: =#REF! ->  | AR23: =#REF! ->  | AS23: =#REF! ->  | AT23: =AU23*$G$23 -> 0 | AV23: =(AU23*$F$23)*#REF! -> 
C24: Корпус кухонний секцiя верхня 60В/450 1дв Aventos Pro Blum | D24: 446 | E24: 596 | F24: 1 | G24: 0.265816 | H24: 0
C25: Корпус кухонний секцiя верхня 60ВВТ/510 1дв Витяжка Телескоп | D25: 505 | E25: 596 | F25: 1
C26: Корпус кухонний секцiя верхня 60ВВТ/690 1дв Витяжка Телескоп Pro Blum | D26: 685 | E26: 596 | F26: 1
C27: Корпус кухонний секцiя верхня 60В/720 1дв Pro Blum | D27: 715 | E27: 596 | F27: 1 | G27: 0.42614 | H27: 0 | I27: 1208 | K27: 0 | M27: =(L27*$F$27)*#REF! ->  | N27: =#REF! ->  | O27: =#REF! ->  | P27: =#REF! ->  | T27: =#REF! ->  | U27: =#REF! ->  | V27: =#REF! ->  | W27: =X27*$G$27 -> 0 | Y27: =(X27*$F$27)*#REF! ->  | AC27: =#REF! ->  | AD27: =#REF! ->  | AE27: =#REF! ->  | AF27: =AG27*$G$27 -> 0 | AL27: =#REF! ->  | AM27: =AN27*$G$27 -> 0 | AO27: =(AN27*$F$27)*#REF! ->  | AQ27: =#REF! ->  | AR27: =#REF! ->  | AS27: =#REF! ->  | AT27: =AU27*$G$27 -> 0 | AV27: =(AU27*$F$27)*#REF! -> 
C28: Корпус кухонний секцiя верхня 60В/900 1дв Pro Blum | D28: 895 | E28: 596 | F28: 1 | G28: 0.53342 | H28: 0 | I28: 1345 | K28: 0 | M28: =(L28*$F$28)*#REF! ->  | N28: =#REF! ->  | O28: =#REF! ->  | P28: =#REF! ->  | T28: =#REF! ->  | U28: =#REF! ->  | V28: =#REF! ->  | W28: =X28*$G$28 -> 0 | Y28: =(X28*$F$28)*#REF! ->  | AC28: =#REF! ->  | AD28: =#REF! ->  | AE28: =#REF! ->  | AF28: =AG28*$G$28 -> 0 | AL28: =#REF! ->  | AM28: =AN28*$G$28 -> 0 | AO28: =(AN28*$F$28)*#REF! ->  | AQ28: =#REF! ->  | AR28: =#REF! ->  | AS28: =#REF! ->  | AT28: =AU28*$G$28 -> 0 | AV28: =(AU28*$F$28)*#REF! -> 
C29: Корпус кухонний секцiя верхня 60В/900 2дв Aventos Pro Blum | D29: 446 | E29: 596 | F29: 2
C30: Корпус кухонний секцiя верхня 60В/900 1дв Вітрина Pro Blum | D30: 895 | E30: 596 | F30: 1 | G30: 0.53342 | H30: 0 | I30: 1345 | K30: 0 | M30: =(L30*$F$30)*#REF! ->  | N30: =#REF!*1.5 ->  | O30: =#REF!*1.5 ->  | P30: =#REF!*1.5 ->  | T30: =#REF!*1.5 ->  | U30: =#REF!*1.5 ->  | V30: =#REF!*1.5 ->  | W30: =X30*$G$30 -> 0 | Y30: =(X30*$F$30)*#REF! ->  | AC30: =#REF!*1.5 ->  | AD30: =#REF!*1.5 ->  | AE30: =#REF!*1.5 ->  | AF30: =AG30*$G$30 -> 0 | AL30: =#REF!*1.5 ->  | AM30: =AN30*$G$30 -> 0 | AO30: =(AN30*$F$30)*#REF! ->  | AQ30: =#REF!*1.5 ->  | AR30: =#REF!*1.5 ->  | AS30: =#REF!*1.5 ->  | AT30: =AU30*$G$30 -> 0 | AV30: =(AU30*$F$30)*#REF! -> 
C31: Корпус кухонний секцiя верхня 60ВС/720 2дв Сушка Pro Blum+Rejs | D31: 715 | E31: 296 | F31: 2
C32: Корпус кухонний секцiя верхня 60В/720 2дв Pro Blum | D32: 715 | E32: 296 | F32: 2 | G32: 0.42328 | H32: 0 | I32: 1478 | K32: =(I32*1)*J32 -> 0 | M32: =(L32*$F$32)*#REF! ->  | N32: =#REF! ->  | O32: =#REF! ->  | P32: =#REF! ->  | T32: =#REF! ->  | U32: =#REF! ->  | V32: =#REF! ->  | W32: =X32*$G$32 -> 0 | Y32: =(X32*$F$32)*#REF! ->  | AC32: =#REF! ->  | AD32: =#REF! ->  | AE32: =#REF! ->  | AF32: =AG32*$G$32 -> 0 | AL32: =#REF! ->  | AM32: =AN32*$G$32 -> 0 | AO32: =(AN32*$F$32)*#REF! ->  | AQ32: =#REF! ->  | AR32: =#REF! ->  | AS32: =#REF! ->  | AT32: =AU32*$G$32 -> 0 | AV32: =(AU32*$F$32)*#REF! -> 
C33: Корпус кухонний секцiя верхня 60ВС/900 2дв Сушка Pro Blum+Rejs | D33: 895 | E33: 296 | F33: 2
C34: Корпус кухонний секцiя верхня 60В/900 2дв Pro Blum | D34: 895 | E34: 296 | F34: 2 | G34: 0.52984 | H34: 0 | I34: 1653 | K34: =(I34*1)*J34 -> 0 | M34: =(L34*$F$34)*#REF! ->  | N34: =#REF! ->  | O34: =#REF! ->  | P34: =#REF! ->  | T34: =#REF! ->  | U34: =#REF! ->  | V34: =#REF! ->  | W34: =X34*$G$34 -> 0 | Y34: =(X34*$F$34)*#REF! ->  | AC34: =#REF! ->  | AD34: =#REF! ->  | AE34: =#REF! ->  | AF34: =AG34*$G$34 -> 0 | AL34: =#REF! ->  | AM34: =AN34*$G$34 -> 0 | AO34: =(AN34*$F$34)*#REF! ->  | AQ34: =#REF! ->  | AR34: =#REF! ->  | AS34: =#REF! ->  | AT34: =AU34*$G$34 -> 0 | AV34: =(AU34*$F$34)*#REF! -> 
C35: Корпус кухонний секцiя верхня 60В/720 2дв Aventos Pro Blum | D35: 356 | E35: 596 | F35: 2 | G35: 0.424352 | H35: 0 | I35: 5400 | K35: 0 | M35: =(L35*$F$35)*#REF! ->  | N35: =#REF! ->  | O35: =#REF! ->  | P35: =#REF! ->  | T35: =#REF! ->  | U35: =#REF! ->  | V35: =#REF! ->  | W35: =X35*$G$35 -> 0 | Y35: =(X35*$F$35)*#REF! ->  | AC35: =#REF! ->  | AD35: =#REF! ->  | AE35: =#REF! ->  | AF35: =AG35*$G$35 -> 0 | AL35: =#REF! ->  | AM35: =AN35*$G$35 -> 0 | AO35: =(AN35*$F$35)*#REF! ->  | AQ35: =#REF! ->  | AR35: =#REF! ->  | AS35: =#REF! ->  | AT35: =AU35*$G$35 -> 0 | AV35: =(AU35*$F$35)*#REF! -> 
C36: Корпус кухонний секцiя верхня 80ВА/360 1дв Антресоль Газ Ліфт | D36: 356 | E36: 796 | F36: 1 | G36: 0.283376 | H36: 0 | I36: 2280 | K36: 0 | M36: =(L36*$F$36)*#REF! ->  | N36: =#REF! ->  | O36: =#REF! ->  | P36: =#REF! ->  | T36: =#REF! ->  | U36: =#REF! ->  | V36: =#REF! ->  | W36: =X36*$G$36 -> 0 | Y36: =(X36*$F$36)*#REF! ->  | AC36: =#REF! ->  | AD36: =#REF! ->  | AE36: =#REF! ->  | AF36: =AG36*$G$36 -> 0 | AL36: =#REF! ->  | AM36: =AN36*$G$36 -> 0 | AO36: =(AN36*$F$36)*#REF! ->  | AQ36: =#REF! ->  | AR36: =#REF! ->  | AS36: =#REF! ->  | AT36: =AU36*$G$36 -> 0 | AV36: =(AU36*$F$36)*#REF! -> 
C37: Корпус кухонний секцiя верхня 80В/360 1дв Aventos Pro Blum | D37: 356 | E37: 796 | F37: 1 | G37: 0.283376 | H37: 0 | I37: 2147 | K37: 0 | M37: =(L37*$F$37)*#REF! ->  | N37: =#REF! ->  | O37: =#REF! ->  | P37: =#REF! ->  | T37: =#REF! ->  | U37: =#REF! ->  | V37: =#REF! ->  | W37: =X37*$G$37 -> 0 | Y37: =(X37*$F$37)*#REF! ->  | AC37: =#REF! ->  | AD37: =#REF! ->  | AE37: =#REF! ->  | AF37: =AG37*$G$37 -> 0 | AL37: =#REF! ->  | AM37: =AN37*$G$37 -> 0 | AO37: =(AN37*$F$37)*#REF! ->  | AQ37: =#REF! ->  | AR37: =#REF! ->  | AS37: =#REF! ->  | AT37: =AU37*$G$37 -> 0 | AV37: =(AU37*$F$37)*#REF! -> 
C38: Корпус кухонний секцiя верхня Кут 90°/360 Антресоль Обманка | D38: 356 | E38: 72 | F38: 1 | G38: 0.025632 | H38: 0
D39: 356 | E39: 90 | F39: 1 | G39: 0.03204 | H39: 0
C40: Корпус кухонний секцiя верхня 80В/450 1дв Aventos Pro Blum | D40: 446 | E40: 796 | F40: 1 | G40: 0.355016 | H40: 0
C41: Корпус кухонний секцiя верхня 80В/720 2дв Pro Blum | D41: 715 | E41: 396 | F41: 2 | G41: 0.56628 | H41: 0 | I41: 1565 | K41: 0 | M41: =(L41*$F$41)*#REF! ->  | N41: =#REF! ->  | O41: =#REF! ->  | P41: =#REF! ->  | T41: =#REF! ->  | U41: =#REF! ->  | V41: =#REF! ->  | W41: =X41*$G$41 -> 0 | Y41: =(X41*$F$41)*#REF! ->  | AC41: =#REF! ->  | AD41: =#REF! ->  | AE41: =#REF! ->  | AF41: =AG41*$G$41 -> 0 | AL41: =#REF! ->  | AM41: =AN41*$G$41 -> 0 | AO41: =(AN41*$F$41)*#REF! ->  | AQ41: =#REF! ->  | AR41: =#REF! ->  | AS41: =#REF! ->  | AT41: =AU41*$G$41 -> 0 | AV41: =(AU41*$F$41)*#REF! -> 
C42: Корпус кухонний секцiя верхня 80ВС/720 2дв Сушка Pro Blum+Rejs | D42: 715 | E42: 396 | F42: 2 | G42: 0.56628 | H42: 0
C43: Корпус кухонний секцiя верхня 80В/900 2дв Aventos Pro Blum | D43: 446 | E43: 796 | F43: 2 | G43: 0.710032 | H43: 0
C44: Корпус кухонний секцiя верхня 80В/900 2дв Pro Blum | D44: 895 | E44: 396 | F44: 2 | G44: 0.70884 | H44: 0 | I44: 1789 | K44: 0 | M44: =(L44*$F$44)*#REF! ->  | N44: =#REF! ->  | O44: =#REF! ->  | P44: =#REF! ->  | T44: =#REF! ->  | U44: =#REF! ->  | V44: =#REF! ->  | W44: =X44*$G$44 -> 0 | Y44: =(X44*$F$44)*#REF! ->  | AC44: =#REF! ->  | AD44: =#REF! ->  | AE44: =#REF! ->  | AF44: =AG44*$G$44 -> 0 | AL44: =#REF! ->  | AM44: =AN44*$G$44 -> 0 | AO44: =(AN44*$F$44)*#REF! ->  | AQ44: =#REF! ->  | AR44: =#REF! ->  | AS44: =#REF! ->  | AT44: =AU44*$G$44 -> 0 | AV44: =(AU44*$F$44)*#REF! -> 
C45: Корпус кухонний секцiя верхня 80ВС/900 2дв Сушка Pro Blum+Rejs | D45: 895 | E45: 396 | F45: 2
C46: Корпус кухонний секцiя верхня 80В/720 2дв Aventos Pro Blum | D46: 356 | E46: 796 | F46: 2 | G46: 0.566752 | H46: 0 | I46: 5537 | K46: 0 | M46: =(L46*$F$46)*#REF! ->  | N46: =#REF! ->  | O46: =#REF! ->  | P46: =#REF! ->  | T46: =#REF! ->  | U46: =#REF! ->  | V46: =#REF! ->  | W46: =X46*$G$46 -> 0 | Y46: =(X46*$F$46)*#REF! ->  | AC46: =#REF! ->  | AD46: =#REF! ->  | AE46: =#REF! ->  | AF46: =AG46*$G$46 -> 0 | AL46: =#REF! ->  | AM46: =AN46*$G$46 -> 0 | AO46: =(AN46*$F$46)*#REF! ->  | AQ46: =#REF! ->  | AR46: =#REF! ->  | AS46: =#REF! ->  | AT46: =AU46*$G$46 -> 0 | AV46: =(AU46*$F$46)*#REF! -> 
C47: Корпус кухонний секцiя верхня 80В/900 2дв Вітрина Pro Blum | D47: 895 | E47: 396 | F47: 2 | G47: 0.70884 | H47: 0 | I47: 2858 | K47: 0 | M47: =(L47*$F$47)*#REF! ->  | N47: =#REF!*1.5 ->  | O47: =#REF!*1.5 ->  | P47: =#REF!*1.5 ->  | T47: =#REF!*1.5 ->  | U47: =#REF!*1.5 ->  | V47: =#REF!*1.5 ->  | W47: =X47*$G$47 -> 0 | Y47: =(X47*$F$47)*#REF! ->  | AC47: =#REF!*1.5 ->  | AD47: =#REF!*1.5 ->  | AE47: =#REF!*1.5 ->  | AF47: =AG47*$G$47 -> 0 | AL47: =#REF!*1.5 ->  | AM47: =AN47*$G$47 -> 0 | AO47: =(AN47*$F$47)*#REF! ->  | AQ47: =#REF!*1.5 ->  | AR47: =#REF!*1.5 ->  | AS47: =#REF!*1.5 ->  | AT47: =AU47*$G$47 -> 0 | AV47: =(AU47*$F$47)*#REF! -> 
C48: Корпус кухонний секцiя верхня 30ВЗР/720 1дв Закінчення Радіусне Pro Blum | D48: 715 | E48: 464 | F48: 1 | G48: 0.33176 | H48: 0
C49: Корпус кухонний секцiя верхня 30ВЗР/900 1дв Закінчення Радіусне Pro Blum | D49: 895 | E49: 464 | F49: 1 | G49: 0.41528 | H49: 0
C50: Корпус кухонний секцiя верхня КутВ 45°/720 1дв Pro Blum | D50: 715 | E50: 428 | F50: 1 | G50: 0.30602 | H50: 0 | I50: 1548 | K50: 0 | M50: =(L50*$F$50)*#REF! ->  | N50: =#REF! ->  | O50: =#REF! ->  | P50: =#REF! ->  | T50: =#REF! ->  | U50: =#REF! ->  | V50: =#REF! ->  | W50: =X50*$G$50 -> 0 | Y50: =(X50*$F$50)*#REF! ->  | AC50: =#REF! ->  | AD50: =#REF! ->  | AE50: =#REF! ->  | AF50: =AG50*$G$50 -> 0 | AL50: =#REF! ->  | AM50: =AN50*$G$50 -> 0 | AO50: =(AN50*$F$50)*#REF! ->  | AQ50: =#REF! ->  | AR50: =#REF! ->  | AS50: =#REF! ->  | AT50: =AU50*$G$50 -> 0 | AV50: =(AU50*$F$50)*#REF! -> 
C51: Корпус кухонний секцiя верхня КутВ 45°/900 1дв Pro Blum | D51: 895 | E51: 428 | F51: 1 | G51: 0.38306 | H51: 0 | I51: 1762 | K51: 0 | M51: =(L51*$F$51)*#REF! ->  | N51: =#REF! ->  | O51: =#REF! ->  | P51: =#REF! ->  | T51: =#REF! ->  | U51: =#REF! ->  | V51: =#REF! ->  | W51: =X51*$G$51 -> 0 | Y51: =(X51*$F$51)*#REF! ->  | AC51: =#REF! ->  | AD51: =#REF! ->  | AE51: =#REF! ->  | AF51: =AG51*$G$51 -> 0 | AL51: =#REF! ->  | AM51: =AN51*$G$51 -> 0 | AO51: =(AN51*$F$51)*#REF! ->  | AQ51: =#REF! ->  | AR51: =#REF! ->  | AS51: =#REF! ->  | AT51: =AU51*$G$51 -> 0 | AV51: =(AU51*$F$51)*#REF! -> 
C52: Корпус кухонний секцiя верхня КутВ 90°/360 2дв Pro Blum | D52: 356 | E52: 308 | F52: 1 | G52: 0.109648 | H52: 0
D53: 356 | E53: 298 | F53: 1
C54: Корпус кухонний секцiя верхня КутВ 90°/450 2дв Pro Blum | D54: 446 | E54: 308 | F54: 1
D55: 446 | E55: 298 | F55: 1
C56: Корпус кухонний секцiя верхня КутВ 90°/720 2дв Pro Blum | D56: 715 | E56: 308 | F56: 1
D57: 715 | E57: 298 | F57: 1 | G57: 0.21307 | H57: 0 | I57: 1835 | K57: 0 | M57: =(L57*$F$57)*#REF! ->  | N57: =#REF! ->  | O57: =#REF! ->  | P57: =#REF! ->  | T57: =#REF! ->  | U57: =#REF! ->  | V57: =#REF! ->  | W57: =X57*$G$57 -> 0 | Y57: =(X57*$F$57)*#REF! ->  | AC57: =#REF! ->  | AD57: =#REF! ->  | AE57: =#REF! ->  | AF57: =AG57*$G$57 -> 0 | AL57: =#REF! ->  | AM57: =AN57*$G$57 -> 0 | AO57: =(AN57*$F$57)*#REF! ->  | AQ57: =#REF! ->  | AR57: =#REF! ->  | AS57: =#REF! ->  | AT57: =AU57*$G$57 -> 0 | AV57: =(AU57*$F$57)*#REF! -> 
C58: Корпус кухонний секцiя верхня КутВ 90°/900 2дв Pro Blum | D58: 895 | E58: 308 | F58: 1
D59: 895 | E59: 298 | F59: 1 | G59: 0.26671 | H59: 0 | I59: 2101 | K59: 0 | M59: =(L59*$F$59)*#REF! ->  | N59: =#REF! ->  | O59: =#REF! ->  | P59: =#REF! ->  | T59: =#REF! ->  | U59: =#REF! ->  | V59: =#REF! ->  | W59: =X59*$G$59 -> 0 | Y59: =(X59*$F$59)*#REF! ->  | AC59: =#REF! ->  | AD59: =#REF! ->  | AE59: =#REF! ->  | AF59: =AG59*$G$59 -> 0 | AL59: =#REF! ->  | AM59: =AN59*$G$59 -> 0 | AO59: =(AN59*$F$59)*#REF! ->  | AQ59: =#REF! ->  | AR59: =#REF! ->  | AS59: =#REF! ->  | AT59: =AU59*$G$59 -> 0 | AV59: =(AU59*$F$59)*#REF! -> 
B60: Нижні секції | C60: Корпус кухонний секція нижня 20НК/820 Карго Pro Rejs | D60: 715 | E60: 196 | F60: 1 | G60: 0.14014 | H60: 0 | I60: 3526 | K60: 0 | M60: =(L60*$F$60)*#REF! ->  | N60: =#REF! ->  | O60: =#REF! ->  | P60: =#REF! ->  | T60: =#REF! ->  | U60: =#REF! ->  | V60: =#REF! ->  | W60: =X60*$G$60 -> 0 | Y60: =(X60*$F$60)*#REF! ->  | AC60: =#REF! ->  | AD60: =#REF! ->  | AE60: =#REF! ->  | AF60: =AG60*$G$60 -> 0 | AL60: =#REF! ->  | AM60: =AN60*$G$60 -> 0 | AO60: =(AN60*$F$60)*#REF! ->  | AQ60: =#REF! ->  | AR60: =#REF! ->  | AS60: =#REF! ->  | AT60: =AU60*$G$60 -> 0 | AV60: =(AU60*$F$60)*#REF! -> 
C61: Корпус кухонний секція нижня 20Н/820 1дв Pro Blum | D61: 715 | E61: 196 | F61: 1
C62: Корпус кухонний секція нижня 30Н/820 1дв Pro Blum | D62: 715 | E62: 296 | F62: 1 | G62: 0.21164 | H62: 0 | I62: 1030 | K62: 0 | M62: =(L62*$F$62)*#REF! ->  | N62: =#REF! ->  | O62: =#REF! ->  | P62: =#REF! ->  | T62: =#REF! ->  | U62: =#REF! ->  | V62: =#REF! ->  | W62: =X62*$G$62 -> 0 | Y62: =(X62*$F$62)*#REF! ->  | AC62: =#REF! ->  | AD62: =#REF! ->  | AE62: =#REF! ->  | AF62: =AG62*$G$62 -> 0 | AL62: =#REF! ->  | AM62: =AN62*$G$62 -> 0 | AO62: =(AN62*$F$62)*#REF! ->  | AQ62: =#REF! ->  | AR62: =#REF! ->  | AS62: =#REF! ->  | AT62: =AU62*$G$62 -> 0 | AV62: =(AU62*$F$62)*#REF! -> 
C63: Корпус кухонний секція нижня 40Н/820 1дв Pro Blum | D63: 715 | E63: 396 | F63: 1 | G63: 0.28314 | H63: 0 | I63: 1086 | K63: 0 | M63: =(L63*$F$63)*#REF! ->  | N63: =#REF! ->  | O63: =#REF! ->  | P63: =#REF! ->  | T63: =#REF! ->  | U63: =#REF! ->  | V63: =#REF! ->  | W63: =X63*$G$63 -> 0 | Y63: =(X63*$F$63)*#REF! ->  | AC63: =#REF! ->  | AD63: =#REF! ->  | AE63: =#REF! ->  | AF63: =AG63*$G$63 -> 0 | AL63: =#REF! ->  | AM63: =AN63*$G$63 -> 0 | AO63: =(AN63*$F$63)*#REF! ->  | AQ63: =#REF! ->  | AR63: =#REF! ->  | AS63: =#REF! ->  | AT63: =AU63*$G$63 -> 0 | AV63: =(AU63*$F$63)*#REF! -> 
C64: Корпус кухонний секція нижня 40Н3ШХ/820 Pro Hettich | D64: 176 | E64: 396 | F64: 1 | G64: 0.069696 | H64: 0
D65: 266 | E65: 396 | F65: 2
C66: Корпус кухонний секція нижня 45Н/820 1дв Pro Blum | D66: 715 | E66: 446 | F66: 1 | G66: 0.31889 | H66: 0 | I66: 1124 | K66: 0 | M66: =(L66*$F$66)*#REF! ->  | N66: =#REF! ->  | O66: =#REF! ->  | P66: =#REF! ->  | T66: =#REF! ->  | U66: =#REF! ->  | V66: =#REF! ->  | W66: =X66*$G$66 -> 0 | Y66: =(X66*$F$66)*#REF! ->  | AC66: =#REF! ->  | AD66: =#REF! ->  | AE66: =#REF! ->  | AF66: =AG66*$G$66 -> 0 | AL66: =#REF! ->  | AM66: =AN66*$G$66 -> 0 | AO66: =(AN66*$F$66)*#REF! ->  | AQ66: =#REF! ->  | AR66: =#REF! ->  | AS66: =#REF! ->  | AT66: =AU66*$G$66 -> 0 | AV66: =(AU66*$F$66)*#REF! -> 
C67: Корпус кухонний секція нижня 50Н/820 1дв Pro Blum | D67: 715 | E67: 496 | F67: 1 | G67: 0.35464 | H67: 0 | I67: 1163 | K67: 0 | M67: =(L67*$F$67)*#REF! ->  | N67: =#REF! ->  | O67: =#REF! ->  | P67: =#REF! ->  | T67: =#REF! ->  | U67: =#REF! ->  | V67: =#REF! ->  | W67: =X67*$G$67 -> 0 | Y67: =(X67*$F$67)*#REF! ->  | AC67: =#REF! ->  | AD67: =#REF! ->  | AE67: =#REF! ->  | AF67: =AG67*$G$67 -> 0 | AL67: =#REF! ->  | AM67: =AN67*$G$67 -> 0 | AO67: =(AN67*$F$67)*#REF! ->  | AQ67: =#REF! ->  | AR67: =#REF! ->  | AS67: =#REF! ->  | AT67: =AU67*$G$67 -> 0 | AV67: =(AU67*$F$67)*#REF! -> 
C68: Корпус кухонний секція нижня 60НДШ/820 Телескоп | D68: 110 | E68: 596 | F68: 1 | G68: 0.06556 | H68: 0 | I68: 2395 | K68: 0 | M68: =(L68*$F$68)*#REF! ->  | N68: =#REF! ->  | O68: =#REF! ->  | P68: =#REF! ->  | T68: =#REF! ->  | U68: =#REF! ->  | V68: =#REF! ->  | W68: =X68*$G$68 -> 0 | Y68: =(X68*$F$68)*#REF! ->  | AC68: =#REF! ->  | AD68: =#REF! ->  | AE68: =#REF! ->  | AF68: =AG68*$G$68 -> 0 | AL68: =#REF! ->  | AM68: =AN68*$G$68 -> 0 | AQ68: =#REF! ->  | AR68: =#REF! ->  | AS68: =#REF! ->  | AT68: =AU68*$G$68 -> 0 | AV68: =(AU68*$F$68)*#REF! -> 
C69: Корпус кухонний секція нижня 60Н/820 1дв Pro Blum | D69: 715 | E69: 596 | F69: 1 | G69: 0.42614 | H69: 0 | I69: 1250 | K69: 0 | M69: =(L69*$F$69)*#REF! ->  | N69: =#REF! ->  | O69: =#REF! ->  | P69: =#REF! ->  | T69: =#REF! ->  | U69: =#REF! ->  | V69: =#REF! ->  | W69: =X69*$G$69 -> 0 | Y69: =(X69*$F$69)*#REF! ->  | AC69: =#REF! ->  | AD69: =#REF! ->  | AE69: =#REF! ->  | AF69: =AG69*$G$69 -> 0 | AL69: =#REF! ->  | AM69: =AN69*$G$69 -> 0 | AO69: =(AN69*$F$69)*#REF! ->  | AQ69: =#REF! ->  | AR69: =#REF! ->  | AS69: =#REF! ->  | AT69: =AU69*$G$69 -> 0 | AV69: =(AU69*$F$69)*#REF! -> 
C70: Корпус кухонний секція нижня 60Н/820 2дв Pro Blum | D70: 715 | E70: 296 | F70: 2 | G70: 0.42328 | H70: 0 | I70: 1520 | K70: 0 | M70: =(L70*$F$70)*#REF! ->  | N70: =#REF! ->  | O70: =#REF! ->  | P70: =#REF! ->  | T70: =#REF! ->  | U70: =#REF! ->  | V70: =#REF! ->  | W70: =X70*$G$70 -> 0 | Y70: =(X70*$F$70)*#REF! ->  | AC70: =#REF! ->  | AD70: =#REF! ->  | AE70: =#REF! ->  | AF70: =AG70*$G$70 -> 0 | AL70: =#REF! ->  | AM70: =AN70*$G$70 -> 0 | AO70: =(AN70*$F$70)*#REF! ->  | AQ70: =#REF! ->  | AR70: =#REF! ->  | AS70: =#REF! ->  | AT70: =AU70*$G$70 -> 0 | AV70: =(AU70*$F$70)*#REF! -> 
C71: Корпус кухонний секція нижня 60НМ/820 2дв Мийка Pro Blum | D71: 715 | E71: 296 | F71: 2 | G71: 0.42328 | H71: 0 | I71: 2371 | K71: 0 | M71: =(L71*$F$71)*#REF! ->  | N71: =#REF! ->  | O71: =#REF! ->  | P71: =#REF! ->  | T71: =#REF! ->  | U71: =#REF! ->  | V71: =#REF! ->  | W71: =X71*$G$71 -> 0 | Y71: =(X71*$F$71)*#REF! ->  | AC71: =#REF! ->  | AD71: =#REF! ->  | AE71: =#REF! ->  | AF71: =AG71*$G$71 -> 0 | AL71: =#REF! ->  | AM71: =AN71*$G$71 -> 0 | AO71: =(AN71*$F$71)*#REF! ->  | AQ71: =#REF! ->  | AR71: =#REF! ->  | AS71: =#REF! ->  | AT71: =AU71*$G$71 -> 0 | AV71: =(AU71*$F$71)*#REF! -> 
C72: Корпус кухонний секція нижня 60Н2ШХ/820 Pro Hettich | D72: 356 | E72: 596 | F72: 2 | G72: 0.424352 | H72: 0 | I72: 3709 | K72: 0 | M72: =(L72*$F$72)*#REF! ->  | N72: =#REF! ->  | O72: =#REF! ->  | P72: =#REF! ->  | T72: =#REF! ->  | U72: =#REF! ->  | V72: =#REF! ->  | W72: =X72*$G$72 -> 0 | Y72: =(X72*$F$72)*#REF! ->  | AC72: =#REF! ->  | AD72: =#REF! ->  | AE72: =#REF! ->  | AF72: =AG72*$G$72 -> 0 | AL72: =#REF! ->  | AM72: =AN72*$G$72 -> 0 | AO72: =(AN72*$F$72)*#REF! ->  | AQ72: =#REF! ->  | AR72: =#REF! ->  | AS72: =#REF! ->  | AT72: =AU72*$G$72 -> 0 | AV72: =(AU72*$F$72)*#REF! -> 
C73: Корпус кухонний секція нижня 60Н3ШХ/820 Pro Hettich | D73: 176 | E73: 596 | F73: 1 | G73: 0.104896 | H73: =(G73+G74)*L73 -> 0 | I73: 4868 | K73: =(I73*1)*J73 -> 0 | M73: =(L73*$F$73)*#REF! ->  | N73: =#REF! ->  | O73: =#REF! ->  | P73: =#REF! ->  | T73: =#REF! ->  | U73: =#REF! ->  | V73: =#REF! ->  | W73: =X73*($G$73+$G$74) -> 0 | Y73: =(X73*$F$73)*#REF! ->  | AC73: =#REF! ->  | AD73: =#REF! ->  | AE73: =#REF! ->  | AF73: =AG73*($G$73+$G$74) -> 0 | AL73: =#REF! ->  | AM73: =AN73*($G$73+$G$74) -> 0 | AO73: =(AN73*$F$73)*#REF! ->  | AQ73: =#REF! ->  | AR73: =#REF! ->  | AS73: =#REF! ->  | AT73: =AU73*($G$73+$G$74) -> 0 | AV73: =(AU73*$F$73)*#REF! -> 
D74: 266 | E74: 596 | F74: 2 | G74: 0.317072 | M74: =(L73*$F$74)*#REF! ->  | N74: =#REF! ->  | O74: =#REF! ->  | P74: =#REF! ->  | T74: =#REF! ->  | U74: =#REF! ->  | V74: =#REF! ->  | Y74: =(X73*$F$74)*#REF! ->  | AC74: =#REF! ->  | AD74: =#REF! ->  | AE74: =#REF! ->  | AL74: =#REF! ->  | AO74: =(AN73*$F$74)*#REF! ->  | AQ74: =#REF! ->  | AR74: =#REF! ->  | AS74: =#REF! ->  | AV74: =(AU73*$F$74)*#REF! -> 
C75: Корпус кухонний секція нижня 80Н/820 2дв Pro Blum | D75: 715 | E75: 396 | F75: 2 | G75: =(D75*E75)/1000000*F75 -> 0.56628 | H75: 0 | I75: 1608 | K75: =(I75*1)*J75 -> 0 | M75: =(L75*$F$75)*#REF! ->  | N75: =#REF! ->  | O75: =#REF! ->  | P75: =#REF! ->  | T75: =#REF! ->  | U75: =#REF! ->  | V75: =#REF! ->  | W75: =X75*$G$75 -> 0 | Y75: =(X75*$F$75)*#REF! ->  | Z75: =T75*W75 ->  | AA75: =U75*W75 ->  | AB75: =V75*W75 ->  | AC75: =#REF! ->  | AD75: =#REF! ->  | AE75: =#REF! ->  | AF75: =AG75*$G$75 -> 0 | AI75: =AC75*AF75 ->  | AJ75: =AD75*AF75 ->  | AK75: =AE75*AF75 ->  | AL75: =#REF! ->  | AM75: =AN75*$G$75 -> 0 | AO75: =(AN75*$F$75)*#REF! ->  | AP75: =AM75*AL75 ->  | AQ75: =#REF! ->  | AR75: =#REF! ->  | AS75: =#REF! ->  | AT75: =AU75*$G$75 -> 0 | AV75: =(AU75*$F$75)*#REF! -> 
C76: Корпус кухонний секція нижня 80НМ/820 2дв Мийка Pro Blum | D76: 715 | E76: 396 | F76: 2 | G76: 0.56628 | H76: 0 | I76: 2770 | K76: =(I76*1)*J76 -> 0 | M76: =(L76*$F$76)*#REF! ->  | N76: =#REF! ->  | O76: =#REF! ->  | P76: =#REF! ->  | T76: =#REF! ->  | U76: =#REF! ->  | V76: =#REF! ->  | W76: =X76*$G$76 -> 0 | Y76: =(X76*$F$76)*#REF! ->  | AC76: =#REF! ->  | AD76: =#REF! ->  | AE76: =#REF! ->  | AF76: =AG76*$G$76 -> 0 | AL76: =#REF! ->  | AM76: =AN76*$G$76 -> 0 | AO76: =(AN76*$F$76)*#REF! ->  | AQ76: =#REF! ->  | AR76: =#REF! ->  | AS76: =#REF! ->  | AT76: =AU76*$G$76 -> 0 | AV76: =(AU76*$F$76)*#REF! -> 
C77: Корпус кухонний секція нижня 80Н2ШХ/820 Pro Hettich | D77: 356 | E77: 796 | F77: 2 | G77: 0.566752 | H77: 0 | I77: 3842 | K77: 0 | M77: =(L77*$F$77)*#REF! ->  | N77: =#REF! ->  | O77: =#REF! ->  | P77: =#REF! ->  | T77: =#REF! ->  | U77: =#REF! ->  | V77: =#REF! ->  | W77: =X77*$G$77 -> 0 | Y77: =(X77*$F$77)*#REF! ->  | AC77: =#REF! ->  | AD77: =#REF! ->  | AE77: =#REF! ->  | AF77: =AG77*$G$77 -> 0 | AL77: =#REF! ->  | AM77: =AN77*$G$77 -> 0 | AO77: =(AN77*$F$77)*#REF! ->  | AQ77: =#REF! ->  | AR77: =#REF! ->  | AS77: =#REF! ->  | AT77: =AU77*$G$77 -> 0 | AV77: =(AU77*$F$77)*#REF! -> 
C78: Корпус кухонний секція нижня 80Н3ШХ/820 Pro Hettich | D78: 176 | E78: 796 | F78: 1 | G78: 0.140096 | H78: =(G78+G79)*L78 -> 0 | I78: 4724 | K78: 0 | M78: =(L78*$F$78)*#REF! ->  | N78: =#REF! ->  | O78: =#REF! ->  | P78: =#REF! ->  | Q78: =N78*H78 ->  | R78: =O78*H78 ->  | S78: =P78*H78 ->  | T78: =#REF! ->  | U78: =#REF! ->  | V78: =#REF! ->  | W78: =X78*($G$78+$G$79) -> 0 | Y78: =(X78*$F$78)*#REF! ->  | AC78: =#REF! ->  | AD78: =#REF! ->  | AE78: =#REF! ->  | AF78: =AG78*($G$78+$G$79) -> 0 | AL78: =#REF! ->  | AM78: =AN78*($G$78+$G$79) -> 0 | AO78: =(AN78*$F$78)*#REF! ->  | AQ78: =#REF! ->  | AR78: =#REF! ->  | AS78: =#REF! ->  | AT78: =AU78*($G$78+$G$79) -> 0 | AV78: =(AU78*$F$78)*#REF! -> 
D79: 266 | E79: 796 | F79: 2 | G79: 0.423472 | M79: =(L78*$F$79)*#REF! ->  | N79: =#REF! ->  | O79: =#REF! ->  | P79: =#REF! ->  | T79: =#REF! ->  | U79: =#REF! ->  | V79: =#REF! ->  | Y79: =(X78*$F$79)*#REF! ->  | AC79: =#REF! ->  | AD79: =#REF! ->  | AE79: =#REF! ->  | AL79: =#REF! ->  | AO79: =(AN78*$F$79)*#REF! ->  | AQ79: =#REF! ->  | AR79: =#REF! ->  | AS79: =#REF! ->  | AV79: =(AU78*$F$79)*#REF! -> 
C80: Корпус кухонний секція нижня 90Н2ШХ/820 Pro Hettich | D80: 356 | E80: 896 | F80: 2 | G80: 0.637952
C81: Корпус кухонний секцiя нижня КутН 90°/820 2дв Pro Blum | D81: 715 | E81: 478 | F81: 1 | G81: 0.34177
D82: 715 | E82: 468 | F82: 1 | G82: 0.33462
C83: Корпус кухонний секцiя нижня КутН 90°/820 Обманка | D83: 715 | E83: 72 | F83: 1 | G83: 0.05148
D84: 715 | E84: 90 | F84: 1
C85: Корпус кухонний секцiя нижня КутН 90°/820 1дв Pro Blum | D85: 715 | E85: 396 | F85: 1 | G85: 0.28314 | H85: =G85*L85 -> 0 | I85: 1965 | K85: =(I85*1)*J85 -> 0 | M85: =(L85*$F$85)*#REF! ->  | N85: =#REF! ->  | O85: =#REF! ->  | P85: =#REF! ->  | Q85: =N85*H85 ->  | T85: =#REF! ->  | U85: =#REF! ->  | V85: =#REF! ->  | W85: =X85*$G$85 -> 0 | Y85: =(X85*$F$85)*#REF! ->  | AC85: =#REF! ->  | AD85: =#REF! ->  | AE85: =#REF! ->  | AF85: =AG85*$G$85 -> 0 | AL85: =#REF! ->  | AM85: =AN85*$G$85 -> 0 | AO85: =(AN85*$F$85)*#REF! ->  | AQ85: =#REF! ->  | AR85: =#REF! ->  | AS85: =#REF! ->  | AT85: =AU85*$G$85 -> 0 | AV85: =(AU85*$F$85)*#REF! -> 
D86: 715 | E86: 72 | F86: 1 | G86: 0.05148 | H86: =G86*L85 -> 0 | M86: =(L86*$F$86)*#REF! ->  | N86: =#REF! ->  | O86: =#REF! ->  | P86: =#REF! ->  | Q86: =N86*H86 ->  | T86: =#REF! ->  | U86: =#REF! ->  | V86: =#REF! ->  | W86: =X85*$G$86 -> 0 | Y86: =(X86*$F$86)*#REF! ->  | AC86: =#REF! ->  | AD86: =#REF! ->  | AE86: =#REF! ->  | AF86: =AG85*$G$86 -> 0 | AL86: =#REF! ->  | AM86: =AN85*$G$86 -> 0 | AO86: =(AN86*$F$86)*#REF! ->  | AQ86: =#REF! ->  | AR86: =#REF! ->  | AS86: =#REF! ->  | AT86: =AU85*$G$86 -> 0 | AV86: =(AU86*$F$86)*#REF! -> 
D87: 715 | E87: 235 | F87: 1 | G87: 0.168025 | H87: =G87*L85 -> 0 | M87: =(L87*$F$87)*#REF! ->  | N87: =#REF! ->  | O87: =#REF! ->  | P87: =#REF! ->  | T87: =#REF! ->  | U87: =#REF! ->  | V87: =#REF! ->  | W87: =X85*$G$87 -> 0 | Y87: =(X87*$F$87)*#REF! ->  | AC87: =#REF! ->  | AD87: =#REF! ->  | AE87: =#REF! ->  | AF87: =AG85*$G$87 -> 0 | AL87: =#REF! ->  | AM87: =AN85*$G$87 -> 0 | AO87: =(AN87*$F$87)*#REF! ->  | AQ87: =#REF! ->  | AR87: =#REF! ->  | AS87: =#REF! ->  | AT87: =AU85*$G$87 -> 0 | AV87: =(AU87*$F$87)*#REF! -> 
B88: Пенали | C88: Корпус кухонний секція пенал 40П/2140 Pro Blum | D88: 1316 | E88: 396 | F88: 1 | G88: 0.521136
D89: 715 | E89: 396 | F89: 1
C90: Корпус кухонний секція пенал 60ПД/2140 Духовка Pro Blum | D90: 715 | E90: 596 | F90: 2
C91: Корпус кухонний секція пенал 60П/1420 Pro Blum | D91: 1316 | E91: 596 | F91: 1
C92: Корпус кухонний секція пенал 60ПД/1420 Духовка Pro Blum | D92: 715 | E92: 596 | F92: 1
C93: Корпус кухонний секція пенал 60ПД/2320 Духовка Pro Blum | D93: 895 | E93: 596 | F93: 1 | G93: 0.53342 | H93: =(G93+G94)*L93 -> 0 | I93: 3068 | K93: =(I93*1)*J93 -> 0 | M93: =(L93*$F$93)*#REF! ->  | N93: =#REF! ->  | O93: =#REF! ->  | P93: =#REF! ->  | Q93: =N93*H93 ->  | R93: =O93*H93 ->  | S93: =P93*H93 ->  | T93: =#REF! ->  | U93: =#REF! ->  | V93: =#REF! ->  | W93: =X93*($G$93+$G$94) -> 0 | Y93: =(X93*$F$93)*#REF! ->  | AC93: =#REF! ->  | AD93: =#REF! ->  | AE93: =#REF! ->  | AF93: =AG93*($G$93+$G$94) -> 0 | AL93: =#REF! ->  | AM93: =AN93*($G$93+$G$94) -> 0 | AO93: =(AN93*$F$93)*#REF! ->  | AQ93: =#REF! ->  | AR93: =#REF! ->  | AS93: =#REF! ->  | AT93: =AU93*($G$93+$G$94) -> 0 | AV93: =(AU93*$F$93)*#REF! -> 
D94: 715 | E94: 596 | F94: 1 | G94: 0.42614 | M94: =(L93*$F$94)*#REF! ->  | N94: =#REF! ->  | O94: =#REF! ->  | P94: =#REF! ->  | T94: =#REF! ->  | U94: =#REF! ->  | V94: =#REF! ->  | Y94: =(X93*$F$94)*#REF! ->  | AC94: =#REF! ->  | AD94: =#REF! ->  | AE94: =#REF! ->  | AL94: =#REF! ->  | AO94: =(AN93*$F$94)*#REF! ->  | AQ94: =#REF! ->  | AR94: =#REF! ->  | AS94: =#REF! ->  | AV94: =(AU93*$F$94)*#REF! -> 
C95: Корпус кухонний секція пенал 60ПДМ1ШХ/2140 Духовка+Мікрохвильовка Pro Blum+Hettich | D95: 715 | E95: 596 | F95: 1 | G95: 0.42614 | H95: =(G95+G96)*L95 -> 0 | I95: 3709 | K95: 0 | M95: =(L95*$F$95)*#REF! ->  | N95: =#REF! ->  | O95: =#REF! ->  | P95: =#REF! ->  | Q95: =N95*H95 ->  | R95: =O95*H95 ->  | S95: =P95*H95 ->  | T95: =#REF! ->  | U95: =#REF! ->  | V95: =#REF! ->  | W95: =X95*($G$95+$G$96) -> 0 | Y95: =(X95*$F$95)*#REF! ->  | AC95: =#REF! ->  | AD95: =#REF! ->  | AE95: =#REF! ->  | AF95: =AG95*($G$95+$G$96) -> 0 | AL95: =#REF! ->  | AM95: =AN95*($G$95+$G$96) -> 0 | AO95: =(AN95*$F$95)*#REF! ->  | AQ95: =#REF! ->  | AR95: =#REF! ->  | AS95: =#REF! ->  | AT95: =AU95*($G$95+$G$96) -> 0 | AV95: =(AU95*$F$95)*#REF! -> 
D96: 336 | E96: 596 | F96: 1 | G96: 0.200256 | M96: =(L95*$F$96)*#REF! ->  | N96: =#REF! ->  | O96: =#REF! ->  | P96: =#REF! ->  | T96: =#REF! ->  | U96: =#REF! ->  | V96: =#REF! ->  | Y96: =(X95*$F$96)*#REF! ->  | AC96: =#REF! ->  | AD96: =#REF! ->  | AE96: =#REF! ->  | AL96: =#REF! ->  | AO96: =(AN95*$F$96)*#REF! ->  | AQ96: =#REF! ->  | AR96: =#REF! ->  | AS96: =#REF! ->  | AV96: =(AU95*$F$96)*#REF! -> 
C97: Корпус кухонний секція пенал 60ПДМ1ШХ/2320 Духовка+Мікрохвильовка Pro Blum+Hettich | D97: 895 | E97: 596 | F97: 1 | G97: 0.53342 | H97: =(G97+G98)*L97 -> 0 | I97: 4101 | K97: 0 | M97: =(L97*$F$97)*#REF! ->  | N97: =#REF! ->  | O97: =#REF! ->  | P97: =#REF! ->  | T97: =#REF! ->  | U97: =#REF! ->  | V97: =#REF! ->  | W97: =X97*($G$97+$G$98) -> 0 | Y97: =(X97*$F$97)*#REF! ->  | AC97: =#REF! ->  | AD97: =#REF! ->  | AE97: =#REF! ->  | AF97: =AG97*($G$97+$G$98) -> 0 | AL97: =#REF! ->  | AM97: =AN97*($G$97+$G$98) -> 0 | AO97: =(AN97*$F$97)*#REF! ->  | AQ97: =#REF! ->  | AR97: =#REF! ->  | AS97: =#REF! ->  | AT97: =AU97*($G$97+$G$98) -> 0 | AV97: =(AU97*$F$97)*#REF! -> 
D98: 336 | E98: 596 | F98: 1 | G98: 0.200256 | M98: =(L97*$F$98)*#REF! ->  | N98: =#REF! ->  | O98: =#REF! ->  | P98: =#REF! ->  | T98: =#REF! ->  | U98: =#REF! ->  | V98: =#REF! ->  | Y98: =(X97*$F$98)*#REF! ->  | AC98: =#REF! ->  | AD98: =#REF! ->  | AE98: =#REF! ->  | AL98: =#REF! ->  | AO98: =(AN97*$F$98)*#REF! ->  | AQ98: =#REF! ->  | AR98: =#REF! ->  | AS98: =#REF! ->  | AV98: =(AU97*$F$98)*#REF! -> 
C99: Корпус кухонний секція пенал 60П/2320 Pro Blum | D99: 1496 | E99: 596 | F99: 1 | G99: 0.891616 | H99: =(G99+G100)*L99 -> 0 | I99: 3099 | K99: 0 | M99: =(L99*$F$99)*#REF! ->  | N99: =#REF! ->  | O99: =#REF! ->  | P99: =#REF! ->  | Q99: =N99*H99 ->  | R99: =O99*H99 ->  | S99: =P99*H99 ->  | T99: =#REF! ->  | U99: =#REF! ->  | V99: =#REF! ->  | W99: =X99*($G$99+$G$100) -> 0 | Y99: =(X99*$F$99)*#REF! ->  | AC99: =#REF! ->  | AD99: =#REF! ->  | AE99: =#REF! ->  | AF99: =AG99*($G$99+$G$100) -> 0 | AL99: =#REF! ->  | AM99: =AN99*($G$99+$G$100) -> 0 | AO99: =(AN99*$F$99)*#REF! ->  | AQ99: =#REF! ->  | AR99: =#REF! ->  | AS99: =#REF! ->  | AT99: =AU99*($G$99+$G$100) -> 0 | AV99: =(AU99*$F$99)*#REF! -> 
D100: 715 | E100: 596 | F100: 1 | G100: 0.42614 | M100: =(L99*$F$100)*#REF! ->  | N100: =#REF! ->  | O100: =#REF! ->  | P100: =#REF! ->  | T100: =#REF! ->  | U100: =#REF! ->  | V100: =#REF! ->  | Y100: =(X99*$F$100)*#REF! ->  | AC100: =#REF! ->  | AD100: =#REF! ->  | AE100: =#REF! ->  | AL100: =#REF! ->  | AO100: =(AN99*$F$100)*#REF! ->  | AQ100: =#REF! ->  | AR100: =#REF! ->  | AS100: =#REF! ->  | AV100: =(AU99*$F$100)*#REF! -> 
C101: Корпус кухонний секція пенал 60ПХ/2140 Холодильник Pro Blum | D101: 1316 | E101: 596 | F101: 1 | G101: 0.784336 | H101: =(G101+G102)*L101 -> 0 | I101: 1688 | K101: 0 | M101: =(L101*$F$101)*#REF! ->  | N101: =#REF! ->  | O101: =#REF! ->  | P101: =#REF! ->  | Q101: =N101*H101 ->  | R101: =O101*H101 ->  | S101: =P101*H101 ->  | T101: =#REF! ->  | U101: =#REF! ->  | V101: =#REF! ->  | W101: =X101*($G$101+$G$102) -> 0 | Y101: =(X101*$F$101)*#REF! ->  | AC101: =#REF! ->  | AD101: =#REF! ->  | AE101: =#REF! ->  | AF101: =AG101*($G$101+$G$102) -> 0 | AL101: =#REF! ->  | AM101: =AN101*($G$101+$G$102) -> 0 | AO101: =(AN101*$F$101)*#REF! ->  | AQ101: =#REF! ->  | AR101: =#REF! ->  | AS101: =#REF! ->  | AT101: =AU101*($G$101+$G$102) -> 0 | AV101: =(AU101*$F$101)*#REF! -> 
D102: 715 | E102: 596 | F102: 1 | G102: 0.42614 | M102: =(L101*$F$102)*#REF! ->  | N102: =#REF! ->  | O102: =#REF! ->  | P102: =#REF! ->  | T102: =#REF! ->  | U102: =#REF! ->  | V102: =#REF! ->  | Y102: =(X101*$F$102)*#REF! ->  | AC102: =#REF! ->  | AD102: =#REF! ->  | AE102: =#REF! ->  | AL102: =#REF! ->  | AO102: =(AN101*$F$102)*#REF! ->  | AQ102: =#REF! ->  | AR102: =#REF! ->  | AS102: =#REF! ->  | AV102: =(AU101*$F$102)*#REF! -> 
C103: Корпус кухонний секція пенал 60ПХ/2320 Холодильник Pro Blum | D103: 1496 | E103: 596 | F103: 1 | G103: 0.891616 | H103: =(G103+G104)*L103 -> 0 | I103: 2101 | K103: 0 | M103: =(L103*$F$103)*#REF! ->  | N103: =#REF! ->  | O103: =#REF! ->  | P103: =#REF! ->  | Q103: =N103*H103 ->  | R103: =O103*H103 ->  | S103: =P103*H103 ->  | T103: =#REF! ->  | U103: =#REF! ->  | V103: =#REF! ->  | W103: =X103*($G$103+$G$104) -> 0 | Y103: =(X103*$F$103)*#REF! ->  | AC103: =#REF! ->  | AD103: =#REF! ->  | AE103: =#REF! ->  | AF103: =AG103*($G$103+$G$104) -> 0 | AL103: =#REF! ->  | AM103: =AN103*($G$103+$G$104) -> 0 | AO103: =(AN103*$F$103)*#REF! ->  | AQ103: =#REF! ->  | AR103: =#REF! ->  | AS103: =#REF! ->  | AT103: =AU103*($G$103+$G$104) -> 0 | AV103: =(AU103*$F$103)*#REF! -> 
D104: 715 | E104: 596 | F104: 1 | G104: 0.42614 | M104: =(L103*$F$104)*#REF! ->  | N104: =#REF! ->  | O104: =#REF! ->  | P104: =#REF! ->  | T104: =#REF! ->  | U104: =#REF! ->  | V104: =#REF! ->  | Y104: =(X103*$F$104)*#REF! ->  | AC104: =#REF! ->  | AD104: =#REF! ->  | AE104: =#REF! ->  | AL104: =#REF! ->  | AO104: =(AN103*$F$104)*#REF! ->  | AQ104: =#REF! ->  | AR104: =#REF! ->  | AS104: =#REF! ->  | AV104: =(AU103*$F$104)*#REF! -> 
C105: Корпус кухонний секція пенал 60П/2140 Pro Blum | D105: 1316 | E105: 596 | F105: 1 | G105: 0.784336 | H105: =(G105+G106)*L105 -> 0 | I105: 2728 | K105: =(I105*1)*J105 -> 0 | M105: =(L105*$F$105)*#REF! ->  | N105: =#REF! ->  | O105: =#REF! ->  | P105: =#REF! ->  | Q105: =N105*H105 ->  | R105: =O105*H105 ->  | S105: =P105*H105 ->  | T105: =#REF! ->  | U105: =#REF! ->  | V105: =#REF! ->  | W105: =X105*($G$105+$G$106) -> 0 | Y105: =(X105*$F$105)*#REF! ->  | AC105: =#REF! ->  | AD105: =#REF! ->  | AE105: =#REF! ->  | AF105: =AG105*($G$105+$G$106) -> 0 | AL105: =#REF! ->  | AM105: =AN105*($G$105+$G$106) -> 0 | AO105: =(AN105*$F$105)*#REF! ->  | AQ105: =#REF! ->  | AR105: =#REF! ->  | AS105: =#REF! ->  | AT105: =AU105*($G$105+$G$106) -> 0 | AV105: =(AU105*$F$105)*#REF! -> 
D106: 715 | E106: 596 | F106: 1 | G106: 0.42614 | M106: =(L105*$F$106)*#REF! ->  | N106: =#REF! ->  | O106: =#REF! ->  | P106: =#REF! ->  | T106: =#REF! ->  | U106: =#REF! ->  | V106: =#REF! ->  | Y106: =(X105*$F$106)*#REF! ->  | AC106: =#REF! ->  | AD106: =#REF! ->  | AE106: =#REF! ->  | AL106: =#REF! ->  | AO106: =(AN105*$F$106)*#REF! ->  | AQ106: =#REF! ->  | AR106: =#REF! ->  | AS106: =#REF! ->  | AV106: =(AU105*$F$106)*#REF! -> 
B107: Інше | C107: Фасад кухонний 45Н/720 Посудомийка | D107: 715 | E107: 446 | F107: 1 | G107: 0.31889 | H107: =G107*L107 -> 0 | K107: =(I107*1)*J107 -> 0 | M107: =(L107*$F$107)*#REF! ->  | N107: =#REF! ->  | O107: =#REF! ->  | P107: =#REF! ->  | Q107: =N107*H107 ->  | R107: =O107*H107 ->  | S107: =P107*H107 ->  | T107: =#REF! ->  | U107: =#REF! ->  | V107: =#REF! ->  | W107: =X107*$G$107 -> 0 | Y107: =(X107*$F$107)*#REF! ->  | AC107: =#REF! ->  | AD107: =#REF! ->  | AE107: =#REF! ->  | AF107: =AG107*$G$107 -> 0 | AL107: =#REF! ->  | AM107: =AN107*$G$107 -> 0 | AO107: =(AN107*$F$107)*#REF! ->  | AQ107: =#REF! ->  | AR107: =#REF! ->  | AS107: =#REF! ->  | AT107: =AU107*$G$107 -> 0 | AV107: =(AU107*$F$107)*#REF! -> 
C108: Фасад кухонний 60Н/720 Посудомийка | D108: 715 | E108: 596 | F108: 1 | G108: 0.42614 | H108: 0 | K108: =(I108*1)*J108 -> 0 | M108: =(L108*$F$108)*#REF! ->  | N108: =#REF! ->  | O108: =#REF! ->  | P108: =#REF! ->  | Q108: =N108*H108 ->  | T108: =#REF! ->  | U108: =#REF! ->  | V108: =#REF! ->  | W108: =X108*$G$108 -> 0 | Y108: =(X108*$F$108)*#REF! ->  | AC108: =#REF! ->  | AD108: =#REF! ->  | AE108: =#REF! ->  | AF108: =AG108*$G$108 -> 0 | AL108: =#REF! ->  | AM108: =AN108*$G$108 -> 0 | AO108: =(AN108*$F$108)*#REF! ->  | AQ108: =#REF! ->  | AR108: =#REF! ->  | AS108: =#REF! ->  | AT108: =AU108*$G$108 -> 0 | AV108: =(AU108*$F$108)*#REF! -> 
C109: Бічна панель верхня 720мм | D109: 720 | E109: 350 | F109: 1 | G109: 0.252
C110: Бічна панель верхня 900мм | D110: 900 | E110: 350 | F110: 1 | G110: 0.315
C111: Бічна панель нижня 820мм | D111: 820 | E111: 580 | F111: 1 | G111: 0.4756
C112: Бічна панель острів 820мм | D112: 820 | E112: 1160 | F112: 1 | G112: 0.9512
C113: Бічна панель пенал 1420мм | D113: 1420 | E113: 580 | F113: 1 | G113: 0.8236
C114: Бічна панель пенал 2140мм | D114: 2140 | E114: 580 | F114: 1 | G114: 1.2412
C115: Бічна панель пенал 2320мм | D115: 2320 | E115: 580 | F115: 1 | G115: 1.3456
C116: Корпус кухонний секція нижня 5НП/820 Пілястра | D116: 715 | E116: 50 | F116: 1 | G116: 0.03575
C117: Корпус кухонний секція верхня 5ВП/900 Пілястра | D117: 895 | E117: 50 | F117: 1 | G117: 0.04475 | H117: 0 | N117: =#REF! ->  | O117: =#REF! ->  | P117: =#REF! ->  | T117: =#REF! ->  | U117: =#REF! ->  | V117: =#REF! ->  | W117: =X117*$G$117 -> 0 | AC117: =#REF! ->  | AD117: =#REF! ->  | AE117: =#REF! ->  | AF117: =AG117*$G$117 -> 0 | AL117: =#REF! ->  | AM117: =AN117*$G$117 -> 0 | AQ117: =#REF! ->  | AR117: =#REF! ->  | AS117: =#REF! ->  | AT117: =AU117*$G$117 -> 0
C118: Корпус кухонний секція верхня 5ВП/720 Пілястра | D118: 715 | E118: 50 | F118: 1 | G118: 0.03575 | H118: 0 | K118: =(I118*1)*J118 -> 0 | N118: =#REF! ->  | O118: =#REF! ->  | P118: =#REF! ->  | T118: =#REF! ->  | U118: =#REF! ->  | V118: =#REF! ->  | W118: =X118*$G$118 -> 0 | AC118: =#REF! ->  | AD118: =#REF! ->  | AE118: =#REF! ->  | AF118: =AG118*$G$118 -> 0 | AL118: =#REF! ->  | AM118: =AN118*$G$118 -> 0 | AQ118: =#REF! ->  | AR118: =#REF! ->  | AS118: =#REF! ->  | AT118: =AU118*$G$118 -> 0
